Workbook

Sheet FY17 (hidden)
B5: Order | C5: Lea | D5: District | E5: Lea | F5: Op. | G5: Curriculum Directors (Supervisory) (2110) (line 3409, col 6) | H5: Department Heads (Non-Supervisory) (2120) (line 3419, col 6) | I5: Instructional Technology Leadership and Training (2130) (line 3427, col 6) * | J5: School Leadership-Building (2210) (line 3429, col 6) | K5: Curriculum Leaders/Department Heads-Building Level (2220) (line 3439, col 6) | L5: Building Technology (2250) (line 3449, col 6) | M5: Teachers, Classroom (2305) (line 3450, col 6) | N5: Teachers, Specialists (2310) (line 3451, col 6) | O5: Instructional Coordinators and Team Leaders (2315) (line 3464, col 6) | P5: Medical/ Therapeutic Services (2320) (line 3469, col 6) | Q5: Substitutes, Long Term (2324) (line 3465, col 6) | R5: Substitutes, Short Term (2325) (line 3469, col 6) | S5: Non-Clerical Paraprofs./Instructional Assistants (2330) (line 3475, col 6) | T5: Librarians and Media Center Directors (2340) (line 3479, col 6) | U5: Distance Learning and Online Coursework (2345) (line 3486, col 6) * | V5: Professional Development Leadership (2351) (line 3489, col 6) | W5: Instructional Coaches (2352) (line 3495, col 6) | X5: Teacher/Instructional Staff-Professional Days (2353) (line 3493, col 6) | Y5: Stipends for Teachers Providing Instructional Coaching (2354) (line 3497, col 6) | Z5: Substitutes for Instructional Staff at Prof. Development (2355) (line 3494, col 6) | AA5: Costs for Instructional Staff to Attend Prof. Dev. (2356) (line 3505, col 6) | AB5: Prof. Development Stipends, Providers and Expenses (2357) (line 3499, col 6) | AC5: Outside Professional Development for Instructional Staff (2358) (line 3509, col 6) | AD5: Textbooks and Related Software/Media/Materials (2410) (line 3509, col 6) | AE5: Other Instructional Materials (2415) (line 3519, col 6) | AF5: Instructional Equipment (2420) (line 3529, col 6) | AG5: General Supplies (2430) (line 3535, col 6) | AH5: Other Instructional Services (2440) (line 3544, col 6) | AI5: Classroom Instructional Technology (2451) (line 3548, col 6) | AJ5: Other Instructional Hardware (2453) (line 3552, col 6) | AK5: Instructional Software (2455) (line 3556, col 6) | AL5: Guidance Counselors and Adjustment Counselors (2710) (line 3569, col 6) | AM5: Testing and Assessment (2720) (line 3579, col 6) | AN5: Psychological Services (2800) (line 3589, col 6) | AO5: Total Instruction (2000) (line 3599, col 6)
B6: 1 | C6: 0001 | D6: ABINGTON | E6: 001 | F6: 1 | G6: 286416.76 | H6: 0 | I6: 0 | J6: 1053683.03 | K6: 0 | L6: 8246.92 | M6: 8937658.61 | N6: 509795 | O6: 0 | P6: 320139.61 | Q6: 0 | R6: 118895.94 | S6: 1373048.59 | T6: 83635.44 | U6: 0 | V6: 243435.89 | W6: 0 | X6: 78590.33 | Y6: 0 | Z6: 0 | AA6: 0 | AB6: 92618.53 | AC6: 0 | AD6: 226402.48 | AE6: 47673.45 | AF6: 24224.47 | AG6: 224430.72 | AH6: 877919.48 | AI6: 183572.57 | AJ6: 22536.4 | AK6: 21441.08 | AL6: 366422.39 | AM6: 0 | AN6: 366395.61 | AO6: 15467183.3
B7: =B6+1 -> 2 | C7: 0002 | D7: ACTON | E7: 002 | F7: 0 | G7: 0 | H7: 0 | I7: 0 | J7: 0 | K7: 0 | L7: 0 | M7: 0 | N7: 0 | O7: 0 | P7: 0 | Q7: 0 | R7: 0 | S7: 0 | T7: 0 | U7: 0 | V7: 0 | W7: 0 | X7: 0 | Y7: 0 | Z7: 0 | AA7: 0 | AB7: 0 | AC7: 0 | AD7: 0 | AE7: 0 | AF7: 0 | AG7: 0 | AH7: 0 | AI7: 0 | AJ7: 0 | AK7: 0 | AL7: 0 | AM7: 0 | AN7: 0 | AO7: 0
B8: 3 | C8: 0003 | D8: ACUSHNET | E8: 003 | F8: 1 | G8: 151304.64 | H8: 0 | I8: 0 | J8: 461855.55 | K8: 0 | L8: 120186.5 | M8: 4892512.21 | N8: 1027.5 | O8: 16240.5 | P8: 378130.47 | Q8: 0 | R8: 105449.65 | S8: 465803.14 | T8: 30178.76 | U8: 0 | V8: 0 | W8: 0 | X8: 37000 | Y8: 0 | Z8: 0 | AA8: 0 | AB8: 45062.5 | AC8: 0 | AD8: 115654.62 | AE8: 179.98 | AF8: 17567.89 | AG8: 64361.42 | AH8: 21055.05 | AI8: 261527.73 | AJ8: 0 | AK8: 0 | AL8: 249674.49 | AM8: 0 | AN8: 123635.59 | AO8: 7558408.19
B9: 4 | C9: 0004 | D9: ADAMS | E9: 004 | F9: 0 | G9: 0 | H9: 0 | I9: 0 | J9: 0 | K9: 0 | L9: 0 | M9: 0 | N9: 0 | O9: 0 | P9: 0 | Q9: 0 | R9: 0 | S9: 0 | T9: 0 | U9: 0 | V9: 0 | W9: 0 | X9: 0 | Y9: 0 | Z9: 0 | AA9: 0 | AB9: 0 | AC9: 0 | AD9: 0 | AE9: 0 | AF9: 0 | AG9: 0 | AH9: 0 | AI9: 0 | AJ9: 0 | AK9: 0 | AL9: 0 | AM9: 0 | AN9: 0 | AO9: 0
B10: 5 | C10: 0005 | D10: AGAWAM | E10: 005 | F10: 1 | G10: 369808 | H10: 0 | I10: 0 | J10: 1949101 | K10: 140911 | L10: 0 | M10: 22129770 | N10: 14544 | O10: 565060 | P10: 1217465 | Q10: 0 | R10: 417613 | S10: 3190244 | T10: 574877 | U10: 0 | V10: 0 | W10: 0 | X10: 0 | Y10: 0 | Z10: 0 | AA10: 0 | AB10: 95368 | AC10: 0 | AD10: 338880 | AE10: 75822 | AF10: 16736 | AG10: 213399 | AH10: 9256 | AI10: 407400 | AJ10: 3753 | AK10: 0 | AL10: 1483205 | AM10: 23648 | AN10: 574279 | AO10: 33811139
B11: 6 | C11: 0006 | D11: ALFORD | E11: 006 | F11: 0 | G11: 0 | H11: 0 | I11: 0 | J11: 0 | K11: 0 | L11: 0 | M11: 0 | N11: 0 | O11: 0 | P11: 0 | Q11: 0 | R11: 0 | S11: 0 | T11: 0 | U11: 0 | V11: 0 | W11: 0 | X11: 0 | Y11: 0 | Z11: 0 | AA11: 0 | AB11: 0 | AC11: 0 | AD11: 0 | AE11: 0 | AF11: 0 | AG11: 0 | AH11: 0 | AI11: 0 | AJ11: 0 | AK11: 0 | AL11: 0 | AM11: 0 | AN11: 0 | AO11: 0
B12: 7 | C12: 0007 | D12: AMESBURY | E12: 007 | F12: 1 | G12: 389933.51 | H12: 0 | I12: 0 | J12: 1392348.8 | K12: 0 | L12: 0 | M12: 12253197.62 | N12: 0 | O12: 0 | P12: 278991.36 | Q12: 0 | R12: 234044.24 | S12: 1927260.17 | T12: 318347.69 | U12: 0 | V12: 0 | W12: 0 | X12: 13500 | Y12: 0 | Z12: 0 | AA12: 0 | AB12: 79936.99 | AC12: 0 | AD12: 125928.22 | AE12: 29544.07 | AF12: 87280.38 | AG12: 168197.44 | AH12: 5818.12 | AI12: 10096.81 | AJ12: 0 | AK12: 24876.78 | AL12: 827089.65 | AM12: 17225 | AN12: 161999 | AO12: 18345615.85
B13: 8 | C13: 0008 | D13: AMHERST | E13: 008 | F13: 1 | G13: 282671 | H13: 0 | I13: 0 | J13: 941117 | K13: 0 | L13: 9712 | M13: 5794264 | N13: 2560982 | O13: 15389 | P13: 540901 | Q13: 0 | R13: 181975 | S13: 2015545 | T13: 305831 | U13: 0 | V13: 752 | W13: 0 | X13: 105147 | Y13: 0 | Z13: 37291 | AA13: 0 | AB13: 483887 | AC13: 0 | AD13: 1724 | AE13: 178118 | AF13: 16363 | AG13: 69654 | AH13: 51608 | AI13: 77536 | AJ13: 0 | AK13: 4196 | AL13: 240752 | AM13: 0 | AN13: 451517 | AO13: 14366932
B14: 9 | C14: 0009 | D14: ANDOVER | E14: 009 | F14: 1 | G14: 1635266 | H14: 0 | I14: 0 | J14: 3514562 | K14: 541885 | L14: 355196 | M14: 28436891 | N14: 9724610 | O14: 31193 | P14: 2502269 | Q14: 0 | R14: 351356 | S14: 5818133 | T14: 1162016 | U14: 0 | V14: 0 | W14: 0 | X14: 74659 | Y14: 0 | Z14: 75875 | AA14: 0 | AB14: 326380 | AC14: 0 | AD14: 393820 | AE14: 121890 | AF14: 172141 | AG14: 510097 | AH14: 63885 | AI14: 135656 | AJ14: 2413 | AK14: 22731 | AL14: 2092516 | AM14: 0 | AN14: 1374883 | AO14: 59440323
B15: 10 | C15: 0010 | D15: ARLINGTON | E15: 010 | F15: 1 | G15: 1532544.83 | H15: 2999.88 | I15: 0 | J15: 2577079.94 | K15: 16525.02 | L15: 0 | M15: 22181475.48 | N15: 4535995.734 | O15: 744128.05 | P15: 1449045.76 | Q15: 0 | R15: 699463.15 | S15: 2436978.94 | T15: 268887.21 | U15: 0 | V15: 7454.75 | W15: 0 | X15: 483429.709 | Y15: 0 | Z15: 0 | AA15: 0 | AB15: 265291.48 | AC15: 0 | AD15: 108389.11 | AE15: 381456.22 | AF15: 28330.14 | AG15: 180756.78 | AH15: 45100.42 | AI15: 90630.43 | AJ15: 0 | AK15: 50690 | AL15: 2187114.31 | AM15: 145020.86 | AN15: 641587.42 | AO15: 41060375.62
B16: 11 | C16: 0011 | D16: ASHBURNHAM | E16: 011 | F16: 0 | G16: 0 | H16: 0 | I16: 0 | J16: 0 | K16: 0 | L16: 0 | M16: 0 | N16: 0 | O16: 0 | P16: 0 | Q16: 0 | R16: 0 | S16: 0 | T16: 0 | U16: 0 | V16: 0 | W16: 0 | X16: 0 | Y16: 0 | Z16: 0 | AA16: 0 | AB16: 0 | AC16: 0 | AD16: 0 | AE16: 0 | AF16: 0 | AG16: 0 | AH16: 0 | AI16: 0 | AJ16: 0 | AK16: 0 | AL16: 0 | AM16: 0 | AN16: 0 | AO16: 0
B17: 12 | C17: 0012 | D17: ASHBY | E17: 012 | F17: 0 | G17: 0 | H17: 0 | I17: 0 | J17: 0 | K17: 0 | L17: 0 | M17: 0 | N17: 0 | O17: 0 | P17: 0 | Q17: 0 | R17: 0 | S17: 0 | T17: 0 | U17: 0 | V17: 0 | W17: 0 | X17: 0 | Y17: 0 | Z17: 0 | AA17: 0 | AB17: 0 | AC17: 0 | AD17: 0 | AE17: 0 | AF17: 0 | AG17: 0 | AH17: 0 | AI17: 0 | AJ17: 0 | AK17: 0 | AL17: 0 | AM17: 0 | AN17: 0 | AO17: 0
B18: 13 | C18: 0013 | D18: ASHFIELD | E18: 013 | F18: 0 | G18: 0 | H18: 0 | I18: 0 | J18: 0 | K18: 0 | L18: 0 | M18: 0 | N18: 0 | O18: 0 | P18: 0 | Q18: 0 | R18: 0 | S18: 0 | T18: 0 | U18: 0 | V18: 0 | W18: 0 | X18: 0 | Y18: 0 | Z18: 0 | AA18: 0 | AB18: 0 | AC18: 0 | AD18: 0 | AE18: 0 | AF18: 0 | AG18: 0 | AH18: 0 | AI18: 0 | AJ18: 0 | AK18: 0 | AL18: 0 | AM18: 0 | AN18: 0 | AO18: 0
B19: 14 | C19: 0014 | D19: ASHLAND | E19: 014 | F19: 1 | G19: 248414.37 | H19: 0 | I19: 0 | J19: 1254478 | K19: 3555 | L19: 23981.08 | M19: 10624146.11 | N19: 3457241.08 | O19: 211797.62 | P19: 784875.77 | Q19: 0 | R19: 289497.65 | S19: 1109824.12 | T19: 91735.08 | U19: 0 | V19: 29781.25 | W19: 0 | X19: 6630 | Y19: 0 | Z19: 16247.5 | AA19: 0 | AB19: 207389.84 | AC19: 0 | AD19: 80072.77 | AE19: 4012.68 | AF19: 91163.39 | AG19: 218098.52 | AH19: 188017.88 | AI19: 16586.67 | AJ19: 0 | AK19: 0 | AL19: 1196473.92 | AM19: 0 | AN19: 390687.78 | AO19: 20544708.08
B20: 15 | C20: 0015 | D20: ATHOL | E20: 015 | F20: 0 | G20: 0 | H20: 0 | I20: 0 | J20: 0 | K20: 0 | L20: 0 | M20: 0 | N20: 0 | O20: 0 | P20: 0 | Q20: 0 | R20: 0 | S20: 0 | T20: 0 | U20: 0 | V20: 0 | W20: 0 | X20: 0 | Y20: 0 | Z20: 0 | AA20: 0 | AB20: 0 | AC20: 0 | AD20: 0 | AE20: 0 | AF20: 0 | AG20: 0 | AH20: 0 | AI20: 0 | AJ20: 0 | AK20: 0 | AL20: 0 | AM20: 0 | AN20: 0 | AO20: 0
B21: 16 | C21: 0016 | D21: ATTLEBORO | E21: 016 | F21: 1 | G21: 401841.23 | H21: 8666.57 | I21: 0 | J21: 2866081.52 | K21: 8100.75 | L21: 65689.43 | M21: 28413769.35 | N21: 229099.22 | O21: 0 | P21: 1847247.31 | Q21: 0 | R21: 661950.276 | S21: 3027859.21 | T21: 114892.69 | U21: 0 | V21: 438133.7 | W21: 0 | X21: 0 | Y21: 0 | Z21: 40293.7 | AA21: 0 | AB21: 147972.98 | AC21: 0 | AD21: 50889.4 | AE21: 15682.59 | AF21: 137210.47 | AG21: 107116.16 | AH21: 900.98 | AI21: 149061.42 | AJ21: 178481.11 | AK21: 10947.9 | AL21: 1549041.82 | AM21: 19426 | AN21: 473093.57 | AO21: 40963449.36
B22: 17 | C22: 0017 | D22: AUBURN | E22: 017 | F22: 1 | G22: 284919.22 | H22: 0 | I22: 0 | J22: 1313921.9 | K22: 71236.4 | L22: 113212.02 | M22: 10300901.47 | N22: 1822745.14 | O22: 344280.16 | P22: 607172.61 | Q22: 0 | R22: 136955.74 | S22: 1904795.64 | T22: 169058.24 | U22: 0 | V22: 166.44 | W22: 0 | X22: 296629 | Y22: 0 | Z22: 19855.21 | AA22: 0 | AB22: 166500.11 | AC22: 0 | AD22: 168225.4 | AE22: 61735.89 | AF22: 21214 | AG22: 109235 | AH22: 63787 | AI22: 92164.08 | AJ22: 0 | AK22: 152367.51 | AL22: 913835.72 | AM22: 0 | AN22: 159668.31 | AO22: 19294582.21
B23: 18 | C23: 0018 | D23: AVON | E23: 018 | F23: 1 | G23: 132914 | H23: 0 | I23: 0 | J23: 555754 | K23: 0 | L23: 92882 | M23: 3622103 | N23: 72746 | O23: 8024 | P23: 0 | Q23: 0 | R23: 43000 | S23: 178247 | T23: 87976 | U23: 0 | V23: 0 | W23: 0 | X23: 20000 | Y23: 0 | Z23: 6800 | AA23: 0 | AB23: 44687 | AC23: 0 | AD23: 93712 | AE23: 4282 | AF23: 51797 | AG23: 69459 | AH23: 6517 | AI23: 75007 | AJ23: 18554 | AK23: 70830 | AL23: 135997 | AM23: 1889 | AN23: 135381 | AO23: 5528558
B24: 19 | C24: 0019 | D24: AYER | E24: 019 | F24: 0 | G24: 0 | H24: 0 | I24: 0 | J24: 0 | K24: 0 | L24: 0 | M24: 0 | N24: 0 | O24: 0 | P24: 0 | Q24: 0 | R24: 0 | S24: 0 | T24: 0 | U24: 0 | V24: 0 | W24: 0 | X24: 0 | Y24: 0 | Z24: 0 | AA24: 0 | AB24: 0 | AC24: 0 | AD24: 0 | AE24: 0 | AF24: 0 | AG24: 0 | AH24: 0 | AI24: 0 | AJ24: 0 | AK24: 0 | AL24: 0 | AM24: 0 | AN24: 0 | AO24: 0
B25: 20 | C25: 0020 | D25: BARNSTABLE | E25: 020 | F25: 1 | G25: 1227035.34 | H25: 180087.72 | I25: 0 | J25: 3302519.25 | K25: 1253166.85 | L25: 181422.61 | M25: 21845158.25 | N25: 5935532.79 | O25: 0 | P25: 2230095.35 | Q25: 0 | R25: 1057744.04 | S25: 2866675.46 | T25: 335730.68 | U25: 0 | V25: 0 | W25: 0 | X25: 0 | Y25: 0 | Z25: 0 | AA25: 0 | AB25: 265731.44 | AC25: 0 | AD25: 411299.71 | AE25: 38637.24 | AF25: 360649.41 | AG25: 484087.7 | AH25: 0 | AI25: 39900.44 | AJ25: 163550.67 | AK25: 9307 | AL25: 1697057.9 | AM25: 81185.19 | AN25: 742116.11 | AO25: 44708691.15
B26: 21 | C26: 0021 | D26: BARRE | E26: 021 | F26: 0 | G26: 0 | H26: 0 | I26: 0 | J26: 0 | K26: 0 | L26: 0 | M26: 0 | N26: 0 | O26: 0 | P26: 0 | Q26: 0 | R26: 0 | S26: 0 | T26: 0 | U26: 0 | V26: 0 | W26: 0 | X26: 0 | Y26: 0 | Z26: 0 | AA26: 0 | AB26: 0 | AC26: 0 | AD26: 0 | AE26: 0 | AF26: 0 | AG26: 0 | AH26: 0 | AI26: 0 | AJ26: 0 | AK26: 0 | AL26: 0 | AM26: 0 | AN26: 0 | AO26: 0
B27: 22 | C27: 0022 | D27: BECKET | E27: 022 | F27: 0 | G27: 0 | H27: 0 | I27: 0 | J27: 0 | K27: 0 | L27: 0 | M27: 0 | N27: 0 | O27: 0 | P27: 0 | Q27: 0 | R27: 0 | S27: 0 | T27: 0 | U27: 0 | V27: 0 | W27: 0 | X27: 0 | Y27: 0 | Z27: 0 | AA27: 0 | AB27: 0 | AC27: 0 | AD27: 0 | AE27: 0 | AF27: 0 | AG27: 0 | AH27: 0 | AI27: 0 | AJ27: 0 | AK27: 0 | AL27: 0 | AM27: 0 | AN27: 0 | AO27: 0
B28: 23 | C28: 0023 | D28: BEDFORD | E28: 023 | F28: 1 | G28: 376428.79 | H28: 0 | I28: 0 | J28: 2071785.5 | K28: 89743.62 | L28: 774447.92 | M28: 13326151.85 | N28: 5534981.81 | O28: 0 | P28: 0 | Q28: 0 | R28: 150942.16 | S28: 1242155.62 | T28: 443405.46 | U28: 0 | V28: 53559.7 | W28: 0 | X28: 298351.83 | Y28: 0 | Z28: 100628 | AA28: 0 | AB28: 165355.74 | AC28: 0 | AD28: 134437.24 | AE28: 43504.9 | AF28: 30864.13 | AG28: 286823.79 | AH28: 307661.23 | AI28: 92530.12 | AJ28: 0 | AK28: 0 | AL28: 1286810.54 | AM28: 13567.54 | AN28: 129083.79 | AO28: 26953221.28
B29: 24 | C29: 0024 | D29: BELCHERTOWN | E29: 024 | F29: 1 | G29: 583813 | H29: 0 | I29: 0 | J29: 1223942 | K29: 0 | L29: 0 | M29: 8472125 | N29: 2282961 | O29: 57099 | P29: 638879 | Q29: 0 | R29: 299433 | S29: 1445232 | T29: 262564 | U29: 0 | V29: 0 | W29: 0 | X29: 188478 | Y29: 0 | Z29: 0 | AA29: 0 | AB29: 131153 | AC29: 0 | AD29: 37878 | AE29: 23920 | AF29: 75037 | AG29: 203433 | AH29: 186186 | AI29: 87052 | AJ29: 355 | AK29: 2853 | AL29: 923225 | AM29: 13429 | AN29: 175835 | AO29: 17314882
B30: 25 | C30: 0025 | D30: BELLINGHAM | E30: 025 | F30: 1 | G30: 202897 | H30: 0 | I30: 0 | J30: 1092587 | K30: 38723 | L30: 60087 | M30: 9631928 | N30: 2238355 | O30: 289937 | P30: 916675 | Q30: 0 | R30: 243110 | S30: 1174199 | T30: 114308 | U30: 0 | V30: 136717 | W30: 0 | X30: 0 | Y30: 0 | Z30: 27224 | AA30: 0 | AB30: 105135 | AC30: 0 | AD30: 165254 | AE30: 32292 | AF30: 47125 | AG30: 64852 | AH30: 7193 | AI30: 35019 | AJ30: 663 | AK30: 67240 | AL30: 601316 | AM30: 29558 | AN30: 200653 | AO30: 17523047
B31: 26 | C31: 0026 | D31: BELMONT | E31: 026 | F31: 1 | G31: 1048424 | H31: 0 | I31: 0 | J31: 2064654 | K31: 0 | L31: 629840 | M31: 17178896 | N31: 4752035 | O31: 0 | P31: 1321302 | Q31: 0 | R31: 630287 | S31: 1669843 | T31: 266019 | U31: 0 | V31: 69773 | W31: 0 | X31: 145438 | Y31: 0 | Z31: 0 | AA31: 0 | AB31: 151539 | AC31: 0 | AD31: 120720 | AE31: 201353 | AF31: 55295 | AG31: 190477 | AH31: 474502 | AI31: 477093 | AJ31: 103986 | AK31: 49105 | AL31: 1033617 | AM31: 19210 | AN31: 588687 | AO31: 33242095
B32: 27 | C32: 0027 | D32: BERKLEY | E32: 027 | F32: 1 | G32: 149565 | H32: 0 | I32: 0 | J32: 486084 | K32: 0 | L32: 85220 | M32: 3706260 | N32: 317199 | O32: 0 | P32: 144809 | Q32: 0 | R32: 114051 | S32: 370687 | T32: 90077 | U32: 0 | V32: 0 | W32: 0 | X32: 126305 | Y32: 0 | Z32: 3230 | AA32: 0 | AB32: 35332 | AC32: 0 | AD32: 33814 | AE32: 0 | AF32: 25436 | AG32: 65651 | AH32: 26266 | AI32: 13027 | AJ32: 43344 | AK32: 1189 | AL32: 39391 | AM32: 3184 | AN32: 42307 | AO32: 5922428
B33: 28 | C33: 0028 | D33: BERLIN | E33: 028 | F33: 1 | G33: 72866 | H33: 0 | I33: 0 | J33: 139660 | K33: 0 | L33: 30237 | M33: 925256 | N33: 324206 | O33: 45600 | P33: 58337 | Q33: 0 | R33: 18570 | S33: 176329 | T33: 59477 | U33: 0 | V33: 653 | W33: 0 | X33: 0 | Y33: 0 | Z33: 0 | AA33: 0 | AB33: 16139 | AC33: 0 | AD33: 10660 | AE33: 949 | AF33: 30226 | AG33: 60082 | AH33: 0 | AI33: 52736 | AJ33: 0 | AK33: 3950 | AL33: 0 | AM33: 0 | AN33: 75599 | AO33: 2101532
B34: 29 | C34: 0029 | D34: BERNARDSTON | E34: 029 | F34: 0 | G34: 0 | H34: 0 | I34: 0 | J34: 0 | K34: 0 | L34: 0 | M34: 0 | N34: 0 | O34: 0 | P34: 0 | Q34: 0 | R34: 0 | S34: 0 | T34: 0 | U34: 0 | V34: 0 | W34: 0 | X34: 0 | Y34: 0 | Z34: 0 | AA34: 0 | AB34: 0 | AC34: 0 | AD34: 0 | AE34: 0 | AF34: 0 | AG34: 0 | AH34: 0 | AI34: 0 | AJ34: 0 | AK34: 0 | AL34: 0 | AM34: 0 | AN34: 0 | AO34: 0
B35: 30 | C35: 0030 | D35: BEVERLY | E35: 030 | F35: 1 | G35: 519387 | H35: 0 | I35: 0 | J35: 1736587 | K35: 42025 | L35: 0 | M35: 20069411 | N35: 1564004 | O35: 375013 | P35: 1473904 | Q35: 0 | R35: 644676 | S35: 1631075 | T35: 463109 | U35: 0 | V35: 55201 | W35: 0 | X35: 0 | Y35: 0 | Z35: 101635.17 | AA35: 0 | AB35: 89786 | AC35: 0 | AD35: 85151 | AE35: 5345 | AF35: 21221 | AG35: 118018.92 | AH35: 541875 | AI35: 11816 | AJ35: 4224 | AK35: 0 | AL35: 1410937.53 | AM35: 103025 | AN35: 394328 | AO35: 31461754.62
B36: 31 | C36: 0031 | D36: BILLERICA | E36: 031 | F36: 1 | G36: 1141457 | H36: 0 | I36: 0 | J36: 2732299 | K36: 41389 | L36: 0 | M36: 24013254 | N36: 5344759 | O36: 0 | P36: 2414868 | Q36: 0 | R36: 370097 | S36: 3013260 | T36: 434267 | U36: 0 | V36: 80188 | W36: 0 | X36: 539521 | Y36: 0 | Z36: 0 | AA36: 0 | AB36: 252471 | AC36: 0 | AD36: 226517 | AE36: 37050 | AF36: 187602 | AG36: 462746 | AH36: 74447 | AI36: 390093 | AJ36: 0 | AK36: 111145 | AL36: 868746 | AM36: 17695 | AN36: 2192590 | AO36: 44946461
B37: 32 | C37: 0032 | D37: BLACKSTONE | E37: 032 | F37: 0 | G37: 0 | H37: 0 | I37: 0 | J37: 0 | K37: 0 | L37: 0 | M37: 0 | N37: 0 | O37: 0 | P37: 0 | Q37: 0 | R37: 0 | S37: 0 | T37: 0 | U37: 0 | V37: 0 | W37: 0 | X37: 0 | Y37: 0 | Z37: 0 | AA37: 0 | AB37: 0 | AC37: 0 | AD37: 0 | AE37: 0 | AF37: 0 | AG37: 0 | AH37: 0 | AI37: 0 | AJ37: 0 | AK37: 0 | AL37: 0 | AM37: 0 | AN37: 0 | AO37: 0
B38: 33 | C38: 0033 | D38: BLANDFORD | E38: 033 | F38: 0 | G38: 0 | H38: 0 | I38: 0 | J38: 0 | K38: 0 | L38: 0 | M38: 0 | N38: 0 | O38: 0 | P38: 0 | Q38: 0 | R38: 0 | S38: 0 | T38: 0 | U38: 0 | V38: 0 | W38: 0 | X38: 0 | Y38: 0 | Z38: 0 | AA38: 0 | AB38: 0 | AC38: 0 | AD38: 0 | AE38: 0 | AF38: 0 | AG38: 0 | AH38: 0 | AI38: 0 | AJ38: 0 | AK38: 0 | AL38: 0 | AM38: 0 | AN38: 0 | AO38: 0
B39: 34 | C39: 0034 | D39: BOLTON | E39: 034 | F39: 0 | G39: 0 | H39: 0 | I39: 0 | J39: 0 | K39: 0 | L39: 0 | M39: 0 | N39: 0 | O39: 0 | P39: 0 | Q39: 0 | R39: 0 | S39: 0 | T39: 0 | U39: 0 | V39: 0 | W39: 0 | X39: 0 | Y39: 0 | Z39: 0 | AA39: 0 | AB39: 0 | AC39: 0 | AD39: 0 | AE39: 0 | AF39: 0 | AG39: 0 | AH39: 0 | AI39: 0 | AJ39: 0 | AK39: 0 | AL39: 0 | AM39: 0 | AN39: 0 | AO39: 0
B40: 35 | C40: 0035 | D40: BOSTON | E40: 035 | F40: 1 | G40: 10276609.49 | H40: 760984.76 | I40: 0 | J40: 38631379.75 | K40: 17556796.65 | L40: 0 | M40: 349031883.7 | N40: 18085899.75 | O40: 18074586.47 | P40: 25046991.46 | Q40: 0 | R40: 15271848.26 | S40: 52690193.2 | T40: 2557299.53 | U40: 0 | V40: 233049.06 | W40: 0 | X40: 13960086.71 | Y40: 0 | Z40: 0 | AA40: 0 | AB40: 3059107.6 | AC40: 0 | AD40: 6515926.59 | AE40: 78631.21 | AF40: 96906.56 | AG40: 0 | AH40: 11125283.26 | AI40: 2190820.96 | AJ40: 0 | AK40: 0 | AL40: 8624451.98 | AM40: 1417926.39 | AN40: 6181220.885 | AO40: 601467884.2
B41: 36 | C41: 0036 | D41: BOURNE | E41: 036 | F41: 1 | G41: 207584 | H41: 343157.93 | I41: 0 | J41: 1251389 | K41: 0 | L41: 0 | M41: 9063192 | N41: 2404972 | O41: 0 | P41: 498435 | Q41: 0 | R41: 183431 | S41: 721327 | T41: 205048 | U41: 0 | V41: 0 | W41: 0 | X41: 184405 | Y41: 0 | Z41: 13125 | AA41: 0 | AB41: 32461 | AC41: 0 | AD41: 53648 | AE41: 53386 | AF41: 4195 | AG41: 1074 | AH41: 117833 | AI41: 17875 | AJ41: 0 | AK41: 18350 | AL41: 409169 | AM41: 30442 | AN41: 304631 | AO41: 16119129.93
B42: 37 | C42: 0037 | D42: BOXBOROUGH | E42: 037 | F42: 0 | G42: 0 | H42: 0 | I42: 0 | J42: 0 | K42: 0 | L42: 0 | M42: 0 | N42: 0 | O42: 0 | P42: 0 | Q42: 0 | R42: 0 | S42: 0 | T42: 0 | U42: 0 | V42: 0 | W42: 0 | X42: 0 | Y42: 0 | Z42: 0 | AA42: 0 | AB42: 0 | AC42: 0 | AD42: 0 | AE42: 0 | AF42: 0 | AG42: 0 | AH42: 0 | AI42: 0 | AJ42: 0 | AK42: 0 | AL42: 0 | AM42: 0 | AN42: 0 | AO42: 0
B43: 38 | C43: 0038 | D43: BOXFORD | E43: 038 | F43: 1 | G43: 36382 | H43: 1055 | I43: 0 | J43: 416423 | K43: 284553 | L43: 0 | M43: 3705269 | N43: 1209658 | O43: 70112 | P43: 295200 | Q43: 0 | R43: 159983 | S43: 624615 | T43: 92421 | U43: 0 | V43: 0 | W43: 0 | X43: 0 | Y43: 0 | Z43: 0 | AA43: 0 | AB43: 118593 | AC43: 0 | AD43: 24706 | AE43: 98557 | AF43: 33301 | AG43: 31176 | AH43: 51056 | AI43: 95084 | AJ43: 0 | AK43: 0 | AL43: 14600 | AM43: 0 | AN43: 95578 | AO43: 7458322
B44: 39 | C44: 0039 | D44: BOYLSTON | E44: 039 | F44: 1 | G44: 71542 | H44: 0 | I44: 0 | J44: 134915 | K44: 0 | L44: 32530 | M44: 1100971 | N44: 208135 | O44: 45100 | P44: 44559 | Q44: 0 | R44: 75149 | S44: 200556 | T44: 43511 | U44: 0 | V44: 818 | W44: 0 | X44: 0 | Y44: 0 | Z44: 0 | AA44: 0 | AB44: 19438 | AC44: 0 | AD44: 14819 | AE44: 947 | AF44: 14760 | AG44: 10659 | AH44: 0 | AI44: 17301 | AJ44: 0 | AK44: 1684 | AL44: 0 | AM44: 274 | AN44: 79185 | AO44: 2116853
B45: 40 | C45: 0040 | D45: BRAINTREE | E45: 040 | F45: 1 | G45: 1436794.57 | H45: 0 | I45: 0 | J45: 2636971.55 | K45: 0 | L45: 0 | M45: 23749902.79 | N45: 8584668.53 | O45: 0 | P45: 2104760.54 | Q45: 0 | R45: 744369.74 | S45: 2353812.01 | T45: 453432 | U45: 0 | V45: 164428.08 | W45: 0 | X45: 0 | Y45: 0 | Z45: 0 | AA45: 0 | AB45: 48191.07 | AC45: 0 | AD45: 107034.57 | AE45: 13319.52 | AF45: 313059.18 | AG45: 237291.34 | AH45: 34092 | AI45: 421357.15 | AJ45: 0 | AK45: 92026.19 | AL45: 1101373.47 | AM45: 2613 | AN45: 1922423.59 | AO45: 46521920.89
B46: 41 | C46: 0041 | D46: BREWSTER | E46: 041 | F46: 1 | G46: 73893 | H46: 0 | I46: 0 | J46: 431531 | K46: 0 | L46: 22556 | M46: 3376764 | N46: 29418 | O46: 21338 | P46: 301916 | Q46: 0 | R46: 73618 | S46: 991983.81 | T46: 25590 | U46: 0 | V46: 9893 | W46: 0 | X46: 0 | Y46: 0 | Z46: 0 | AA46: 0 | AB46: 0 | AC46: 0 | AD46: 6971 | AE46: 21228 | AF46: 19124 | AG46: 25646 | AH46: 1538 | AI46: 28788 | AJ46: 120 | AK46: 0 | AL46: 185519 | AM46: 3283 | AN46: 7315 | AO46: 5658032.81
B47: 42 | C47: 0042 | D47: BRIDGEWATER | E47: 042 | F47: 0 | G47: 0 | H47: 0 | I47: 0 | J47: 0 | K47: 0 | L47: 0 | M47: 0 | N47: 0 | O47: 0 | P47: 0 | Q47: 0 | R47: 0 | S47: 0 | T47: 0 | U47: 0 | V47: 0 | W47: 0 | X47: 0 | Y47: 0 | Z47: 0 | AA47: 0 | AB47: 0 | AC47: 0 | AD47: 0 | AE47: 0 | AF47: 0 | AG47: 0 | AH47: 0 | AI47: 0 | AJ47: 0 | AK47: 0 | AL47: 0 | AM47: 0 | AN47: 0 | AO47: 0
B48: 43 | C48: 0043 | D48: BRIMFIELD | E48: 043 | F48: 1 | G48: 0 | H48: 0 | I48: 0 | J48: 146688 | K48: 0 | L48: 35719 | M48: 1745414 | N48: 0 | O48: 0 | P48: 149335 | Q48: 0 | R48: 37906 | S48: 201178 | T48: 36019 | U48: 0 | V48: 0 | W48: 0 | X48: 29090 | Y48: 0 | Z48: 0 | AA48: 0 | AB48: 14042 | AC48: 0 | AD48: 22105 | AE48: 0 | AF48: 0 | AG48: 18357 | AH48: 266 | AI48: 0 | AJ48: 19891 | AK48: 3960 | AL48: 130792 | AM48: 0 | AN48: 172 | AO48: 2590934
B49: 44 | C49: 0044 | D49: BROCKTON | E49: 044 | F49: 1 | G49: 2585672.23 | H49: 653982.4 | I49: 0 | J49: 8234788.87 | K49: 2163953.51 | L49: 1071146 | M49: 87697768.33 | N49: 0 | O49: 856464.09 | P49: 3058640 | Q49: 0 | R49: 1096806.81 | S49: 10048469.28 | T49: 303087.36 | U49: 0 | V49: 367003.95 | W49: 0 | X49: 0 | Y49: 0 | Z49: 0 | AA49: 0 | AB49: 353212.71 | AC49: 0 | AD49: 123133.35 | AE49: 706442.87 | AF49: 59013 | AG49: 0 | AH49: 30177.35 | AI49: 0 | AJ49: 2324947.87 | AK49: 769781.8 | AL49: 5997316.84 | AM49: 182060.76 | AN49: 2025941.99 | AO49: 130709811.4
B50: 45 | C50: 0045 | D50: BROOKFIELD | E50: 045 | F50: 1 | G50: 0 | H50: 0 | I50: 0 | J50: 178151 | K50: 0 | L50: 41793 | M50: 1438647 | N50: 0 | O50: 0 | P50: 118929 | Q50: 0 | R50: 11471 | S50: 244668 | T50: 41793 | U50: 0 | V50: 0 | W50: 0 | X50: 23977 | Y50: 0 | Z50: 3547 | AA50: 0 | AB50: 14440 | AC50: 0 | AD50: 28107 | AE50: 0 | AF50: 1804 | AG50: 29644 | AH50: 0 | AI50: 0 | AJ50: 0 | AK50: 8581 | AL50: 51469 | AM50: 3158 | AN50: 0 | AO50: 2240179
B51: 46 | C51: 0046 | D51: BROOKLINE | E51: 046 | F51: 1 | G51: 2711093 | H51: 0 | I51: 0 | J51: 5228459 | K51: 26801 | L51: 225397 | M51: 48162041 | N51: 10031713 | O51: 153197 | P51: 1093754 | Q51: 0 | R51: 1611911 | S51: 5224267 | T51: 1137944 | U51: 0 | V51: 1017452 | W51: 0 | X51: 368507 | Y51: 0 | Z51: 5642 | AA51: 0 | AB51: 480802 | AC51: 0 | AD51: 511389 | AE51: 1089587 | AF51: 32714 | AG51: 37583 | AH51: 367910 | AI51: 1157605 | AJ51: 0 | AK51: 187804 | AL51: 3692348 | AM51: 0 | AN51: 1334569 | AO51: 85890489
B52: 47 | C52: 0047 | D52: BUCKLAND | E52: 047 | F52: 0 | G52: 0 | H52: 0 | I52: 0 | J52: 0 | K52: 0 | L52: 0 | M52: 0 | N52: 0 | O52: 0 | P52: 0 | Q52: 0 | R52: 0 | S52: 0 | T52: 0 | U52: 0 | V52: 0 | W52: 0 | X52: 0 | Y52: 0 | Z52: 0 | AA52: 0 | AB52: 0 | AC52: 0 | AD52: 0 | AE52: 0 | AF52: 0 | AG52: 0 | AH52: 0 | AI52: 0 | AJ52: 0 | AK52: 0 | AL52: 0 | AM52: 0 | AN52: 0 | AO52: 0
B53: 48 | C53: 0048 | D53: BURLINGTON | E53: 048 | F53: 1 | G53: 1979183.91 | H53: 0 | I53: 0 | J53: 2151389.58 | K53: 696117.68 | L53: 206165.34 | M53: 21440337.01 | N53: 7030785.89 | O53: 940308.92 | P53: 322908.61 | Q53: 0 | R53: 571680.19 | S53: 2236213.23 | T53: 554602.11 | U53: 0 | V53: 161086.56 | W53: 0 | X53: 574538.8 | Y53: 0 | Z53: 39414.5 | AA53: 0 | AB53: 278604.16 | AC53: 0 | AD53: 157019.73 | AE53: 497177.64 | AF53: 37686.73 | AG53: 148444.9 | AH53: 35373.78 | AI53: 0 | AJ53: 0 | AK53: 0 | AL53: 1205784.78 | AM53: 0 | AN53: 304770.15 | AO53: 41569594.2
B54: 49 | C54: 0049 | D54: CAMBRIDGE | E54: 049 | F54: 1 | G54: 3291289.72 | H54: 0 | I54: 0 | J54: 6312383.43 | K54: 941277.14 | L54: 711514.22 | M54: 45311759.77 | N54: 11542758.17 | O54: 1299380.9 | P54: 4072407.38 | Q54: 0 | R54: 2134070.17 | S54: 7539111.66 | T54: 1585204.47 | U54: 0 | V54: 0 | W54: 0 | X54: 0 | Y54: 0 | Z54: 115244.32 | AA54: 0 | AB54: 4438865.98 | AC54: 0 | AD54: 172086.11 | AE54: 1722355.53 | AF54: 45605.68 | AG54: 21063.07 | AH54: 2776281.74 | AI54: 579962.44 | AJ54: 4427.34 | AK54: 249301.6 | AL54: 3724476.81 | AM54: 0 | AN54: 2026477.27 | AO54: 100617304.9
B55: 50 | C55: 0050 | D55: CANTON | E55: 050 | F55: 1 | G55: 842835 | H55: 0 | I55: 0 | J55: 1427221.38 | K55: 143757 | L55: 485029 | M55: 19271518 | N55: 0 | O55: 0 | P55: 1445108 | Q55: 0 | R55: 445512 | S55: 786772.22 | T55: 284363 | U55: 0 | V55: 0 | W55: 0 | X55: 0 | Y55: 0 | Z55: 16356 | AA55: 0 | AB55: 289433 | AC55: 0 | AD55: 14901 | AE55: 12679 | AF55: 174027.84 | AG55: 285266 | AH55: 25163 | AI55: 308761 | AJ55: 2160 | AK55: 0 | AL55: 1241081 | AM55: 0 | AN55: 1015121 | AO55: 28517064.44
B56: 51 | C56: 0051 | D56: CARLISLE | E56: 051 | F56: 1 | G56: 164882.43 | H56: 0 | I56: 0 | J56: 374253.25 | K56: 0 | L56: 44028.11 | M56: 5011157.24 | N56: 183698.23 | O56: 0 | P56: 549381.17 | Q56: 0 | R56: 75471.71 | S56: 441527.65 | T56: 146904.21 | U56: 0 | V56: 0 | W56: 0 | X56: 246010.59 | Y56: 0 | Z56: 25650 | AA56: 0 | AB56: 70182.52 | AC56: 0 | AD56: 0 | AE56: 76665.65 | AF56: 39838.39 | AG56: 69501.21 | AH56: 0 | AI56: 18677.44 | AJ56: 0 | AK56: 27479.86 | AL56: 0 | AM56: 23850.95 | AN56: 291677.12 | AO56: 7880837.73
B57: 52 | C57: 0052 | D57: CARVER | E57: 052 | F57: 1 | G57: 571237 | H57: 0 | I57: 0 | J57: 888343 | K57: 89036 | L57: 9508 | M57: 6864976 | N57: 1682352 | O57: 0 | P57: 549489.91 | Q57: 0 | R57: 176874 | S57: 170562 | T57: 201616 | U57: 0 | V57: 0 | W57: 0 | X57: 189940 | Y57: 0 | Z57: 0 | AA57: 0 | AB57: 90979 | AC57: 0 | AD57: 70123 | AE57: 15977 | AF57: 61613 | AG57: 112130.2 | AH57: 21939 | AI57: 0 | AJ57: 0 | AK57: 72059 | AL57: 629327.89 | AM57: 29233 | AN57: 155685 | AO57: 12653000
B58: 53 | C58: 0053 | D58: CHARLEMONT | E58: 053 | F58: 0 | G58: 0 | H58: 0 | I58: 0 | J58: 0 | K58: 0 | L58: 0 | M58: 0 | N58: 0 | O58: 0 | P58: 0 | Q58: 0 | R58: 0 | S58: 0 | T58: 0 | U58: 0 | V58: 0 | W58: 0 | X58: 0 | Y58: 0 | Z58: 0 | AA58: 0 | AB58: 0 | AC58: 0 | AD58: 0 | AE58: 0 | AF58: 0 | AG58: 0 | AH58: 0 | AI58: 0 | AJ58: 0 | AK58: 0 | AL58: 0 | AM58: 0 | AN58: 0 | AO58: 0
B59: 54 | C59: 0054 | D59: CHARLTON | E59: 054 | F59: 0 | G59: 0 | H59: 0 | I59: 0 | J59: 0 | K59: 0 | L59: 0 | M59: 0 | N59: 0 | O59: 0 | P59: 0 | Q59: 0 | R59: 0 | S59: 0 | T59: 0 | U59: 0 | V59: 0 | W59: 0 | X59: 0 | Y59: 0 | Z59: 0 | AA59: 0 | AB59: 0 | AC59: 0 | AD59: 0 | AE59: 0 | AF59: 0 | AG59: 0 | AH59: 0 | AI59: 0 | AJ59: 0 | AK59: 0 | AL59: 0 | AM59: 0 | AN59: 0 | AO59: 0
B60: 55 | C60: 0055 | D60: CHATHAM | E60: 055 | F60: 0 | G60: 0 | H60: 0 | I60: 0 | J60: 0 | K60: 0 | L60: 0 | M60: 0 | N60: 0 | O60: 0 | P60: 0 | Q60: 0 | R60: 0 | S60: 0 | T60: 0 | U60: 0 | V60: 0 | W60: 0 | X60: 0 | Y60: 0 | Z60: 0 | AA60: 0 | AB60: 0 | AC60: 0 | AD60: 0 | AE60: 0 | AF60: 0 | AG60: 0 | AH60: 0 | AI60: 0 | AJ60: 0 | AK60: 0 | AL60: 0 | AM60: 0 | AN60: 0 | AO60: 0
B61: 56 | C61: 0056 | D61: CHELMSFORD | E61: 056 | F61: 1 | G61: 1463560.61 | H61: 0 | I61: 0 | J61: 1913553 | K61: 0 | L61: 0 | M61: 20737390.04 | N61: 6463935 | O61: 0 | P61: 324485 | Q61: 0 | R61: 538056 | S61: 3730054 | T61: 416525 | U61: 0 | V61: 0 | W61: 0 | X61: 0 | Y61: 0 | Z61: 0 | AA61: 0 | AB61: 121355 | AC61: 0 | AD61: 325275.54 | AE61: 97283 | AF61: 307585.37 | AG61: 476748.06 | AH61: 244411.05 | AI61: 223306.54 | AJ61: 0 | AK61: 238203 | AL61: 1168360.54 | AM61: 0 | AN61: 499119 | AO61: 39289205.75
B62: 57 | C62: 0057 | D62: CHELSEA | E62: 057 | F62: 1 | G62: 1236186.29 | H62: 15682.91 | I62: 0 | J62: 4352629.25 | K62: 0 | L62: 37833.51 | M62: 21752289.21 | N62: 4069940.834 | O62: 0 | P62: 1006245.317 | Q62: 0 | R62: 627883.77 | S62: 3628591.13 | T62: 345591.68 | U62: 0 | V62: 92093.01 | W62: 0 | X62: 235070.9707 | Y62: 0 | Z62: 0 | AA62: 0 | AB62: 2309299.23 | AC62: 0 | AD62: 323854.77 | AE62: 55877.86 | AF62: 147389.35 | AG62: 464853.99 | AH62: 616324.02 | AI62: 753239.55 | AJ62: 0 | AK62: 230601.77 | AL62: 2058892.91 | AM62: 231102.3 | AN62: 341948.21 | AO62: 44933421.84
B63: 58 | C63: 0058 | D63: CHESHIRE | E63: 058 | F63: 0 | G63: 0 | H63: 0 | I63: 0 | J63: 0 | K63: 0 | L63: 0 | M63: 0 | N63: 0 | O63: 0 | P63: 0 | Q63: 0 | R63: 0 | S63: 0 | T63: 0 | U63: 0 | V63: 0 | W63: 0 | X63: 0 | Y63: 0 | Z63: 0 | AA63: 0 | AB63: 0 | AC63: 0 | AD63: 0 | AE63: 0 | AF63: 0 | AG63: 0 | AH63: 0 | AI63: 0 | AJ63: 0 | AK63: 0 | AL63: 0 | AM63: 0 | AN63: 0 | AO63: 0
B64: 59 | C64: 0059 | D64: CHESTER | E64: 059 | F64: 0 | G64: 0 | H64: 0 | I64: 0 | J64: 0 | K64: 0 | L64: 0 | M64: 0 | N64: 0 | O64: 0 | P64: 0 | Q64: 0 | R64: 0 | S64: 0 | T64: 0 | U64: 0 | V64: 0 | W64: 0 | X64: 0 | Y64: 0 | Z64: 0 | AA64: 0 | AB64: 0 | AC64: 0 | AD64: 0 | AE64: 0 | AF64: 0 | AG64: 0 | AH64: 0 | AI64: 0 | AJ64: 0 | AK64: 0 | AL64: 0 | AM64: 0 | AN64: 0 | AO64: 0
B65: 60 | C65: 0060 | D65: CHESTERFIELD | E65: 060 | F65: 0 | G65: 0 | H65: 0 | I65: 0 | J65: 0 | K65: 0 | L65: 0 | M65: 0 | N65: 0 | O65: 0 | P65: 0 | Q65: 0 | R65: 0 | S65: 0 | T65: 0 | U65: 0 | V65: 0 | W65: 0 | X65: 0 | Y65: 0 | Z65: 0 | AA65: 0 | AB65: 0 | AC65: 0 | AD65: 0 | AE65: 0 | AF65: 0 | AG65: 0 | AH65: 0 | AI65: 0 | AJ65: 0 | AK65: 0 | AL65: 0 | AM65: 0 | AN65: 0 | AO65: 0
B66: 61 | C66: 0061 | D66: CHICOPEE | E66: 061 | F66: 1 | G66: 333327 | H66: 1352628 | I66: 0 | J66: 5593443 | K66: 6158 | L66: 432692 | M66: 40800394 | N66: 0 | O66: 156371 | P66: 1628912 | Q66: 0 | R66: 736571 | S66: 6503786 | T66: 327627 | U66: 0 | V66: 70901 | W66: 0 | X66: 1003426.28 | Y66: 0 | Z66: 287 | AA66: 0 | AB66: 18213 | AC66: 0 | AD66: 58929 | AE66: 5081 | AF66: 126045 | AG66: 416188 | AH66: 364082 | AI66: 71728 | AJ66: 0 | AK66: 0 | AL66: 1192697 | AM66: 50858 | AN66: 697157 | AO66: 61947501.28
B67: 62 | C67: 0062 | D67: CHILMARK | E67: 062 | F67: 0 | G67: 0 | H67: 0 | I67: 0 | J67: 0 | K67: 0 | L67: 0 | M67: 0 | N67: 0 | O67: 0 | P67: 0 | Q67: 0 | R67: 0 | S67: 0 | T67: 0 | U67: 0 | V67: 0 | W67: 0 | X67: 0 | Y67: 0 | Z67: 0 | AA67: 0 | AB67: 0 | AC67: 0 | AD67: 0 | AE67: 0 | AF67: 0 | AG67: 0 | AH67: 0 | AI67: 0 | AJ67: 0 | AK67: 0 | AL67: 0 | AM67: 0 | AN67: 0 | AO67: 0
B68: 63 | C68: 0063 | D68: CLARKSBURG | E68: 063 | F68: 1 | G68: 48661 | H68: 0 | I68: 0 | J68: 123848 | K68: 0 | L68: 3728 | M68: 826588 | N68: 54816 | O68: 0 | P68: 55468 | Q68: 0 | R68: 11474 | S68: 154011 | T68: 0 | U68: 0 | V68: 0 | W68: 0 | X68: 0 | Y68: 0 | Z68: 0 | AA68: 0 | AB68: 14719 | AC68: 0 | AD68: 7319 | AE68: 0 | AF68: 0 | AG68: 15642 | AH68: 14676 | AI68: 16985 | AJ68: 0 | AK68: 0 | AL68: 16984 | AM68: 0 | AN68: 14800 | AO68: 1379719
B69: 64 | C69: 0064 | D69: CLINTON | E69: 064 | F69: 1 | G69: 160078.72 | H69: 42809.4 | I69: 0 | J69: 838345.19 | K69: 0 | L69: 0 | M69: 8646500.19 | N69: 432874 | O69: 169984.04 | P69: 760034.25 | Q69: 0 | R69: 150627.07 | S69: 580169.65 | T69: 127317.74 | U69: 0 | V69: 0 | W69: 0 | X69: 0 | Y69: 0 | Z69: 0 | AA69: 0 | AB69: 69367.43 | AC69: 0 | AD69: 89328.58 | AE69: 73861.7 | AF69: 18447.84 | AG69: 21792.3 | AH69: 14854.64 | AI69: 39713.21 | AJ69: 0 | AK69: 12949.29 | AL69: 585131.66 | AM69: 10712 | AN69: 161965.05 | AO69: 13006863.95
B70: 65 | C70: 0065 | D70: COHASSET | E70: 065 | F70: 1 | G70: 276480.52 | H70: 185165.36 | I70: 0 | J70: 836108.69 | K70: 70584.76 | L70: 0 | M70: 9103587.77 | N70: 518797.12 | O70: 1530 | P70: 483702.66 | Q70: 0 | R70: 142394.07 | S70: 599172.84 | T70: 196381.33 | U70: 0 | V70: 650 | W70: 0 | X70: 0 | Y70: 0 | Z70: 0 | AA70: 0 | AB70: 114809.5 | AC70: 0 | AD70: 62136.39 | AE70: 31124.69 | AF70: 37235.35 | AG70: 173201.49 | AH70: 50409.1 | AI70: 16635.79 | AJ70: 5033.8 | AK70: 14464.05 | AL70: 605753.64 | AM70: 29520.79 | AN70: 141108.34 | AO70: 13695988.05
B71: =B70+1 -> 66 | C71: 0066 | D71: COLRAIN | E71: 066 | F71: 0 | G71: 0 | H71: 0 | I71: 0 | J71: 0 | K71: 0 | L71: 0 | M71: 0 | N71: 0 | O71: 0 | P71: 0 | Q71: 0 | R71: 0 | S71: 0 | T71: 0 | U71: 0 | V71: 0 | W71: 0 | X71: 0 | Y71: 0 | Z71: 0 | AA71: 0 | AB71: 0 | AC71: 0 | AD71: 0 | AE71: 0 | AF71: 0 | AG71: 0 | AH71: 0 | AI71: 0 | AJ71: 0 | AK71: 0 | AL71: 0 | AM71: 0 | AN71: 0 | AO71: 0
B72: 67 | C72: 0067 | D72: CONCORD | E72: 067 | F72: 1 | G72: 227951.19 | H72: 23183.86 | I72: 0 | J72: 1448447.32 | K72: 235982.2 | L72: 0 | M72: 15577445.03 | N72: 403067.1 | O72: 92429.66 | P72: 1411607.17 | Q72: 0 | R72: 172856.4 | S72: 3771819.48 | T72: 495556.42 | U72: 0 | V72: 0 | W72: 0 | X72: 92092.67 | Y72: 0 | Z72: 11400 | AA72: 0 | AB72: 358277.24 | AC72: 0 | AD72: 61729.39 | AE72: 29940.42 | AF72: 50886.6 | AG72: 443307.84 | AH72: 143664.86 | AI72: 493034.3 | AJ72: 11960.75 | AK72: 0 | AL72: 727859.95 | AM72: 15866.26 | AN72: 286035.74 | AO72: 26586401.85
B73: 68 | C73: 0068 | D73: CONWAY | E73: 068 | F73: 1 | G73: 44545 | H73: 0 | I73: 0 | J73: 139614 | K73: 0 | L73: 3616 | M73: 575410 | N73: 127588 | O73: 0 | P73: 99928 | Q73: 0 | R73: 22364 | S73: 78754 | T73: 64803 | U73: 0 | V73: 0 | W73: 0 | X73: 10428 | Y73: 0 | Z73: 0 | AA73: 0 | AB73: 12255 | AC73: 0 | AD73: 2059 | AE73: 7347 | AF73: 3128 | AG73: 18215 | AH73: 13951 | AI73: 945 | AJ73: 24354 | AK73: 8483 | AL73: 0 | AM73: 3316 | AN73: 71215 | AO73: 1332318
B74: 69 | C74: 0069 | D74: CUMMINGTON | E74: 069 | F74: 0 | G74: 0 | H74: 0 | I74: 0 | J74: 0 | K74: 0 | L74: 0 | M74: 0 | N74: 0 | O74: 0 | P74: 0 | Q74: 0 | R74: 0 | S74: 0 | T74: 0 | U74: 0 | V74: 0 | W74: 0 | X74: 0 | Y74: 0 | Z74: 0 | AA74: 0 | AB74: 0 | AC74: 0 | AD74: 0 | AE74: 0 | AF74: 0 | AG74: 0 | AH74: 0 | AI74: 0 | AJ74: 0 | AK74: 0 | AL74: 0 | AM74: 0 | AN74: 0 | AO74: 0
B75: 70 | C75: 0070 | D75: DALTON | E75: 070 | F75: 0 | G75: 0 | H75: 0 | I75: 0 | J75: 0 | K75: 0 | L75: 0 | M75: 0 | N75: 0 | O75: 0 | P75: 0 | Q75: 0 | R75: 0 | S75: 0 | T75: 0 | U75: 0 | V75: 0 | W75: 0 | X75: 0 | Y75: 0 | Z75: 0 | AA75: 0 | AB75: 0 | AC75: 0 | AD75: 0 | AE75: 0 | AF75: 0 | AG75: 0 | AH75: 0 | AI75: 0 | AJ75: 0 | AK75: 0 | AL75: 0 | AM75: 0 | AN75: 0 | AO75: 0
B76: 71 | C76: 0071 | D76: DANVERS | E76: 071 | F76: 1 | G76: 1023852.11 | H76: 0 | I76: 0 | J76: 1829242.54 | K76: 8079.01 | L76: 0 | M76: 20429789.2 | N76: 4950 | O76: 26314.2 | P76: 640886 | Q76: 0 | R76: 368517.64 | S76: 2086523.19 | T76: 282797.25 | U76: 0 | V76: 302.65 | W76: 0 | X76: 928626.78 | Y76: 0 | Z76: 75907.87 | AA76: 0 | AB76: 122379.81 | AC76: 0 | AD76: 307422.66 | AE76: 86487.44 | AF76: 462152.37 | AG76: 260336.02 | AH76: 0 | AI76: 0 | AJ76: 0 | AK76: 203314.4 | AL76: 1340279.64 | AM76: 24066.11 | AN76: 417958.94 | AO76: 30930185.83
B77: 72 | C77: 0072 | D77: DARTMOUTH | E77: 072 | F77: 1 | G77: 536146 | H77: 0 | I77: 0 | J77: 2125131 | K77: 0 | L77: 1751 | M77: 20469246.18 | N77: 229986 | O77: 36410 | P77: 813697 | Q77: 0 | R77: 300410 | S77: 1786236 | T77: 303204 | U77: 0 | V77: 0 | W77: 0 | X77: 0 | Y77: 0 | Z77: 0 | AA77: 0 | AB77: 230851 | AC77: 0 | AD77: 255785 | AE77: 40294 | AF77: 0 | AG77: 347685 | AH77: 79340 | AI77: 343918 | AJ77: 0 | AK77: 0 | AL77: 1477830 | AM77: 26931 | AN77: 379320 | AO77: 29784171.18
B78: 73 | C78: 0073 | D78: DEDHAM | E78: 073 | F78: 1 | G78: 524635.15 | H78: 0 | I78: 0 | J78: 1567881.95 | K78: 0 | L78: 0 | M78: 12939282.94 | N78: 5489973.04 | O78: 463207.7 | P78: 1359829.31 | Q78: 0 | R78: 532986.49 | S78: 1848702.39 | T78: 442542.92 | U78: 0 | V78: 5415.11 | W78: 0 | X78: 360449.97 | Y78: 0 | Z78: 18287.5 | AA78: 0 | AB78: 470557.87 | AC78: 0 | AD78: 169987.85 | AE78: 38161.49 | AF78: 69281.19 | AG78: 391864.55 | AH78: 14686.86 | AI78: 83426.72 | AJ78: 0 | AK78: 162655.08 | AL78: 1254964.79 | AM78: 20900.75 | AN78: 420661.22 | AO78: 28650342.84
B79: 74 | C79: 0074 | D79: DEERFIELD | E79: 074 | F79: 1 | G79: 119915 | H79: 0 | I79: 0 | J79: 266988 | K79: 0 | L79: 12227 | M79: 1442387 | N79: 517758 | O79: 0 | P79: 259724 | Q79: 0 | R79: 55268 | S79: 255017 | T79: 45165 | U79: 0 | V79: 0 | W79: 0 | X79: 26335 | Y79: 0 | Z79: 0 | AA79: 0 | AB79: 40215 | AC79: 0 | AD79: 8523 | AE79: 9232 | AF79: 9109 | AG79: 34300 | AH79: 64220 | AI79: 72 | AJ79: 20973 | AK79: 16891 | AL79: 35004 | AM79: 8654 | AN79: 71693 | AO79: 3319670
B80: 75 | C80: 0075 | D80: DENNIS | E80: 075 | F80: 0 | G80: 0 | H80: 0 | I80: 0 | J80: 0 | K80: 0 | L80: 0 | M80: 0 | N80: 0 | O80: 0 | P80: 0 | Q80: 0 | R80: 0 | S80: 0 | T80: 0 | U80: 0 | V80: 0 | W80: 0 | X80: 0 | Y80: 0 | Z80: 0 | AA80: 0 | AB80: 0 | AC80: 0 | AD80: 0 | AE80: 0 | AF80: 0 | AG80: 0 | AH80: 0 | AI80: 0 | AJ80: 0 | AK80: 0 | AL80: 0 | AM80: 0 | AN80: 0 | AO80: 0
B81: 76 | C81: 0076 | D81: DIGHTON | E81: 076 | F81: 0 | G81: 0 | H81: 0 | I81: 0 | J81: 0 | K81: 0 | L81: 0 | M81: 0 | N81: 0 | O81: 0 | P81: 0 | Q81: 0 | R81: 0 | S81: 0 | T81: 0 | U81: 0 | V81: 0 | W81: 0 | X81: 0 | Y81: 0 | Z81: 0 | AA81: 0 | AB81: 0 | AC81: 0 | AD81: 0 | AE81: 0 | AF81: 0 | AG81: 0 | AH81: 0 | AI81: 0 | AJ81: 0 | AK81: 0 | AL81: 0 | AM81: 0 | AN81: 0 | AO81: 0
B82: 77 | C82: 0077 | D82: DOUGLAS | E82: 077 | F82: 1 | G82: 228376 | H82: 0 | I82: 0 | J82: 720413.06 | K82: 51276.23 | L82: 0 | M82: 5582732.1 | N82: 0 | O82: 0 | P82: 368144.24 | Q82: 0 | R82: 87293 | S82: 903845.72 | T82: 35428.54 | U82: 0 | V82: 0 | W82: 0 | X82: 0 | Y82: 0 | Z82: 0 | AA82: 0 | AB82: 30271.98 | AC82: 0 | AD82: 112333.08 | AE82: 86613.33 | AF82: 37956.18 | AG82: 2050.08 | AH82: 0 | AI82: 127272.03 | AJ82: 0 | AK82: 18847.32 | AL82: 355844.88 | AM82: 14831.83 | AN82: 136026 | AO82: 8899555.6
B83: 78 | C83: 0078 | D83: DOVER | E83: 078 | F83: 1 | G83: 172636.72 | H83: 0 | I83: 0 | J83: 350742.59 | K83: 20717.67 | L83: 0 | M83: 2737116.28 | N83: 770711 | O83: 0 | P83: 257841 | Q83: 0 | R83: 43701.96 | S83: 609921.5 | T83: 108861.4 | U83: 0 | V83: 0 | W83: 0 | X83: 35595.53 | Y83: 0 | Z83: 0 | AA83: 0 | AB83: 12667.17 | AC83: 0 | AD83: 37302.12 | AE83: 5285.89 | AF83: 11537.54 | AG83: 71697.71 | AH83: 23017.46 | AI83: 5224.61 | AJ83: 0 | AK83: 0 | AL83: 96335.96 | AM83: 0 | AN83: 104941 | AO83: 5475855.11
B84: 79 | C84: 0079 | D84: DRACUT | E84: 079 | F84: 1 | G84: 324033 | H84: 0 | I84: 0 | J84: 1417619 | K84: 0 | L84: 0 | M84: 12088535.58 | N84: 2671850 | O84: 37417 | P84: 417498 | Q84: 0 | R84: 296172 | S84: 1696735 | T84: 43475 | U84: 0 | V84: 1292 | W84: 0 | X84: 346524.13 | Y84: 0 | Z84: 13911 | AA84: 0 | AB84: 126388 | AC84: 0 | AD84: 48563 | AE84: 11746 | AF84: 13392 | AG84: 220426 | AH84: 16645 | AI84: 0 | AJ84: 75512 | AK84: 18979 | AL84: 473511 | AM84: 0 | AN84: 328630 | AO84: 20688853.71
B85: 80 | C85: 0080 | D85: DUDLEY | E85: 080 | F85: 0 | G85: 0 | H85: 0 | I85: 0 | J85: 0 | K85: 0 | L85: 0 | M85: 0 | N85: 0 | O85: 0 | P85: 0 | Q85: 0 | R85: 0 | S85: 0 | T85: 0 | U85: 0 | V85: 0 | W85: 0 | X85: 0 | Y85: 0 | Z85: 0 | AA85: 0 | AB85: 0 | AC85: 0 | AD85: 0 | AE85: 0 | AF85: 0 | AG85: 0 | AH85: 0 | AI85: 0 | AJ85: 0 | AK85: 0 | AL85: 0 | AM85: 0 | AN85: 0 | AO85: 0
B86: 81 | C86: 0081 | D86: DUNSTABLE | E86: 081 | F86: 0 | G86: 0 | H86: 0 | I86: 0 | J86: 0 | K86: 0 | L86: 0 | M86: 0 | N86: 0 | O86: 0 | P86: 0 | Q86: 0 | R86: 0 | S86: 0 | T86: 0 | U86: 0 | V86: 0 | W86: 0 | X86: 0 | Y86: 0 | Z86: 0 | AA86: 0 | AB86: 0 | AC86: 0 | AD86: 0 | AE86: 0 | AF86: 0 | AG86: 0 | AH86: 0 | AI86: 0 | AJ86: 0 | AK86: 0 | AL86: 0 | AM86: 0 | AN86: 0 | AO86: 0
B87: 82 | C87: 0082 | D87: DUXBURY | E87: 082 | F87: 1 | G87: 191234.09 | H87: 0 | I87: 0 | J87: 1655560.85 | K87: 648206.18 | L87: 0 | M87: 14164712.65 | N87: 3796888.39 | O87: 0 | P87: 562507.17 | Q87: 0 | R87: 316127.43 | S87: 976347.49 | T87: 317899.4 | U87: 0 | V87: 0 | W87: 0 | X87: 0 | Y87: 0 | Z87: 0 | AA87: 0 | AB87: 201340.41 | AC87: 0 | AD87: 52621.52 | AE87: 434792.37 | AF87: 23600.68 | AG87: 3748.26 | AH87: 4154.54 | AI87: 382681.5 | AJ87: 36132.2 | AK87: 358643.39 | AL87: 1119993.71 | AM87: 0 | AN87: 407824.73 | AO87: 25655016.96
B88: 83 | C88: 0083 | D88: EAST BRIDGEWATER | E88: 083 | F88: 1 | G88: 115436 | H88: 0 | I88: 0 | J88: 915916 | K88: 94500 | L88: 0 | M88: 9834913 | N88: 0 | O88: 82000 | P88: 653731 | Q88: 0 | R88: 164211 | S88: 354388 | T88: 140356 | U88: 0 | V88: 150 | W88: 0 | X88: 0 | Y88: 0 | Z88: 0 | AA88: 0 | AB88: 38639 | AC88: 0 | AD88: 95408 | AE88: 75045 | AF88: 27358 | AG88: 57689 | AH88: 99306 | AI88: 127287 | AJ88: 0 | AK88: 22885 | AL88: 782460 | AM88: 21575 | AN88: 448333 | AO88: 14151586
B89: 84 | C89: 0084 | D89: EAST BROOKFIELD | E89: 084 | F89: 0 | G89: 0 | H89: 0 | I89: 0 | J89: 0 | K89: 0 | L89: 0 | M89: 0 | N89: 0 | O89: 0 | P89: 0 | Q89: 0 | R89: 0 | S89: 0 | T89: 0 | U89: 0 | V89: 0 | W89: 0 | X89: 0 | Y89: 0 | Z89: 0 | AA89: 0 | AB89: 0 | AC89: 0 | AD89: 0 | AE89: 0 | AF89: 0 | AG89: 0 | AH89: 0 | AI89: 0 | AJ89: 0 | AK89: 0 | AL89: 0 | AM89: 0 | AN89: 0 | AO89: 0
B90: 85 | C90: 0085 | D90: EASTHAM | E90: 085 | F90: 1 | G90: 18717 | H90: 0 | I90: 0 | J90: 212082 | K90: 0 | L90: 16432 | M90: 1777672 | N90: 20796 | O90: 10920 | P90: 130560 | Q90: 0 | R90: 53395 | S90: 283588 | T90: 37897 | U90: 0 | V90: 4738 | W90: 0 | X90: 0 | Y90: 0 | Z90: 0 | AA90: 0 | AB90: 5227 | AC90: 0 | AD90: 9916 | AE90: 11069 | AF90: 8998 | AG90: 17110 | AH90: 7093 | AI90: 20411 | AJ90: 40721 | AK90: 1044 | AL90: 76709 | AM90: 2660 | AN90: 4985 | AO90: 2772740
B91: 86 | C91: 0086 | D91: EASTHAMPTON | E91: 086 | F91: 1 | G91: 223235.51 | H91: 0 | I91: 0 | J91: 861844.88 | K91: 14287 | L91: 0 | M91: 6287877.56 | N91: 22305.63 | O91: 0 | P91: 129402.64 | Q91: 0 | R91: 123966.97 | S91: 992085.72 | T91: 69644.1 | U91: 0 | V91: 0 | W91: 0 | X91: 266.08 | Y91: 0 | Z91: 0 | AA91: 0 | AB91: 22854.19 | AC91: 0 | AD91: 64393.09 | AE91: 37417.09 | AF91: 2263.03 | AG91: 71545.7 | AH91: 39661.35 | AI91: 80826.85 | AJ91: 0 | AK91: 0 | AL91: 413738.92 | AM91: 2495.5 | AN91: 234836.78 | AO91: 9694948.59
B92: 87 | C92: 0087 | D92: EAST LONGMEADOW | E92: 087 | F92: 1 | G92: 330029.95 | H92: 75550.71 | I92: 0 | J92: 1292049.86 | K92: 60837 | L92: 1145.16 | M92: 12109640.85 | N92: 2683347.92 | O92: 0 | P92: 1449153.28 | Q92: 0 | R92: 213356.16 | S92: 1549362.14 | T92: 246381.67 | U92: 0 | V92: 449137.27 | W92: 0 | X92: 275039 | Y92: 0 | Z92: 16624 | AA92: 0 | AB92: 42447.45 | AC92: 0 | AD92: 206533.76 | AE92: 56920.14 | AF92: 73167.71 | AG92: 243925.12 | AH92: 296745.8 | AI92: 43331.38 | AJ92: 1626.51 | AK92: 61344.04 | AL92: 1044129.85 | AM92: 0 | AN92: 268347.22 | AO92: 23090173.95
B93: 88 | C93: 0088 | D93: EASTON | E93: 088 | F93: 1 | G93: 265705.47 | H93: 0 | I93: 0 | J93: 1819645.5 | K93: 296955.03 | L93: 220095.11 | M93: 18712736.4 | N93: 835723.24 | O93: 0 | P93: 1418246.34 | Q93: 0 | R93: 376261.64 | S93: 1395525.82 | T93: 304632.56 | U93: 0 | V93: 9031.26 | W93: 0 | X93: 0 | Y93: 0 | Z93: 30076.5 | AA93: 0 | AB93: 255962.06 | AC93: 0 | AD93: 339750.49 | AE93: 22441.95 | AF93: 120547.73 | AG93: 328922.84 | AH93: 89760.6 | AI93: 327724.76 | AJ93: 0 | AK93: 0 | AL93: 1135819.93 | AM93: 0 | AN93: 632779.32 | AO93: 28938344.55
B94: 89 | C94: 0089 | D94: EDGARTOWN | E94: 089 | F94: 1 | G94: 107001 | H94: 0 | I94: 0 | J94: 456000 | K94: 0 | L94: 75913 | M94: 3224478 | N94: 258713 | O94: 77268 | P94: 56233 | Q94: 0 | R94: 58607 | S94: 1018589 | T94: 113907 | U94: 0 | V94: 0 | W94: 0 | X94: 37860 | Y94: 0 | Z94: 90 | AA94: 0 | AB94: 43864 | AC94: 0 | AD94: 38552 | AE94: 10662 | AF94: 13526 | AG94: 67837 | AH94: 78329 | AI94: 33884 | AJ94: 10472 | AK94: 8374 | AL94: 215733 | AM94: 0 | AN94: 55804 | AO94: 6061696
B95: 90 | C95: 0090 | D95: EGREMONT | E95: 090 | F95: 0 | G95: 0 | H95: 0 | I95: 0 | J95: 0 | K95: 0 | L95: 0 | M95: 0 | N95: 0 | O95: 0 | P95: 0 | Q95: 0 | R95: 0 | S95: 0 | T95: 0 | U95: 0 | V95: 0 | W95: 0 | X95: 0 | Y95: 0 | Z95: 0 | AA95: 0 | AB95: 0 | AC95: 0 | AD95: 0 | AE95: 0 | AF95: 0 | AG95: 0 | AH95: 0 | AI95: 0 | AJ95: 0 | AK95: 0 | AL95: 0 | AM95: 0 | AN95: 0 | AO95: 0
B96: 91 | C96: 0091 | D96: ERVING | E96: 091 | F96: 1 | G96: 25242.16 | H96: 0 | I96: 0 | J96: 158349 | K96: 0 | L96: 0 | M96: 802142 | N96: 369378 | O96: 34543 | P96: 184920 | Q96: 0 | R96: 22001 | S96: 360463 | T96: 68054 | U96: 0 | V96: 0 | W96: 0 | X96: 0 | Y96: 0 | Z96: 1495 | AA96: 0 | AB96: 18341 | AC96: 0 | AD96: 18929 | AE96: 7362 | AF96: 4602 | AG96: 13329 | AH96: 31984 | AI96: 0 | AJ96: 0 | AK96: 9229 | AL96: 0 | AM96: 316 | AN96: 74177 | AO96: 2204856.16
B97: 92 | C97: 0092 | D97: ESSEX | E97: 092 | F97: 0 | G97: 0 | H97: 0 | I97: 0 | J97: 0 | K97: 0 | L97: 0 | M97: 0 | N97: 0 | O97: 0 | P97: 0 | Q97: 0 | R97: 0 | S97: 0 | T97: 0 | U97: 0 | V97: 0 | W97: 0 | X97: 0 | Y97: 0 | Z97: 0 | AA97: 0 | AB97: 0 | AC97: 0 | AD97: 0 | AE97: 0 | AF97: 0 | AG97: 0 | AH97: 0 | AI97: 0 | AJ97: 0 | AK97: 0 | AL97: 0 | AM97: 0 | AN97: 0 | AO97: 0
B98: 93 | C98: 0093 | D98: EVERETT | E98: 093 | F98: 1 | G98: 852005 | H98: 1540871 | I98: 0 | J98: 3586022 | K98: 7875 | L98: 434000 | M98: 38540640 | N98: 0 | O98: 0 | P98: 2600454 | Q98: 0 | R98: 1144261 | S98: 2216346 | T98: 621174 | U98: 0 | V98: 0 | W98: 0 | X98: 1215570 | Y98: 0 | Z98: 0 | AA98: 0 | AB98: 209816 | AC98: 0 | AD98: 258755 | AE98: 16388 | AF98: 214188 | AG98: 2381596 | AH98: 0 | AI98: 0 | AJ98: 49764 | AK98: 0 | AL98: 1394584 | AM98: 0 | AN98: 188654 | AO98: 57472963
B99: 94 | C99: 0094 | D99: FAIRHAVEN | E99: 094 | F99: 1 | G99: 245799.2 | H99: 6705.5 | I99: 0 | J99: 1257654.76 | K99: 0 | L99: 14093.78 | M99: 8472624.18 | N99: 1084806.15 | O99: 0 | P99: 0 | Q99: 0 | R99: 230979.37 | S99: 815625.32 | T99: 46794.53 | U99: 0 | V99: 13854.05 | W99: 0 | X99: 0 | Y99: 0 | Z99: 0 | AA99: 0 | AB99: 66425.45 | AC99: 0 | AD99: 24537.82 | AE99: 2194.99 | AF99: 9029.39 | AG99: 163531.42 | AH99: 168196.85 | AI99: 20060.27 | AJ99: 298047.33 | AK99: 90677.13 | AL99: 647544.33 | AM99: 6390.53 | AN99: 138048.5 | AO99: 13823620.85
B100: 95 | C100: 0095 | D100: FALL RIVER | E100: 095 | F100: 1 | G100: 0 | H100: 705402 | I100: 0 | J100: 5167632 | K100: 727736 | L100: 34539 | M100: 44340717 | N100: 0 | O100: 0 | P100: 2157255 | Q100: 0 | R100: 919696 | S100: 5140363 | T100: 0 | U100: 0 | V100: 32000 | W100: 0 | X100: 0 | Y100: 0 | Z100: 0 | AA100: 0 | AB100: 554166 | AC100: 0 | AD100: 462820 | AE100: 0 | AF100: 0 | AG100: 331325 | AH100: 1250973 | AI100: 0 | AJ100: 0 | AK100: 0 | AL100: 3221610 | AM100: 0 | AN100: 841661 | AO100: 65887895
B101: 96 | C101: 0096 | D101: FALMOUTH | E101: 096 | F101: 1 | G101: 531835 | H101: 0 | I101: 0 | J101: 2127107.75 | K101: 1168170 | L101: 0 | M101: 21750862 | N101: 0 | O101: 0 | P101: 354395 | Q101: 0 | R101: 366979 | S101: 2253867 | T101: 469671 | U101: 0 | V101: 0 | W101: 0 | X101: 219707 | Y101: 0 | Z101: 50042 | AA101: 0 | AB101: 57030 | AC101: 0 | AD101: 166601 | AE101: 74795 | AF101: 132581 | AG101: 349214 | AH101: 391750.75 | AI101: 128615 | AJ101: 6416 | AK101: 32006 | AL101: 1493801 | AM101: 9501 | AN101: 462250 | AO101: 32597196.5
B102: 97 | C102: 0097 | D102: FITCHBURG | E102: 097 | F102: 1 | G102: 524408.2 | H102: 0 | I102: 0 | J102: 2579997 | K102: 780774.74 | L102: 0 | M102: 23399242.31 | N102: 54371 | O102: 0 | P102: 982450.11 | Q102: 0 | R102: 522820.94 | S102: 2463142.41 | T102: 74133.49 | U102: 0 | V102: 22013 | W102: 0 | X102: 546062.2 | Y102: 0 | Z102: 83475 | AA102: 0 | AB102: 10854 | AC102: 0 | AD102: 0 | AE102: 574.85 | AF102: 3367 | AG102: 0 | AH102: 7721 | AI102: 0 | AJ102: 0 | AK102: 0 | AL102: 1268837.381 | AM102: 6371 | AN102: 657164.37 | AO102: 33987780
B103: 98 | C103: 0098 | D103: FLORIDA | E103: 098 | F103: 1 | G103: 23560 | H103: 0 | I103: 0 | J103: 110748 | K103: 0 | L103: 2429 | M103: 485838 | N103: 49870 | O103: 0 | P103: 38982 | Q103: 0 | R103: 3049 | S103: 106493 | T103: 0 | U103: 0 | V103: 0 | W103: 0 | X103: 0 | Y103: 0 | Z103: 2144 | AA103: 0 | AB103: 5922 | AC103: 0 | AD103: 2037 | AE103: 0 | AF103: 10 | AG103: 24769 | AH103: 172 | AI103: 12130 | AJ103: 0 | AK103: 0 | AL103: 1018 | AM103: 0 | AN103: 3333 | AO103: 872504
B104: 99 | C104: 0099 | D104: FOXBOROUGH | E104: 099 | F104: 1 | G104: 653711.14 | H104: 0 | I104: 0 | J104: 1607209.68 | K104: 381698.43 | L104: 7304.43 | M104: 13211749.49 | N104: 3553128.17 | O104: 74533.96 | P104: 348283.31 | Q104: 0 | R104: 187467.76 | S104: 1175125.02 | T104: 224940.74 | U104: 0 | V104: 0 | W104: 0 | X104: 459597 | Y104: 0 | Z104: 8767.5 | AA104: 0 | AB104: 157815.55 | AC104: 0 | AD104: 208959.51 | AE104: 43719.02 | AF104: 71502.98 | AG104: 264428.12 | AH104: 17413.73 | AI104: 36786.3 | AJ104: 0 | AK104: 1544.88 | AL104: 1159956.61 | AM104: 27199.13 | AN104: 277305.39 | AO104: 24160147.85
B105: 100 | C105: 0100 | D105: FRAMINGHAM | E105: 100 | F105: 1 | G105: 1884669 | H105: 211338 | I105: 0 | J105: 5717321 | K105: 988118 | L105: 33294 | M105: 35224725 | N105: 19694097 | O105: 120801 | P105: 3852065 | Q105: 0 | R105: 995679 | S105: 7590440 | T105: 346684 | U105: 0 | V105: 200903 | W105: 0 | X105: 0 | Y105: 0 | Z105: 66340 | AA105: 0 | AB105: 432444 | AC105: 0 | AD105: 65307 | AE105: 106328 | AF105: 478547 | AG105: 730131 | AH105: 20744 | AI105: 108208 | AJ105: 0 | AK105: 41757 | AL105: 3338543 | AM105: 38778 | AN105: 973420 | AO105: 83260681
B106: 101 | C106: 0101 | D106: FRANKLIN | E106: 101 | F106: 1 | G106: 601595.01 | H106: 0 | I106: 0 | J106: 3390626.13 | K106: 0 | L106: 764 | M106: 22996690 | N106: 6887620 | O106: 0 | P106: 2722739 | Q106: 0 | R106: 494742 | S106: 1138286 | T106: 203148 | U106: 0 | V106: 0 | W106: 0 | X106: 584149 | Y106: 0 | Z106: 70300 | AA106: 0 | AB106: 674984 | AC106: 0 | AD106: 182627 | AE106: 25886 | AF106: 109849 | AG106: 415477 | AH106: 8369 | AI106: 275882 | AJ106: 0 | AK106: 13698 | AL106: 1215810 | AM106: 8179 | AN106: 846131 | AO106: 42867551.14
B107: 102 | C107: 0102 | D107: FREETOWN | E107: 102 | F107: 0 | G107: 0 | H107: 0 | I107: 0 | J107: 0 | K107: 0 | L107: 0 | M107: 0 | N107: 0 | O107: 0 | P107: 0 | Q107: 0 | R107: 0 | S107: 0 | T107: 0 | U107: 0 | V107: 0 | W107: 0 | X107: 0 | Y107: 0 | Z107: 0 | AA107: 0 | AB107: 0 | AC107: 0 | AD107: 0 | AE107: 0 | AF107: 0 | AG107: 0 | AH107: 0 | AI107: 0 | AJ107: 0 | AK107: 0 | AL107: 0 | AM107: 0 | AN107: 0 | AO107: 0
B108: 103 | C108: 0103 | D108: GARDNER | E108: 103 | F108: 1 | G108: 184950 | H108: 0 | I108: 0 | J108: 1285608 | K108: 0 | L108: 8518 | M108: 10734284 | N108: 0 | O108: 0 | P108: 552890 | Q108: 0 | R108: 240556 | S108: 1114854 | T108: 0 | U108: 0 | V108: 0 | W108: 0 | X108: 330932 | Y108: 0 | Z108: 0 | AA108: 0 | AB108: 43476 | AC108: 0 | AD108: 13765 | AE108: 238351 | AF108: 12021 | AG108: 51747 | AH108: 53643 | AI108: 33449 | AJ108: 0 | AK108: 220505 | AL108: 900030 | AM108: 38771 | AN108: 166495 | AO108: 16224845
B109: 104 | C109: 0104 | D109: GAY HEAD | E109: 104 | F109: 0 | G109: 0 | H109: 0 | I109: 0 | J109: 0 | K109: 0 | L109: 0 | M109: 0 | N109: 0 | O109: 0 | P109: 0 | Q109: 0 | R109: 0 | S109: 0 | T109: 0 | U109: 0 | V109: 0 | W109: 0 | X109: 0 | Y109: 0 | Z109: 0 | AA109: 0 | AB109: 0 | AC109: 0 | AD109: 0 | AE109: 0 | AF109: 0 | AG109: 0 | AH109: 0 | AI109: 0 | AJ109: 0 | AK109: 0 | AL109: 0 | AM109: 0 | AN109: 0 | AO109: 0
B110: 105 | C110: 0105 | D110: GEORGETOWN | E110: 105 | F110: 1 | G110: 322116.52 | H110: 0 | I110: 0 | J110: 679082.43 | K110: 0 | L110: 159395.22 | M110: 5868120.83 | N110: 1202419.72 | O110: 0 | P110: 530013.57 | Q110: 0 | R110: 218946.07 | S110: 640366.43 | T110: 123958.89 | U110: 0 | V110: 82410 | W110: 0 | X110: 0 | Y110: 0 | Z110: 0 | AA110: 0 | AB110: 72147.91 | AC110: 0 | AD110: 89594.95 | AE110: 95299.62 | AF110: 4477.54 | AG110: 73045.05 | AH110: 105237.18 | AI110: 167101.19 | AJ110: 0 | AK110: 899 | AL110: 447439.88 | AM110: 17638.8 | AN110: 0 | AO110: 10899710.8
B111: 106 | C111: 0106 | D111: GILL | E111: 106 | F111: 0 | G111: 0 | H111: 0 | I111: 0 | J111: 0 | K111: 0 | L111: 0 | M111: 0 | N111: 0 | O111: 0 | P111: 0 | Q111: 0 | R111: 0 | S111: 0 | T111: 0 | U111: 0 | V111: 0 | W111: 0 | X111: 0 | Y111: 0 | Z111: 0 | AA111: 0 | AB111: 0 | AC111: 0 | AD111: 0 | AE111: 0 | AF111: 0 | AG111: 0 | AH111: 0 | AI111: 0 | AJ111: 0 | AK111: 0 | AL111: 0 | AM111: 0 | AN111: 0 | AO111: 0
B112: 107 | C112: 0107 | D112: GLOUCESTER | E112: 107 | F112: 1 | G112: 253493.96 | H112: 0 | I112: 0 | J112: 1888234.65 | K112: 0 | L112: 332886.7 | M112: 14560853.01 | N112: 4302576.39 | O112: 119548.34 | P112: 996966.14 | Q112: 0 | R112: 388268.17 | S112: 2337763.38 | T112: 51976.91 | U112: 0 | V112: 766.96 | W112: 0 | X112: 73210.24 | Y112: 0 | Z112: 0 | AA112: 0 | AB112: 344150.94 | AC112: 0 | AD112: 230827.56 | AE112: 0 | AF112: 42912.01 | AG112: 214036.54 | AH112: 10248.5 | AI112: 44002.37 | AJ112: 0 | AK112: 14630.87 | AL112: 505625.79 | AM112: 21300.66 | AN112: 407223.55 | AO112: 27141503.64
B113: 108 | C113: 0108 | D113: GOSHEN | E113: 108 | F113: 0 | G113: 0 | H113: 0 | I113: 0 | J113: 0 | K113: 0 | L113: 0 | M113: 0 | N113: 0 | O113: 0 | P113: 0 | Q113: 0 | R113: 0 | S113: 0 | T113: 0 | U113: 0 | V113: 0 | W113: 0 | X113: 0 | Y113: 0 | Z113: 0 | AA113: 0 | AB113: 0 | AC113: 0 | AD113: 0 | AE113: 0 | AF113: 0 | AG113: 0 | AH113: 0 | AI113: 0 | AJ113: 0 | AK113: 0 | AL113: 0 | AM113: 0 | AN113: 0 | AO113: 0
B114: 109 | C114: 0109 | D114: GOSNOLD | E114: 109 | F114: 1 | G114: 0 | H114: 0 | I114: 0 | J114: 0 | K114: 0 | L114: 0 | M114: 42230 | N114: 0 | O114: 0 | P114: 2394 | Q114: 0 | R114: 0 | S114: 0 | T114: 0 | U114: 0 | V114: 0 | W114: 0 | X114: 0 | Y114: 0 | Z114: 0 | AA114: 0 | AB114: 0 | AC114: 0 | AD114: 521 | AE114: 204 | AF114: 0 | AG114: 941 | AH114: 8747 | AI114: 0 | AJ114: 0 | AK114: 0 | AL114: 1540 | AM114: 0 | AN114: 0 | AO114: 56577
B115: 110 | C115: 0110 | D115: GRAFTON | E115: 110 | F115: 1 | G115: 274413.06 | H115: 0 | I115: 0 | J115: 1643010.33 | K115: 52926.24 | L115: 659895.48 | M115: 12912284.35 | N115: 3802911.501 | O115: 242848.94 | P115: 517761.12 | Q115: 0 | R115: 423458.95 | S115: 2503998.24 | T115: 164173.2 | U115: 0 | V115: 0 | W115: 0 | X115: 269986.9696 | Y115: 0 | Z115: 725 | AA115: 0 | AB115: 79077.17 | AC115: 0 | AD115: 79768.62 | AE115: 5467.77 | AF115: 44008.24 | AG115: 171661.53 | AH115: 8262.38 | AI115: 0 | AJ115: 0 | AK115: 0 | AL115: 419688.75 | AM115: 0 | AN115: 372363.84 | AO115: 24648691.68
B116: 111 | C116: 0111 | D116: GRANBY | E116: 111 | F116: 1 | G116: 154002.62 | H116: 0 | I116: 0 | J116: 450455.26 | K116: 0 | L116: 0 | M116: 3754430.06 | N116: 0 | O116: 0 | P116: 426260.6 | Q116: 0 | R116: 44614.07 | S116: 411083.92 | T116: 115279.61 | U116: 0 | V116: 0 | W116: 0 | X116: 125 | Y116: 0 | Z116: 3432.5 | AA116: 0 | AB116: 1251.9 | AC116: 0 | AD116: 2607.4 | AE116: 427.77 | AF116: 76840.95 | AG116: 13941.15 | AH116: 164326.57 | AI116: 7045.44 | AJ116: 0 | AK116: 1700 | AL116: 349487.32 | AM116: 0 | AN116: 255058.91 | AO116: 6232371.05
B117: 112 | C117: 0112 | D117: GRANVILLE | E117: 112 | F117: 0 | G117: 0 | H117: 0 | I117: 0 | J117: 0 | K117: 0 | L117: 0 | M117: 0 | N117: 0 | O117: 0 | P117: 0 | Q117: 0 | R117: 0 | S117: 0 | T117: 0 | U117: 0 | V117: 0 | W117: 0 | X117: 0 | Y117: 0 | Z117: 0 | AA117: 0 | AB117: 0 | AC117: 0 | AD117: 0 | AE117: 0 | AF117: 0 | AG117: 0 | AH117: 0 | AI117: 0 | AJ117: 0 | AK117: 0 | AL117: 0 | AM117: 0 | AN117: 0 | AO117: 0
B118: 113 | C118: 0113 | D118: GREAT BARRINGTON | E118: 113 | F118: 0 | G118: 0 | H118: 0 | I118: 0 | J118: 0 | K118: 0 | L118: 0 | M118: 0 | N118: 0 | O118: 0 | P118: 0 | Q118: 0 | R118: 0 | S118: 0 | T118: 0 | U118: 0 | V118: 0 | W118: 0 | X118: 0 | Y118: 0 | Z118: 0 | AA118: 0 | AB118: 0 | AC118: 0 | AD118: 0 | AE118: 0 | AF118: 0 | AG118: 0 | AH118: 0 | AI118: 0 | AJ118: 0 | AK118: 0 | AL118: 0 | AM118: 0 | AN118: 0 | AO118: 0
B119: 114 | C119: 0114 | D119: GREENFIELD | E119: 114 | F119: 1 | G119: 263485.85 | H119: 0 | I119: 0 | J119: 1147125.92 | K119: 0 | L119: 0 | M119: 7165838.3 | N119: 254315.12 | O119: 0 | P119: 54316.19 | Q119: 0 | R119: 89062.87 | S119: 1354778.93 | T119: 0 | U119: 0 | V119: 36833.39 | W119: 0 | X119: 45897.07 | Y119: 0 | Z119: 0 | AA119: 0 | AB119: 52147.65 | AC119: 0 | AD119: 1418.78 | AE119: 110467.22 | AF119: 985 | AG119: 72187.26 | AH119: 134502.06 | AI119: 3935.91 | AJ119: 0 | AK119: 3468.61 | AL119: 848842 | AM119: 5759.77 | AN119: 0 | AO119: 11645367.9
B120: 115 | C120: 0115 | D120: GROTON | E120: 115 | F120: 0 | G120: 0 | H120: 0 | I120: 0 | J120: 0 | K120: 0 | L120: 0 | M120: 0 | N120: 0 | O120: 0 | P120: 0 | Q120: 0 | R120: 0 | S120: 0 | T120: 0 | U120: 0 | V120: 0 | W120: 0 | X120: 0 | Y120: 0 | Z120: 0 | AA120: 0 | AB120: 0 | AC120: 0 | AD120: 0 | AE120: 0 | AF120: 0 | AG120: 0 | AH120: 0 | AI120: 0 | AJ120: 0 | AK120: 0 | AL120: 0 | AM120: 0 | AN120: 0 | AO120: 0
B121: 116 | C121: 0116 | D121: GROVELAND | E121: 116 | F121: 0 | G121: 0 | H121: 0 | I121: 0 | J121: 0 | K121: 0 | L121: 0 | M121: 0 | N121: 0 | O121: 0 | P121: 0 | Q121: 0 | R121: 0 | S121: 0 | T121: 0 | U121: 0 | V121: 0 | W121: 0 | X121: 0 | Y121: 0 | Z121: 0 | AA121: 0 | AB121: 0 | AC121: 0 | AD121: 0 | AE121: 0 | AF121: 0 | AG121: 0 | AH121: 0 | AI121: 0 | AJ121: 0 | AK121: 0 | AL121: 0 | AM121: 0 | AN121: 0 | AO121: 0
B122: 117 | C122: 0117 | D122: HADLEY | E122: 117 | F122: 1 | G122: 160358.21 | H122: 0 | I122: 0 | J122: 322279.45 | K122: 0 | L122: 158449.11 | M122: 2636207.19 | N122: 0 | O122: 0 | P122: 0 | Q122: 0 | R122: 64842.5 | S122: 349844.97 | T122: 98060.26 | U122: 0 | V122: 0 | W122: 0 | X122: 0 | Y122: 0 | Z122: 0 | AA122: 0 | AB122: 119463.68 | AC122: 0 | AD122: 21667.75 | AE122: 0 | AF122: 0 | AG122: 32122.65 | AH122: 107850.69 | AI122: 0 | AJ122: 0 | AK122: 0 | AL122: 69542.27 | AM122: 6167.25 | AN122: 64329.4 | AO122: 4211185.38
B123: 118 | C123: 0118 | D123: HALIFAX | E123: 118 | F123: 1 | G123: 48910.41 | H123: 0 | I123: 0 | J123: 265971.78 | K123: 0 | L123: 0 | M123: 3046035.66 | N123: 0 | O123: 0 | P123: 81408.99 | Q123: 0 | R123: 22078.03 | S123: 188086.37 | T123: 50554.18 | U123: 0 | V123: 0 | W123: 0 | X123: 68181.42 | Y123: 0 | Z123: 0 | AA123: 0 | AB123: 20298.55 | AC123: 0 | AD123: 94140.23 | AE123: 56503.7 | AF123: 0 | AG123: 0 | AH123: 1360 | AI123: 0 | AJ123: 0 | AK123: 0 | AL123: 0 | AM123: 0 | AN123: 125736.59 | AO123: 4069265.91
B124: 119 | C124: 0119 | D124: HAMILTON | E124: 119 | F124: 0 | G124: 0 | H124: 0 | I124: 0 | J124: 0 | K124: 0 | L124: 0 | M124: 0 | N124: 0 | O124: 0 | P124: 0 | Q124: 0 | R124: 0 | S124: 0 | T124: 0 | U124: 0 | V124: 0 | W124: 0 | X124: 0 | Y124: 0 | Z124: 0 | AA124: 0 | AB124: 0 | AC124: 0 | AD124: 0 | AE124: 0 | AF124: 0 | AG124: 0 | AH124: 0 | AI124: 0 | AJ124: 0 | AK124: 0 | AL124: 0 | AM124: 0 | AN124: 0 | AO124: 0
B125: 120 | C125: 0120 | D125: HAMPDEN | E125: 120 | F125: 0 | G125: 0 | H125: 0 | I125: 0 | J125: 0 | K125: 0 | L125: 0 | M125: 0 | N125: 0 | O125: 0 | P125: 0 | Q125: 0 | R125: 0 | S125: 0 | T125: 0 | U125: 0 | V125: 0 | W125: 0 | X125: 0 | Y125: 0 | Z125: 0 | AA125: 0 | AB125: 0 | AC125: 0 | AD125: 0 | AE125: 0 | AF125: 0 | AG125: 0 | AH125: 0 | AI125: 0 | AJ125: 0 | AK125: 0 | AL125: 0 | AM125: 0 | AN125: 0 | AO125: 0
B126: 121 | C126: 0121 | D126: HANCOCK | E126: 121 | F126: 1 | G126: 30008.46 | H126: 0 | I126: 0 | J126: 69667.86 | K126: 0 | L126: 0 | M126: 352504.11 | N126: 25164.96 | O126: 0 | P126: 0 | Q126: 0 | R126: 2467.5 | S126: 76996.87 | T126: 0 | U126: 0 | V126: 0 | W126: 0 | X126: 0 | Y126: 0 | Z126: 0 | AA126: 0 | AB126: 988 | AC126: 0 | AD126: 4627.14 | AE126: 0 | AF126: 0 | AG126: 6935.48 | AH126: 0 | AI126: 1791 | AJ126: 0 | AK126: 0 | AL126: 0 | AM126: 0 | AN126: 0 | AO126: 571151.38
B127: 122 | C127: 0122 | D127: HANOVER | E127: 122 | F127: 1 | G127: 259997.08 | H127: 0 | I127: 0 | J127: 1419153.5 | K127: 406624.28 | L127: 0 | M127: 15056621.61 | N127: 270559.01 | O127: 0 | P127: 0 | Q127: 0 | R127: 586405.32 | S127: 1583038.66 | T127: 220701.26 | U127: 0 | V127: 0 | W127: 0 | X127: 0 | Y127: 0 | Z127: 0 | AA127: 0 | AB127: 111736.9 | AC127: 0 | AD127: 82612.23 | AE127: 13300.62 | AF127: 7401.02 | AG127: 213741.91 | AH127: 116728.38 | AI127: 0 | AJ127: 0 | AK127: 63134.41 | AL127: 811731.51 | AM127: 0 | AN127: 258236 | AO127: 21481723.7
B128: 123 | C128: 0123 | D128: HANSON | E128: 123 | F128: 0 | G128: 0 | H128: 0 | I128: 0 | J128: 0 | K128: 0 | L128: 0 | M128: 0 | N128: 0 | O128: 0 | P128: 0 | Q128: 0 | R128: 0 | S128: 0 | T128: 0 | U128: 0 | V128: 0 | W128: 0 | X128: 0 | Y128: 0 | Z128: 0 | AA128: 0 | AB128: 0 | AC128: 0 | AD128: 0 | AE128: 0 | AF128: 0 | AG128: 0 | AH128: 0 | AI128: 0 | AJ128: 0 | AK128: 0 | AL128: 0 | AM128: 0 | AN128: 0 | AO128: 0
B129: 124 | C129: 0124 | D129: HARDWICK | E129: 124 | F129: 0 | G129: 0 | H129: 0 | I129: 0 | J129: 0 | K129: 0 | L129: 0 | M129: 0 | N129: 0 | O129: 0 | P129: 0 | Q129: 0 | R129: 0 | S129: 0 | T129: 0 | U129: 0 | V129: 0 | W129: 0 | X129: 0 | Y129: 0 | Z129: 0 | AA129: 0 | AB129: 0 | AC129: 0 | AD129: 0 | AE129: 0 | AF129: 0 | AG129: 0 | AH129: 0 | AI129: 0 | AJ129: 0 | AK129: 0 | AL129: 0 | AM129: 0 | AN129: 0 | AO129: 0
B130: 125 | C130: 0125 | D130: HARVARD | E130: 125 | F130: 1 | G130: 156762.93 | H130: 4200 | I130: 0 | J130: 692435.71 | K130: 97924.77 | L130: 278323.51 | M130: 5715367 | N130: 264659 | O130: 0 | P130: 52162.94 | Q130: 0 | R130: 159903.98 | S130: 648033.7 | T130: 116480.86 | U130: 0 | V130: 0 | W130: 0 | X130: 235170 | Y130: 0 | Z130: 0 | AA130: 0 | AB130: 124018.57 | AC130: 0 | AD130: 130420.54 | AE130: 110334.5 | AF130: 33504.88 | AG130: 0 | AH130: 17250 | AI130: 0 | AJ130: 0 | AK130: 8253.84 | AL130: 357581.65 | AM130: 0 | AN130: 0 | AO130: 9202788.38
B131: 126 | C131: 0126 | D131: HARWICH | E131: 126 | F131: 0 | G131: 0 | H131: 0 | I131: 0 | J131: 0 | K131: 0 | L131: 0 | M131: 0 | N131: 0 | O131: 0 | P131: 0 | Q131: 0 | R131: 0 | S131: 0 | T131: 0 | U131: 0 | V131: 0 | W131: 0 | X131: 0 | Y131: 0 | Z131: 0 | AA131: 0 | AB131: 0 | AC131: 0 | AD131: 0 | AE131: 0 | AF131: 0 | AG131: 0 | AH131: 0 | AI131: 0 | AJ131: 0 | AK131: 0 | AL131: 0 | AM131: 0 | AN131: 0 | AO131: 0
B132: 127 | C132: 0127 | D132: HATFIELD | E132: 127 | F132: 1 | G132: 63309 | H132: 0 | I132: 0 | J132: 310075 | K132: 0 | L132: 0 | M132: 2176273 | N132: 102484 | O132: 22377 | P132: 151141 | Q132: 0 | R132: 43016 | S132: 179176 | T132: 72756 | U132: 0 | V132: 0 | W132: 0 | X132: 50358 | Y132: 0 | Z132: 0 | AA132: 0 | AB132: 3067 | AC132: 0 | AD132: 55061 | AE132: 3624 | AF132: 0 | AG132: 19764 | AH132: 34493 | AI132: 0 | AJ132: 0 | AK132: 0 | AL132: 196667 | AM132: 695 | AN132: 26000 | AO132: 3510336
B133: 128 | C133: 0128 | D133: HAVERHILL | E133: 128 | F133: 1 | G133: 855442 | H133: 34709 | I133: 0 | J133: 3651849 | K133: 54939 | L133: 0 | M133: 30776396 | N133: 1242622 | O133: 157162 | P133: 2195821 | Q133: 0 | R133: 469130 | S133: 3800579 | T133: 269946 | U133: 0 | V133: 76258 | W133: 0 | X133: 0 | Y133: 0 | Z133: 0 | AA133: 0 | AB133: 69085 | AC133: 0 | AD133: 82920 | AE133: 308941 | AF133: 172014 | AG133: 372901 | AH133: 74898 | AI133: 65181 | AJ133: 219391 | AK133: 0 | AL133: 1849077 | AM133: 924957 | AN133: 876156 | AO133: 48600374
B134: 129 | C134: 0129 | D134: HAWLEY | E134: 129 | F134: 0 | G134: 0 | H134: 0 | I134: 0 | J134: 0 | K134: 0 | L134: 0 | M134: 0 | N134: 0 | O134: 0 | P134: 0 | Q134: 0 | R134: 0 | S134: 0 | T134: 0 | U134: 0 | V134: 0 | W134: 0 | X134: 0 | Y134: 0 | Z134: 0 | AA134: 0 | AB134: 0 | AC134: 0 | AD134: 0 | AE134: 0 | AF134: 0 | AG134: 0 | AH134: 0 | AI134: 0 | AJ134: 0 | AK134: 0 | AL134: 0 | AM134: 0 | AN134: 0 | AO134: 0
B135: =B134+1 -> 130 | C135: 0130 | D135: HEATH | E135: 130 | F135: 0 | G135: 0 | H135: 0 | I135: 0 | J135: 0 | K135: 0 | L135: 0 | M135: 0 | N135: 0 | O135: 0 | P135: 0 | Q135: 0 | R135: 0 | S135: 0 | T135: 0 | U135: 0 | V135: 0 | W135: 0 | X135: 0 | Y135: 0 | Z135: 0 | AA135: 0 | AB135: 0 | AC135: 0 | AD135: 0 | AE135: 0 | AF135: 0 | AG135: 0 | AH135: 0 | AI135: 0 | AJ135: 0 | AK135: 0 | AL135: 0 | AM135: 0 | AN135: 0 | AO135: 0
B136: 131 | C136: 0131 | D136: HINGHAM | E136: 131 | F136: 1 | G136: 746208 | H136: 0 | I136: 0 | J136: 2248072 | K136: 0 | L136: 868201.55 | M136: 23075127.53 | N136: 528520 | O136: 40908 | P136: 1228366 | Q136: 0 | R136: 515923 | S136: 2657055 | T136: 647740 | U136: 0 | V136: 0 | W136: 0 | X136: 0 | Y136: 0 | Z136: 40948 | AA136: 0 | AB136: 202005 | AC136: 0 | AD136: 548095 | AE136: 42564 | AF136: 39616 | AG136: 270243 | AH136: 13528 | AI136: 0 | AJ136: 0 | AK136: 0 | AL136: 1885103 | AM136: 19791 | AN136: 414398 | AO136: 36032412.08
B137: 132 | C137: 0132 | D137: HINSDALE | E137: 132 | F137: 0 | G137: 0 | H137: 0 | I137: 0 | J137: 0 | K137: 0 | L137: 0 | M137: 0 | N137: 0 | O137: 0 | P137: 0 | Q137: 0 | R137: 0 | S137: 0 | T137: 0 | U137: 0 | V137: 0 | W137: 0 | X137: 0 | Y137: 0 | Z137: 0 | AA137: 0 | AB137: 0 | AC137: 0 | AD137: 0 | AE137: 0 | AF137: 0 | AG137: 0 | AH137: 0 | AI137: 0 | AJ137: 0 | AK137: 0 | AL137: 0 | AM137: 0 | AN137: 0 | AO137: 0
B138: 133 | C138: 0133 | D138: HOLBROOK | E138: 133 | F138: 1 | G138: 159108.31 | H138: 25000 | I138: 0 | J138: 618092.15 | K138: 74426.42 | L138: 0 | M138: 5447943.79 | N138: 19835.62 | O138: 25463.96 | P138: 399060.8 | Q138: 0 | R138: 168866.81 | S138: 67883.99 | T138: 73616.7 | U138: 0 | V138: 0 | W138: 0 | X138: 0 | Y138: 0 | Z138: 0 | AA138: 0 | AB138: 29372.26 | AC138: 0 | AD138: 87547.67 | AE138: 2088.17 | AF138: 0 | AG138: 38081.51 | AH138: 150369.54 | AI138: 212.38 | AJ138: 0 | AK138: 0 | AL138: 432132.79 | AM138: 0 | AN138: 129591.37 | AO138: 7948694.24
B139: 134 | C139: 0134 | D139: HOLDEN | E139: 134 | F139: 0 | G139: 0 | H139: 0 | I139: 0 | J139: 0 | K139: 0 | L139: 0 | M139: 0 | N139: 0 | O139: 0 | P139: 0 | Q139: 0 | R139: 0 | S139: 0 | T139: 0 | U139: 0 | V139: 0 | W139: 0 | X139: 0 | Y139: 0 | Z139: 0 | AA139: 0 | AB139: 0 | AC139: 0 | AD139: 0 | AE139: 0 | AF139: 0 | AG139: 0 | AH139: 0 | AI139: 0 | AJ139: 0 | AK139: 0 | AL139: 0 | AM139: 0 | AN139: 0 | AO139: 0
B140: 135 | C140: 0135 | D140: HOLLAND | E140: 135 | F140: 1 | G140: 0 | H140: 0 | I140: 0 | J140: 153214 | K140: 0 | L140: 12738 | M140: 952382 | N140: 0 | O140: 0 | P140: 98471 | Q140: 0 | R140: 105431 | S140: 85640 | T140: 9888 | U140: 0 | V140: 0 | W140: 0 | X140: 19133 | Y140: 0 | Z140: 0 | AA140: 0 | AB140: 10059 | AC140: 0 | AD140: 14127 | AE140: 1492 | AF140: 1304 | AG140: 12058 | AH140: 0 | AI140: 0 | AJ140: 0 | AK140: 4174 | AL140: 54542 | AM140: 0 | AN140: 11853 | AO140: 1546506
B141: 136 | C141: 0136 | D141: HOLLISTON | E141: 136 | F141: 1 | G141: 707349.35 | H141: 508157.21 | I141: 0 | J141: 1382603.49 | K141: 67094.06 | L141: 305628.35 | M141: 11713737.8 | N141: 3493666.5 | O141: 84832.52 | P141: 662777.1 | Q141: 0 | R141: 449191.62 | S141: 1868168.58 | T141: 128294.58 | U141: 0 | V141: 20100 | W141: 0 | X141: 391963.12 | Y141: 0 | Z141: 0 | AA141: 0 | AB141: 91372.48 | AC141: 0 | AD141: 92196.5 | AE141: 183135.48 | AF141: 34131.43 | AG141: 56665.43 | AH141: 24643.32 | AI141: 210892.42 | AJ141: 0 | AK141: 4987.81 | AL141: 1280373.73 | AM141: 114322.31 | AN141: 121650.23 | AO141: 23997935.42
B142: 137 | C142: 0137 | D142: HOLYOKE | E142: 137 | F142: 1 | G142: 786278.29 | H142: 0 | I142: 0 | J142: 3979391.74 | K142: 97906.39 | L142: 0 | M142: 22165542.7 | N142: 2512004.04 | O142: 821768.4 | P142: 1980463.6 | Q142: 0 | R142: 789861.12 | S142: 5045836.87 | T142: 0 | U142: 0 | V142: 0 | W142: 0 | X142: 0 | Y142: 0 | Z142: 0 | AA142: 0 | AB142: 51179.02 | AC142: 0 | AD142: 17132.5 | AE142: 412465.94 | AF142: 61831.26 | AG142: 0 | AH142: 1309666.41 | AI142: 120157.15 | AJ142: 43875.42 | AK142: 20925 | AL142: 1527979.57 | AM142: 46848.48 | AN142: 361715.84 | AO142: 42152829.74
B143: 138 | C143: 0138 | D143: HOPEDALE | E143: 138 | F143: 1 | G143: 147626 | H143: 0 | I143: 0 | J143: 539064 | K143: 0 | L143: 4751 | M143: 4718198 | N143: 1292384 | O143: 197607 | P143: 399934 | Q143: 0 | R143: 87816 | S143: 729927 | T143: 134404 | U143: 0 | V143: 0 | W143: 0 | X143: 0 | Y143: 0 | Z143: 0 | AA143: 0 | AB143: 44405 | AC143: 0 | AD143: 20955 | AE143: 5023 | AF143: 25966 | AG143: 91000 | AH143: 14877 | AI143: 10930 | AJ143: 220 | AK143: 11573 | AL143: 302627 | AM143: 0 | AN143: 177730 | AO143: 8957017
B144: 139 | C144: 0139 | D144: HOPKINTON | E144: 139 | F144: 1 | G144: 171454.35 | H144: 0 | I144: 0 | J144: 1700375.66 | K144: 0 | L144: 0 | M144: 18209976.61 | N144: 4363193.45 | O144: 0 | P144: 1224882.31 | Q144: 0 | R144: 232088.9 | S144: 1334801.27 | T144: 362137.54 | U144: 0 | V144: 0 | W144: 0 | X144: 0 | Y144: 0 | Z144: 18962.66 | AA144: 0 | AB144: 251570.6 | AC144: 0 | AD144: 146404.57 | AE144: 171193.66 | AF144: 23422.52 | AG144: 178059.38 | AH144: 21077.15 | AI144: 481547.23 | AJ144: 21558.31 | AK144: 97611 | AL144: 1495712.69 | AM144: 12140 | AN144: 311492.23 | AO144: 30829662.09
B145: 140 | C145: 0140 | D145: HUBBARDSTON | E145: 140 | F145: 0 | G145: 0 | H145: 0 | I145: 0 | J145: 0 | K145: 0 | L145: 0 | M145: 0 | N145: 0 | O145: 0 | P145: 0 | Q145: 0 | R145: 0 | S145: 0 | T145: 0 | U145: 0 | V145: 0 | W145: 0 | X145: 0 | Y145: 0 | Z145: 0 | AA145: 0 | AB145: 0 | AC145: 0 | AD145: 0 | AE145: 0 | AF145: 0 | AG145: 0 | AH145: 0 | AI145: 0 | AJ145: 0 | AK145: 0 | AL145: 0 | AM145: 0 | AN145: 0 | AO145: 0
B146: 141 | C146: 0141 | D146: HUDSON | E146: 141 | F146: 1 | G146: 413762 | H146: 324896.39 | I146: 0 | J146: 1437795 | K146: 102500 | L146: 11230.43 | M146: 13663724 | N146: 3611768.14 | O146: 45377 | P146: 1908505.57 | Q146: 0 | R146: 352266 | S146: 1783254 | T146: 287720.2 | U146: 0 | V146: 594115.09 | W146: 0 | X146: 288041 | Y146: 0 | Z146: 12168 | AA146: 0 | AB146: 163559 | AC146: 0 | AD146: 27950 | AE146: 144158.42 | AF146: 30772 | AG146: 77826 | AH146: 1445.9 | AI146: 42992.8 | AJ146: 1002 | AK146: 34288.13 | AL146: 790830 | AM146: 36855 | AN146: 708666 | AO146: 26897468.07
B147: 142 | C147: 0142 | D147: HULL | E147: 142 | F147: 1 | G147: 162018 | H147: 0 | I147: 0 | J147: 952304 | K147: 0 | L147: 263279 | M147: 5075589 | N147: 1449150 | O147: 16033 | P147: 0 | Q147: 0 | R147: 111516 | S147: 316577 | T147: 74127 | U147: 0 | V147: 40921 | W147: 0 | X147: 71917 | Y147: 0 | Z147: 0 | AA147: 0 | AB147: 0 | AC147: 0 | AD147: 89528 | AE147: 48180 | AF147: 0 | AG147: 47868 | AH147: 60460 | AI147: 221859 | AJ147: 0 | AK147: 0 | AL147: 397384 | AM147: 10817 | AN147: 171696 | AO147: 9581223
B148: 143 | C148: 0143 | D148: HUNTINGTON | E148: 143 | F148: 0 | G148: 0 | H148: 0 | I148: 0 | J148: 0 | K148: 0 | L148: 0 | M148: 0 | N148: 0 | O148: 0 | P148: 0 | Q148: 0 | R148: 0 | S148: 0 | T148: 0 | U148: 0 | V148: 0 | W148: 0 | X148: 0 | Y148: 0 | Z148: 0 | AA148: 0 | AB148: 0 | AC148: 0 | AD148: 0 | AE148: 0 | AF148: 0 | AG148: 0 | AH148: 0 | AI148: 0 | AJ148: 0 | AK148: 0 | AL148: 0 | AM148: 0 | AN148: 0 | AO148: 0
B149: 144 | C149: 0144 | D149: IPSWICH | E149: 144 | F149: 1 | G149: 224291 | H149: 81645 | I149: 0 | J149: 1194570 | K149: 34300 | L149: 44457.93 | M149: 10683308.2 | N149: 225184 | O149: 302433 | P149: 1312414.17 | Q149: 0 | R149: 220700 | S149: 837238 | T149: 229246 | U149: 0 | V149: 58169.93 | W149: 0 | X149: 0 | Y149: 0 | Z149: 22371 | AA149: 0 | AB149: 126909.12 | AC149: 0 | AD149: 86181 | AE149: 111878.09 | AF149: 58969.26 | AG149: 170935.21 | AH149: 203505.75 | AI149: 288406.16 | AJ149: 8196 | AK149: 41833 | AL149: 609139.72 | AM149: 21665 | AN149: 256377 | AO149: 17454323.54
B150: 145 | C150: 0145 | D150: KINGSTON | E150: 145 | F150: 1 | G150: 96991.84 | H150: 0 | I150: 0 | J150: 504911.37 | K150: 0 | L150: 0 | M150: 4770230.23 | N150: 0 | O150: 0 | P150: 124181 | Q150: 0 | R150: 71130.82 | S150: 303740.11 | T150: 192122.71 | U150: 0 | V150: 0 | W150: 0 | X150: 106005.11 | Y150: 0 | Z150: 0 | AA150: 0 | AB150: 22255.55 | AC150: 0 | AD150: 208726.74 | AE150: 91912.58 | AF150: 0 | AG150: 0 | AH150: 3344.81 | AI150: 0 | AJ150: 0 | AK150: 0 | AL150: 0 | AM150: 0 | AN150: 427013.81 | AO150: 6922566.68
B151: 146 | C151: 0146 | D151: LAKEVILLE | E151: 146 | F151: 0 | G151: 0 | H151: 0 | I151: 0 | J151: 0 | K151: 0 | L151: 0 | M151: 0 | N151: 0 | O151: 0 | P151: 0 | Q151: 0 | R151: 0 | S151: 0 | T151: 0 | U151: 0 | V151: 0 | W151: 0 | X151: 0 | Y151: 0 | Z151: 0 | AA151: 0 | AB151: 0 | AC151: 0 | AD151: 0 | AE151: 0 | AF151: 0 | AG151: 0 | AH151: 0 | AI151: 0 | AJ151: 0 | AK151: 0 | AL151: 0 | AM151: 0 | AN151: 0 | AO151: 0
B152: 147 | C152: 0147 | D152: LANCASTER | E152: 147 | F152: 0 | G152: 0 | H152: 0 | I152: 0 | J152: 0 | K152: 0 | L152: 0 | M152: 0 | N152: 0 | O152: 0 | P152: 0 | Q152: 0 | R152: 0 | S152: 0 | T152: 0 | U152: 0 | V152: 0 | W152: 0 | X152: 0 | Y152: 0 | Z152: 0 | AA152: 0 | AB152: 0 | AC152: 0 | AD152: 0 | AE152: 0 | AF152: 0 | AG152: 0 | AH152: 0 | AI152: 0 | AJ152: 0 | AK152: 0 | AL152: 0 | AM152: 0 | AN152: 0 | AO152: 0
B153: 148 | C153: 0148 | D153: LANESBOROUGH | E153: 148 | F153: 1 | G153: 38283.46 | H153: 13583.6 | I153: 0 | J153: 136955.08 | K153: 0 | L153: 39288.18 | M153: 1018746 | N153: 165681.01 | O153: 0 | P153: 129369 | Q153: 0 | R153: 22281 | S153: 166665 | T153: 32239.24 | U153: 0 | V153: 1149.95 | W153: 0 | X153: 0 | Y153: 0 | Z153: 0 | AA153: 0 | AB153: 5309.48 | AC153: 0 | AD153: 0 | AE153: 69069.61 | AF153: 0 | AG153: 0 | AH153: 31774.81 | AI153: 0 | AJ153: 0 | AK153: 0 | AL153: 25280.2 | AM153: 0 | AN153: 34473 | AO153: 1930148.62
B154: 149 | C154: 0149 | D154: LAWRENCE | E154: 149 | F154: 1 | G154: 2723104 | H154: 0 | I154: 0 | J154: 15110702.22 | K154: 0 | L154: 0 | M154: 66195268.53 | N154: 25713 | O154: 1317994 | P154: 1393709 | Q154: 0 | R154: 1598614 | S154: 9545874.5 | T154: 176873 | U154: 0 | V154: 124018 | W154: 0 | X154: 0 | Y154: 0 | Z154: 0 | AA154: 0 | AB154: 864173.89 | AC154: 0 | AD154: 120657.71 | AE154: 9184.57 | AF154: 0 | AG154: 3699702.86 | AH154: 149712.235 | AI154: 349659 | AJ154: 0 | AK154: 0 | AL154: 3609314.5 | AM154: 0 | AN154: 894443 | AO154: 107908718
B155: 150 | C155: 0150 | D155: LEE | E155: 150 | F155: 1 | G155: 134032.84 | H155: 0 | I155: 0 | J155: 351976.22 | K155: 77595 | L155: 26154.36 | M155: 3598487.55 | N155: 215363.14 | O155: 0 | P155: 262235.3 | Q155: 0 | R155: 125463.85 | S155: 581114.51 | T155: 140913.74 | U155: 0 | V155: 0 | W155: 0 | X155: 99958 | Y155: 0 | Z155: 0 | AA155: 0 | AB155: 17072.43 | AC155: 0 | AD155: 14643.08 | AE155: 63930.68 | AF155: 50849.45 | AG155: 11489.01 | AH155: 3197.75 | AI155: 983.03 | AJ155: 39487.33 | AK155: 64997.35 | AL155: 268589.28 | AM155: 0 | AN155: 137820.31 | AO155: 6286354.21
B156: 151 | C156: 0151 | D156: LEICESTER | E156: 151 | F156: 1 | G156: 254459 | H156: 0 | I156: 0 | J156: 943404 | K156: 66667 | L156: 0 | M156: 7439952 | N156: 232464 | O156: 56037 | P156: 124468 | Q156: 0 | R156: 120422 | S156: 788366 | T156: 183707 | U156: 0 | V156: 34033 | W156: 0 | X156: 297197 | Y156: 0 | Z156: 7726 | AA156: 0 | AB156: 56933 | AC156: 0 | AD156: 110254 | AE156: 39051 | AF156: 65410 | AG156: 28769 | AH156: 6975 | AI156: 106654 | AJ156: 0 | AK156: 0 | AL156: 341889 | AM156: 12344 | AN156: 441529 | AO156: 11758710
B157: 152 | C157: 0152 | D157: LENOX | E157: 152 | F157: 1 | G157: 140343.78 | H157: 0 | I157: 0 | J157: 476669.85 | K157: 0 | L157: 0 | M157: 4281217.05 | N157: 114424.58 | O157: 128295.24 | P157: 24825.98 | Q157: 0 | R157: 119610.25 | S157: 596621.27 | T157: 93862.04 | U157: 0 | V157: 0 | W157: 0 | X157: 70959.07 | Y157: 0 | Z157: 5667.5 | AA157: 0 | AB157: 52475.54 | AC157: 0 | AD157: 64628.54 | AE157: 15079.35 | AF157: 93358.46 | AG157: 140735.9 | AH157: 51646.51 | AI157: 175095.2 | AJ157: 3786.13 | AK157: 41393.34 | AL157: 238144.04 | AM157: 8698.5 | AN157: 11180.85 | AO157: 6948718.97
B158: 153 | C158: 0153 | D158: LEOMINSTER | E158: 153 | F158: 1 | G158: 416947 | H158: 390584 | I158: 0 | J158: 3407421 | K158: 112668 | L158: 0 | M158: 29472278 | N158: 151182 | O158: 0 | P158: 889556 | Q158: 0 | R158: 507169 | S158: 4812158 | T158: 367324 | U158: 0 | V158: 26002 | W158: 0 | X158: 621768 | Y158: 0 | Z158: 0 | AA158: 0 | AB158: 66083 | AC158: 0 | AD158: 584686 | AE158: 43839 | AF158: 65175 | AG158: 72933 | AH158: 35703 | AI158: 66796 | AJ158: 302 | AK158: 8917 | AL158: 1421573 | AM158: 274528 | AN158: 565755 | AO158: 44381347
B159: 154 | C159: 0154 | D159: LEVERETT | E159: 154 | F159: 1 | G159: 23718 | H159: 0 | I159: 0 | J159: 135006 | K159: 0 | L159: 0 | M159: 507638 | N159: 232096 | O159: 0 | P159: 88979 | Q159: 0 | R159: 19611 | S159: 149289 | T159: 34940 | U159: 0 | V159: 0 | W159: 0 | X159: 0 | Y159: 0 | Z159: 100 | AA159: 0 | AB159: 7022 | AC159: 0 | AD159: 6427 | AE159: 2994 | AF159: 0 | AG159: 11922 | AH159: 3736 | AI159: 0 | AJ159: 0 | AK159: 18365 | AL159: 0 | AM159: 1183 | AN159: 41913 | AO159: 1284939
B160: 155 | C160: 0155 | D160: LEXINGTON | E160: 155 | F160: 1 | G160: 3465397.23 | H160: 608671.39 | I160: 0 | J160: 5669477.87 | K160: 0 | L160: 0 | M160: 44664335 | N160: 2735222.26 | O160: 84356.18 | P160: 4012344.74 | Q160: 0 | R160: 1741594.6 | S160: 6416487.03 | T160: 977660.67 | U160: 0 | V160: 87175.96 | W160: 0 | X160: 0 | Y160: 0 | Z160: 47605.52 | AA160: 0 | AB160: 1321253.45 | AC160: 0 | AD160: 546175.8 | AE160: 151692.14 | AF160: 570887.06 | AG160: 803002.74 | AH160: 103440.99 | AI160: 317610.68 | AJ160: 54026.81 | AK160: 146239.6 | AL160: 4121141.19 | AM160: 0 | AN160: 673887.8 | AO160: 79319686.71
B161: 156 | C161: 0156 | D161: LEYDEN | E161: 156 | F161: 0 | G161: 0 | H161: 0 | I161: 0 | J161: 0 | K161: 0 | L161: 0 | M161: 0 | N161: 0 | O161: 0 | P161: 0 | Q161: 0 | R161: 0 | S161: 0 | T161: 0 | U161: 0 | V161: 0 | W161: 0 | X161: 0 | Y161: 0 | Z161: 0 | AA161: 0 | AB161: 0 | AC161: 0 | AD161: 0 | AE161: 0 | AF161: 0 | AG161: 0 | AH161: 0 | AI161: 0 | AJ161: 0 | AK161: 0 | AL161: 0 | AM161: 0 | AN161: 0 | AO161: 0
B162: 157 | C162: 0157 | D162: LINCOLN | E162: 157 | F162: 1 | G162: 99456 | H162: 0 | I162: 0 | J162: 458659 | K162: 162861 | L162: 111542 | M162: 4078876 | N162: 1215996 | O162: 159310 | P162: 330425 | Q162: 0 | R162: 47281 | S162: 292287 | T162: 128777 | U162: 0 | V162: 0 | W162: 0 | X162: 135009 | Y162: 0 | Z162: 6798 | AA162: 0 | AB162: 119533 | AC162: 0 | AD162: 39263 | AE162: 37193 | AF162: 27463 | AG162: 68624 | AH162: 102045 | AI162: 137121 | AJ162: 0 | AK162: 16535 | AL162: 0 | AM162: 4440 | AN162: 240568 | AO162: 8020062
B163: 158 | C163: 0158 | D163: LITTLETON | E163: 158 | F163: 1 | G163: 320057.22 | H163: 0 | I163: 0 | J163: 834774.46 | K163: 0 | L163: 109453.37 | M163: 6189448.61 | N163: 1701742.37 | O163: 99573.25 | P163: 566890.76 | Q163: 0 | R163: 181139.65 | S163: 1038945 | T163: 107660.58 | U163: 0 | V163: 0 | W163: 0 | X163: 0 | Y163: 0 | Z163: 0 | AA163: 0 | AB163: 214999.37 | AC163: 0 | AD163: 86239.44 | AE163: 194363.62 | AF163: 0 | AG163: 0 | AH163: 35163.44 | AI163: 74943.74 | AJ163: 0 | AK163: 0 | AL163: 445121 | AM163: 8138.06 | AN163: 405994.46 | AO163: 12614648.4
B164: 159 | C164: 0159 | D164: LONGMEADOW | E164: 159 | F164: 1 | G164: 241641.86 | H164: 2531.38 | I164: 0 | J164: 1599020.77 | K164: 89353.17 | L164: 88600.27 | M164: 13054008.49 | N164: 3394953.71 | O164: 3391.96 | P164: 1172075.65 | Q164: 0 | R164: 302168.07 | S164: 2019238.36 | T164: 290220.19 | U164: 0 | V164: 78629.45 | W164: 0 | X164: 459714.91 | Y164: 0 | Z164: 26721.36 | AA164: 0 | AB164: 273293.76 | AC164: 0 | AD164: 75193.07 | AE164: 59753.39 | AF164: 41901.63 | AG164: 148163.58 | AH164: 17837.86 | AI164: 25128.75 | AJ164: 127874.74 | AK164: 230100.26 | AL164: 884740.99 | AM164: 130969.11 | AN164: 150510.6 | AO164: 24987737.34
B165: 160 | C165: 0160 | D165: LOWELL | E165: 160 | F165: 1 | G165: 1159536.15 | H165: 0 | I165: 0 | J165: 8634353.249 | K165: 927218.04 | L165: 191444.25 | M165: 74846004.94 | N165: 169291.96 | O165: 1711651.36 | P165: 3835643.22 | Q165: 0 | R165: 2072814.84 | S165: 9086146.405 | T165: 741808.48 | U165: 0 | V165: 0 | W165: 0 | X165: 0 | Y165: 0 | Z165: 0 | AA165: 0 | AB165: 1257272.18 | AC165: 0 | AD165: 152514.77 | AE165: 10800.75 | AF165: 0 | AG165: 1074991.67 | AH165: 1686539.71 | AI165: 794672.12 | AJ165: 65964.87 | AK165: 71951.38 | AL165: 3201509.34 | AM165: 15199 | AN165: 1206243.99 | AO165: 112913572.7
B166: 161 | C166: 0161 | D166: LUDLOW | E166: 161 | F166: 1 | G166: 720493 | H166: 276215 | I166: 0 | J166: 1422466 | K166: 67838 | L166: 0 | M166: 10170910 | N166: 3882084 | O166: 0 | P166: 1069860 | Q166: 0 | R166: 364499 | S166: 1749493 | T166: 391524 | U166: 0 | V166: 3954 | W166: 0 | X166: 312290 | Y166: 0 | Z166: 23226 | AA166: 0 | AB166: 19551 | AC166: 0 | AD166: 51162 | AE166: 30910 | AF166: 39721 | AG166: 151781 | AH166: 34229 | AI166: 244555 | AJ166: 4939 | AK166: 0 | AL166: 867341 | AM166: 8154 | AN166: 271346 | AO166: 22178541
B167: 162 | C167: 0162 | D167: LUNENBURG | E167: 162 | F167: 1 | G167: 436743 | H167: 0 | I167: 0 | J167: 825091 | K167: 0 | L167: 0 | M167: 6528905 | N167: 1544888 | O167: 22496 | P167: 615719 | Q167: 0 | R167: 244270 | S167: 697167 | T167: 154471 | U167: 0 | V167: 0 | W167: 0 | X167: 0 | Y167: 0 | Z167: 0 | AA167: 0 | AB167: 8698 | AC167: 0 | AD167: 677 | AE167: 45201 | AF167: 26185 | AG167: 42141 | AH167: 1944 | AI167: 25505 | AJ167: 0 | AK167: 0 | AL167: 431896 | AM167: 0 | AN167: 143689 | AO167: 11795686
B168: 163 | C168: 0163 | D168: LYNN | E168: 163 | F168: 1 | G168: 1344816 | H168: 0 | I168: 0 | J168: 6959202.72 | K168: 2162534 | L168: 692728 | M168: 72534468 | N168: 0 | O168: 0 | P168: 3205393 | Q168: 0 | R168: 2868038 | S168: 6513944 | T168: 387990 | U168: 0 | V168: 2697978 | W168: 0 | X168: 18851 | Y168: 0 | Z168: 0 | AA168: 0 | AB168: 0 | AC168: 0 | AD168: 1857649 | AE168: 1004714.44 | AF168: 25927 | AG168: 334924 | AH168: 293324 | AI168: 22901 | AJ168: 0 | AK168: 0 | AL168: 2955559 | AM168: 1206109 | AN168: 969008 | AO168: 108056058.2
B169: 164 | C169: 0164 | D169: LYNNFIELD | E169: 164 | F169: 1 | G169: 381405.9 | H169: 0 | I169: 0 | J169: 1167155.1 | K169: 375071.05 | L169: 154664.28 | M169: 13286387.52 | N169: 590556.62 | O169: 0 | P169: 574793.27 | Q169: 0 | R169: 369393.41 | S169: 954272.38 | T169: 320022.69 | U169: 0 | V169: 0 | W169: 0 | X169: 0 | Y169: 0 | Z169: 0 | AA169: 0 | AB169: 97512.8 | AC169: 0 | AD169: 81936.56 | AE169: 20950.51 | AF169: 47340.31 | AG169: 227099.86 | AH169: 0 | AI169: 30654.27 | AJ169: 5778.83 | AK169: 0 | AL169: 450632.86 | AM169: 20318.79 | AN169: 527997.89 | AO169: 19683944.9
B170: 165 | C170: 0165 | D170: MALDEN | E170: 165 | F170: 1 | G170: 855766.32 | H170: 0 | I170: 0 | J170: 3527351.07 | K170: 333027.06 | L170: 399163.26 | M170: 24342244.57 | N170: 8230047.37 | O170: 196483.44 | P170: 2329544.12 | Q170: 0 | R170: 673508.32 | S170: 3899644.9 | T170: 90350 | U170: 0 | V170: 0 | W170: 0 | X170: 0 | Y170: 0 | Z170: 0 | AA170: 0 | AB170: 177289.61 | AC170: 0 | AD170: 30970.47 | AE170: 0 | AF170: 73509.79 | AG170: 225127.81 | AH170: 75344.88 | AI170: 1236389.94 | AJ170: 0 | AK170: 0 | AL170: 2481163.3 | AM170: 17857.18 | AN170: 497891.44 | AO170: 49692674.85
B171: 166 | C171: 0166 | D171: MANCHESTER | E171: 166 | F171: 0 | G171: 0 | H171: 0 | I171: 0 | J171: 0 | K171: 0 | L171: 0 | M171: 0 | N171: 0 | O171: 0 | P171: 0 | Q171: 0 | R171: 0 | S171: 0 | T171: 0 | U171: 0 | V171: 0 | W171: 0 | X171: 0 | Y171: 0 | Z171: 0 | AA171: 0 | AB171: 0 | AC171: 0 | AD171: 0 | AE171: 0 | AF171: 0 | AG171: 0 | AH171: 0 | AI171: 0 | AJ171: 0 | AK171: 0 | AL171: 0 | AM171: 0 | AN171: 0 | AO171: 0
B172: 167 | C172: 0167 | D172: MANSFIELD | E172: 167 | F172: 1 | G172: 519586.46 | H172: 0 | I172: 0 | J172: 2248568.66 | K172: 343046.7 | L172: 187562.28 | M172: 22867241.48 | N172: 637526.5 | O172: 499446.61 | P172: 1543318.3 | Q172: 0 | R172: 576250.82 | S172: 1504611.31 | T172: 219211.58 | U172: 0 | V172: 24449.02 | W172: 0 | X172: 490713.78 | Y172: 0 | Z172: 0 | AA172: 0 | AB172: 533239.65 | AC172: 0 | AD172: 185663.57 | AE172: 26092.14 | AF172: 55847.54 | AG172: 429988.22 | AH172: 0 | AI172: 212351.55 | AJ172: 0 | AK172: 0 | AL172: 1017597.25 | AM172: 6601.2 | AN172: 840242.15 | AO172: 34969156.77
B173: 168 | C173: 0168 | D173: MARBLEHEAD | E173: 168 | F173: 1 | G173: 1022506 | H173: 0 | I173: 0 | J173: 1650438 | K173: 0 | L173: 301774 | M173: 15016156 | N173: 3699674 | O173: 485167 | P173: 1263688 | Q173: 0 | R173: 255244 | S173: 2617639 | T173: 360553 | U173: 0 | V173: 11032 | W173: 0 | X173: 0 | Y173: 0 | Z173: 0 | AA173: 0 | AB173: 87052 | AC173: 0 | AD173: 55447 | AE173: 37860 | AF173: 27306 | AG173: 229536 | AH173: 16903 | AI173: 255305 | AJ173: 0 | AK173: 0 | AL173: 1133823 | AM173: 10470 | AN173: 482483 | AO173: 29020056
B174: 169 | C174: 0169 | D174: MARION | E174: 169 | F174: 1 | G174: 36802.89 | H174: 0 | I174: 0 | J174: 271506.79 | K174: 0 | L174: 47080.36 | M174: 2804678.07 | N174: 0 | O174: 0 | P174: 0 | Q174: 0 | R174: 56156.49 | S174: 400819.67 | T174: 72149 | U174: 0 | V174: 0 | W174: 0 | X174: 0 | Y174: 0 | Z174: 0 | AA174: 0 | AB174: 71136.82 | AC174: 0 | AD174: 25817.7 | AE174: 0 | AF174: 0 | AG174: 54238.33 | AH174: 61679.75 | AI174: 38111.21 | AJ174: 0 | AK174: 0 | AL174: 45375.01 | AM174: 0 | AN174: 191707.63 | AO174: 4177259.72
B175: 170 | C175: 0170 | D175: MARLBOROUGH | E175: 170 | F175: 1 | G175: 2412603.61 | H175: 189528.74 | I175: 0 | J175: 2199523.14 | K175: 651339.58 | L175: 0 | M175: 22021256.15 | N175: 6693349.87 | O175: 46113.08 | P175: 2051882.29 | Q175: 0 | R175: 199027.21 | S175: 4673376.88 | T175: 329815.51 | U175: 0 | V175: -0.12 | W175: 0 | X175: 67817.52 | Y175: 0 | Z175: 37946.41 | AA175: 0 | AB175: 216717.99 | AC175: 0 | AD175: 505322.41 | AE175: 66397.4 | AF175: 24640.28 | AG175: 181418.43 | AH175: 93430.91 | AI175: 0 | AJ175: 0 | AK175: 0 | AL175: 1971563.8 | AM175: 56771.5 | AN175: 481491.88 | AO175: 45171334.47
B176: 171 | C176: 0171 | D176: MARSHFIELD | E176: 171 | F176: 1 | G176: 641329.95 | H176: 0 | I176: 0 | J176: 2439287.1 | K176: 336476.04 | L176: 61848.34 | M176: 19369248.95 | N176: 2778841.46 | O176: 28048.8 | P176: 1381532.68 | Q176: 0 | R176: 783271.94 | S176: 2898952.38 | T176: 162934.17 | U176: 0 | V176: 0 | W176: 0 | X176: 40538.75 | Y176: 0 | Z176: 330 | AA176: 0 | AB176: 149311.15 | AC176: 0 | AD176: 213951.3 | AE176: 18042.99 | AF176: 162997.38 | AG176: 262724.36 | AH176: 74509.88 | AI176: 53839.76 | AJ176: 12286.08 | AK176: 22286.1 | AL176: 1185436.87 | AM176: 17257.22 | AN176: 591095.19 | AO176: 33686378.84
B177: 172 | C177: 0172 | D177: MASHPEE | E177: 172 | F177: 1 | G177: 251480 | H177: 0 | I177: 0 | J177: 1091574 | K177: 33243 | L177: 25645 | M177: 9655984 | N177: 0 | O177: 78602 | P177: 572478 | Q177: 0 | R177: 197184 | S177: 919839 | T177: 239686 | U177: 0 | V177: 22165 | W177: 0 | X177: 353646 | Y177: 0 | Z177: 45609 | AA177: 0 | AB177: 127076 | AC177: 0 | AD177: 58714 | AE177: 93023 | AF177: 43181 | AG177: 107315 | AH177: 148528 | AI177: 88856 | AJ177: 17632 | AK177: 35387 | AL177: 891601 | AM177: 16304 | AN177: 272620 | AO177: 15387372
B178: 173 | C178: 0173 | D178: MATTAPOISETT | E178: 173 | F178: 1 | G178: 45474.85 | H178: 0 | I178: 0 | J178: 367541.81 | K178: 0 | L178: 94294.62 | M178: 3035968.58 | N178: 0 | O178: 0 | P178: 0 | Q178: 0 | R178: 69895.98 | S178: 579478.23 | T178: 85382.6 | U178: 0 | V178: 0 | W178: 0 | X178: 0 | Y178: 0 | Z178: 0 | AA178: 0 | AB178: 63668.47 | AC178: 0 | AD178: 0 | AE178: 4074.36 | AF178: 0 | AG178: 29684.28 | AH178: 40916.85 | AI178: 20021.1 | AJ178: 0 | AK178: 0 | AL178: 82472.93 | AM178: 0 | AN178: 153099.42 | AO178: 4671974.08
B179: 174 | C179: 0174 | D179: MAYNARD | E179: 174 | F179: 1 | G179: 125964.61 | H179: 485038.58 | I179: 0 | J179: 873734.78 | K179: 82796.12 | L179: 0 | M179: 6449279.85 | N179: 1239602.75 | O179: 39754 | P179: 457610.79 | Q179: 0 | R179: 210405.05 | S179: 840812.94 | T179: 194212.01 | U179: 0 | V179: 29404.62 | W179: 0 | X179: 0 | Y179: 0 | Z179: 0 | AA179: 0 | AB179: 15944.2 | AC179: 0 | AD179: 63705.36 | AE179: 2915.23 | AF179: 58622.33 | AG179: 120665.4 | AH179: 13061.3 | AI179: 103340.49 | AJ179: 0 | AK179: 6504.82 | AL179: 568188.22 | AM179: 46193.33 | AN179: 201380.81 | AO179: 12229137.59
B180: 175 | C180: 0175 | D180: MEDFIELD | E180: 175 | F180: 1 | G180: 394808.89 | H180: 57776.5 | I180: 0 | J180: 1465242.21 | K180: 117770.26 | L180: 131501.12 | M180: 14377808 | N180: 1505457 | O180: 91898.05 | P180: 775542.46 | Q180: 0 | R180: 356631.98 | S180: 940953.83 | T180: 496942.02 | U180: 0 | V180: 132740.92 | W180: 0 | X180: 395659 | Y180: 0 | Z180: 72530 | AA180: 0 | AB180: 45250.2 | AC180: 0 | AD180: 109516.67 | AE180: 72283.76 | AF180: 2509.06 | AG180: 266230.61 | AH180: 20446.69 | AI180: 210407.4 | AJ180: 0 | AK180: 52445.07 | AL180: 981267.33 | AM180: 31662.12 | AN180: 366703.43 | AO180: 23471984.58
B181: 176 | C181: 0176 | D181: MEDFORD | E181: 176 | F181: 1 | G181: 2020164.2 | H181: 0 | I181: 0 | J181: 2299445.23 | K181: 0 | L181: 0 | M181: 26925813.01 | N181: 1976581.87 | O181: 826290.36 | P181: 1620226.98 | Q181: 0 | R181: 413192.13 | S181: 2141290.8 | T181: 421022.51 | U181: 0 | V181: 96409.92 | W181: 0 | X181: 0 | Y181: 0 | Z181: 0 | AA181: 0 | AB181: 2129 | AC181: 0 | AD181: 317565.95 | AE181: 25749.7 | AF181: 298356.65 | AG181: 189494.79 | AH181: 22032.9 | AI181: 0 | AJ181: 0 | AK181: 0 | AL181: 1720664.44 | AM181: 0 | AN181: 635485.58 | AO181: 41951916.02
B182: 177 | C182: 0177 | D182: MEDWAY | E182: 177 | F182: 1 | G182: 747122.8 | H182: 0 | I182: 0 | J182: 1246404.45 | K182: 0 | L182: 193366.88 | M182: 10677125.98 | N182: 1425121.17 | O182: 371082 | P182: 760612.03 | Q182: 0 | R182: 356411.63 | S182: 1107590 | T182: 152811 | U182: 0 | V182: 92770 | W182: 0 | X182: 324197 | Y182: 0 | Z182: 6102.5 | AA182: 0 | AB182: 128547.15 | AC182: 0 | AD182: 75308.11 | AE182: 7271.5 | AF182: 25860.32 | AG182: 50395.63 | AH182: 42284.73 | AI182: 0 | AJ182: 0 | AK182: 179237.13 | AL182: 683305.2 | AM182: 0 | AN182: 424962.93 | AO182: 19077890.14
B183: 178 | C183: 0178 | D183: MELROSE | E183: 178 | F183: 1 | G183: 848885.17 | H183: 0 | I183: 0 | J183: 1488425.72 | K183: 375753.75 | L183: 0 | M183: 11470070.42 | N183: 3445818.02 | O183: 0 | P183: 1317452.39 | Q183: 0 | R183: 252673.93 | S183: 1292883.3 | T183: 118762.02 | U183: 0 | V183: 0 | W183: 0 | X183: 269762.01 | Y183: 0 | Z183: 0 | AA183: 0 | AB183: 51572.61 | AC183: 0 | AD183: 83168.05 | AE183: 82942.44 | AF183: 141105.22 | AG183: 84141.92 | AH183: 0 | AI183: 0 | AJ183: 0 | AK183: 0 | AL183: 524384.06 | AM183: 0 | AN183: 592351.5 | AO183: 22440152.53
B184: 179 | C184: 0179 | D184: MENDON | E184: 179 | F184: 0 | G184: 0 | H184: 0 | I184: 0 | J184: 0 | K184: 0 | L184: 0 | M184: 0 | N184: 0 | O184: 0 | P184: 0 | Q184: 0 | R184: 0 | S184: 0 | T184: 0 | U184: 0 | V184: 0 | W184: 0 | X184: 0 | Y184: 0 | Z184: 0 | AA184: 0 | AB184: 0 | AC184: 0 | AD184: 0 | AE184: 0 | AF184: 0 | AG184: 0 | AH184: 0 | AI184: 0 | AJ184: 0 | AK184: 0 | AL184: 0 | AM184: 0 | AN184: 0 | AO184: 0
B185: 180 | C185: 0180 | D185: MERRIMAC | E185: 180 | F185: 0 | G185: 0 | H185: 0 | I185: 0 | J185: 0 | K185: 0 | L185: 0 | M185: 0 | N185: 0 | O185: 0 | P185: 0 | Q185: 0 | R185: 0 | S185: 0 | T185: 0 | U185: 0 | V185: 0 | W185: 0 | X185: 0 | Y185: 0 | Z185: 0 | AA185: 0 | AB185: 0 | AC185: 0 | AD185: 0 | AE185: 0 | AF185: 0 | AG185: 0 | AH185: 0 | AI185: 0 | AJ185: 0 | AK185: 0 | AL185: 0 | AM185: 0 | AN185: 0 | AO185: 0
B186: 181 | C186: 0181 | D186: METHUEN | E186: 181 | F186: 1 | G186: 1550222 | H186: 0 | I186: 0 | J186: 3146670 | K186: 887351 | L186: 451044 | M186: 29136876 | N186: 5450971 | O186: 0 | P186: 2298099 | Q186: 0 | R186: 866488 | S186: 2538860 | T186: 572981 | U186: 0 | V186: 8093 | W186: 0 | X186: 390670 | Y186: 0 | Z186: 4750 | AA186: 0 | AB186: 36371 | AC186: 0 | AD186: 152998 | AE186: 0 | AF186: 261049 | AG186: 120577 | AH186: 67097 | AI186: 270935 | AJ186: 0 | AK186: 86900 | AL186: 1980454 | AM186: 65684 | AN186: 937471 | AO186: 51282611
B187: 182 | C187: 0182 | D187: MIDDLEBOROUGH | E187: 182 | F187: 1 | G187: 560807.35 | H187: 0 | I187: 0 | J187: 1601992.28 | K187: 44488.82 | L187: 177963.08 | M187: 12894327.88 | N187: 2712728.4 | O187: 367818.62 | P187: 924813.99 | Q187: 0 | R187: 252572.75 | S187: 1603389.24 | T187: 159126.36 | U187: 0 | V187: 0 | W187: 0 | X187: 37184.91 | Y187: 0 | Z187: 27590.12 | AA187: 0 | AB187: 134564.43 | AC187: 0 | AD187: 56758.32 | AE187: 13358.12 | AF187: 84641.66 | AG187: 56340.89 | AH187: 82497.42 | AI187: 394786.27 | AJ187: 0 | AK187: 192529.68 | AL187: 911615.71 | AM187: 15910.38 | AN187: 478949.41 | AO187: 23786756.09
B188: 183 | C188: 0183 | D188: MIDDLEFIELD | E188: 183 | F188: 0 | G188: 0 | H188: 0 | I188: 0 | J188: 0 | K188: 0 | L188: 0 | M188: 0 | N188: 0 | O188: 0 | P188: 0 | Q188: 0 | R188: 0 | S188: 0 | T188: 0 | U188: 0 | V188: 0 | W188: 0 | X188: 0 | Y188: 0 | Z188: 0 | AA188: 0 | AB188: 0 | AC188: 0 | AD188: 0 | AE188: 0 | AF188: 0 | AG188: 0 | AH188: 0 | AI188: 0 | AJ188: 0 | AK188: 0 | AL188: 0 | AM188: 0 | AN188: 0 | AO188: 0
B189: 184 | C189: 0184 | D189: MIDDLETON | E189: 184 | F189: 1 | G189: 43822 | H189: 1249 | I189: 0 | J189: 360905 | K189: 157250 | L189: 0 | M189: 3453097 | N189: 836158 | O189: 160135 | P189: 264497 | Q189: 0 | R189: 167049 | S189: 568765 | T189: 107524 | U189: 0 | V189: 0 | W189: 0 | X189: 0 | Y189: 0 | Z189: 0 | AA189: 0 | AB189: 88955 | AC189: 0 | AD189: 17182 | AE189: 102232 | AF189: 632 | AG189: 35139 | AH189: 23227 | AI189: 100706 | AJ189: 0 | AK189: 0 | AL189: 33642 | AM189: 0 | AN189: 159792 | AO189: 6681958
B190: 185 | C190: 0185 | D190: MILFORD | E190: 185 | F190: 1 | G190: 672544 | H190: 0 | I190: 0 | J190: 1853696 | K190: 71342 | L190: 137049 | M190: 24199992 | N190: 895127 | O190: 565460 | P190: 9825 | Q190: 0 | R190: 567832 | S190: 2160980 | T190: 246684 | U190: 0 | V190: 0 | W190: 0 | X190: 0 | Y190: 0 | Z190: 0 | AA190: 0 | AB190: 112521 | AC190: 0 | AD190: 35990 | AE190: 23227 | AF190: 31009 | AG190: 490035.52 | AH190: 62204 | AI190: 16224 | AJ190: 13506 | AK190: 0 | AL190: 1526465 | AM190: 0 | AN190: 537313 | AO190: 34229025.52
B191: 186 | C191: 0186 | D191: MILLBURY | E191: 186 | F191: 1 | G191: 328496 | H191: 0 | I191: 0 | J191: 1008198 | K191: 0 | L191: 0 | M191: 9687990 | N191: 166719 | O191: 51360 | P191: 284710 | Q191: 0 | R191: 322750 | S191: 905486 | T191: 120511 | U191: 0 | V191: 0 | W191: 0 | X191: 237165 | Y191: 0 | Z191: 0 | AA191: 0 | AB191: 95203 | AC191: 0 | AD191: 36140 | AE191: 0 | AF191: 0 | AG191: 198996 | AH191: 45439 | AI191: 423705 | AJ191: 1659 | AK191: 0 | AL191: 550127 | AM191: 20511 | AN191: 205993 | AO191: 14691158
B192: 187 | C192: 0187 | D192: MILLIS | E192: 187 | F192: 1 | G192: 272610 | H192: 0 | I192: 0 | J192: 668679 | K192: 0 | L192: 74627 | M192: 6010667 | N192: 997977 | O192: 158438 | P192: 679698 | Q192: 0 | R192: 104110 | S192: 405853 | T192: 217863 | U192: 0 | V192: 62686 | W192: 0 | X192: 29879 | Y192: 0 | Z192: 0 | AA192: 0 | AB192: 46687 | AC192: 0 | AD192: 28086 | AE192: 147014 | AF192: 32247 | AG192: 28421 | AH192: 0 | AI192: 89955 | AJ192: 0 | AK192: 57746 | AL192: 379083 | AM192: 24671 | AN192: 58734 | AO192: 10575731
B193: 188 | C193: 0188 | D193: MILLVILLE | E193: 188 | F193: 0 | G193: 0 | H193: 0 | I193: 0 | J193: 0 | K193: 0 | L193: 0 | M193: 0 | N193: 0 | O193: 0 | P193: 0 | Q193: 0 | R193: 0 | S193: 0 | T193: 0 | U193: 0 | V193: 0 | W193: 0 | X193: 0 | Y193: 0 | Z193: 0 | AA193: 0 | AB193: 0 | AC193: 0 | AD193: 0 | AE193: 0 | AF193: 0 | AG193: 0 | AH193: 0 | AI193: 0 | AJ193: 0 | AK193: 0 | AL193: 0 | AM193: 0 | AN193: 0 | AO193: 0
B194: 189 | C194: 0189 | D194: MILTON | E194: 189 | F194: 1 | G194: 1471199.04 | H194: 254914.63 | I194: 0 | J194: 1662711.63 | K194: 0 | L194: 129.99 | M194: 19100512.6 | N194: 4230721.66 | O194: 637792.77 | P194: 656099.02 | Q194: 0 | R194: 506896.158 | S194: 1172078.46 | T194: 277587.91 | U194: 0 | V194: 0 | W194: 0 | X194: 450525.37 | Y194: 0 | Z194: 0 | AA194: 0 | AB194: 142830.03 | AC194: 0 | AD194: 286056.05 | AE194: 17435.34 | AF194: 74932.62 | AG194: 161548.93 | AH194: 79611.46 | AI194: 37543.48 | AJ194: 0 | AK194: 23869.02 | AL194: 1345479.48 | AM194: 0 | AN194: 200509.72 | AO194: 32790985.37
B195: 190 | C195: 0190 | D195: MONROE | E195: 190 | F195: 0 | G195: 9769 | H195: 0 | I195: 0 | J195: 0 | K195: 0 | L195: 0 | M195: 0 | N195: 0 | O195: 0 | P195: 0 | Q195: 0 | R195: 0 | S195: 0 | T195: 0 | U195: 0 | V195: 0 | W195: 0 | X195: 0 | Y195: 0 | Z195: 0 | AA195: 0 | AB195: 492 | AC195: 0 | AD195: 0 | AE195: 0 | AF195: 0 | AG195: 0 | AH195: 0 | AI195: 0 | AJ195: 0 | AK195: 0 | AL195: 0 | AM195: 0 | AN195: 0 | AO195: 10261
B196: 191 | C196: 0191 | D196: MONSON | E196: 191 | F196: 1 | G196: 210736 | H196: 0 | I196: 0 | J196: 746719 | K196: 0 | L196: 105243 | M196: 4739501 | N196: 0 | O196: 34998 | P196: 337290 | Q196: 0 | R196: 209965 | S196: 811663 | T196: 91896 | U196: 0 | V196: 0 | W196: 0 | X196: 221410 | Y196: 0 | Z196: 0 | AA196: 0 | AB196: 40695 | AC196: 0 | AD196: 2878 | AE196: 8660 | AF196: 0 | AG196: 88159 | AH196: 10344 | AI196: 5822 | AJ196: 0 | AK196: 0 | AL196: 477990 | AM196: 4190 | AN196: 96538 | AO196: 8244697
B197: 192 | C197: 0192 | D197: MONTAGUE | E197: 192 | F197: 0 | G197: 0 | H197: 0 | I197: 0 | J197: 0 | K197: 0 | L197: 0 | M197: 0 | N197: 0 | O197: 0 | P197: 0 | Q197: 0 | R197: 0 | S197: 0 | T197: 0 | U197: 0 | V197: 0 | W197: 0 | X197: 0 | Y197: 0 | Z197: 0 | AA197: 0 | AB197: 0 | AC197: 0 | AD197: 0 | AE197: 0 | AF197: 0 | AG197: 0 | AH197: 0 | AI197: 0 | AJ197: 0 | AK197: 0 | AL197: 0 | AM197: 0 | AN197: 0 | AO197: 0
B198: 193 | C198: 0193 | D198: MONTEREY | E198: 193 | F198: 0 | G198: 0 | H198: 0 | I198: 0 | J198: 0 | K198: 0 | L198: 0 | M198: 0 | N198: 0 | O198: 0 | P198: 0 | Q198: 0 | R198: 0 | S198: 0 | T198: 0 | U198: 0 | V198: 0 | W198: 0 | X198: 0 | Y198: 0 | Z198: 0 | AA198: 0 | AB198: 0 | AC198: 0 | AD198: 0 | AE198: 0 | AF198: 0 | AG198: 0 | AH198: 0 | AI198: 0 | AJ198: 0 | AK198: 0 | AL198: 0 | AM198: 0 | AN198: 0 | AO198: 0
B199: =B198+1 -> 194 | C199: 0194 | D199: MONTGOMERY | E199: 194 | F199: 0 | G199: 0 | H199: 0 | I199: 0 | J199: 0 | K199: 0 | L199: 0 | M199: 0 | N199: 0 | O199: 0 | P199: 0 | Q199: 0 | R199: 0 | S199: 0 | T199: 0 | U199: 0 | V199: 0 | W199: 0 | X199: 0 | Y199: 0 | Z199: 0 | AA199: 0 | AB199: 0 | AC199: 0 | AD199: 0 | AE199: 0 | AF199: 0 | AG199: 0 | AH199: 0 | AI199: 0 | AJ199: 0 | AK199: 0 | AL199: 0 | AM199: 0 | AN199: 0 | AO199: 0
B200: 195 | C200: 0195 | D200: MOUNT WASHINGTON | E200: 195 | F200: 0 | G200: 0 | H200: 0 | I200: 0 | J200: 0 | K200: 0 | L200: 0 | M200: 0 | N200: 0 | O200: 0 | P200: 0 | Q200: 0 | R200: 0 | S200: 0 | T200: 0 | U200: 0 | V200: 0 | W200: 0 | X200: 0 | Y200: 0 | Z200: 0 | AA200: 0 | AB200: 0 | AC200: 0 | AD200: 0 | AE200: 0 | AF200: 0 | AG200: 0 | AH200: 0 | AI200: 0 | AJ200: 0 | AK200: 0 | AL200: 0 | AM200: 0 | AN200: 0 | AO200: 0
B201: 196 | C201: 0196 | D201: NAHANT | E201: 196 | F201: 1 | G201: 2250 | H201: 0 | I201: 0 | J201: 136897 | K201: 0 | L201: 6000 | M201: 683090 | N201: 0 | O201: 0 | P201: 0 | Q201: 0 | R201: 14764 | S201: 86100 | T201: 4583 | U201: 0 | V201: 0 | W201: 0 | X201: 0 | Y201: 0 | Z201: 0 | AA201: 0 | AB201: 7315 | AC201: 0 | AD201: 5689 | AE201: 7926 | AF201: 7908 | AG201: 36432 | AH201: 16896 | AI201: 0 | AJ201: 17348 | AK201: 14887 | AL201: 18703 | AM201: 0 | AN201: 76482 | AO201: 1143270
B202: 197 | C202: 0197 | D202: NANTUCKET | E202: 197 | F202: 1 | G202: 428936 | H202: 22566 | I202: 0 | J202: 1186845 | K202: 0 | L202: 333424 | M202: 9685125 | N202: 2038947 | O202: 30356 | P202: 740494 | Q202: 0 | R202: 123181 | S202: 1255320 | T202: 243491 | U202: 0 | V202: 164268 | W202: 0 | X202: 450318 | Y202: 0 | Z202: 3000 | AA202: 0 | AB202: 190225 | AC202: 0 | AD202: 116765 | AE202: 28073 | AF202: 6672 | AG202: 147726 | AH202: 48941 | AI202: 395865 | AJ202: 4016 | AK202: 102853 | AL202: 686190 | AM202: 8120 | AN202: 0 | AO202: 18441717
B203: 198 | C203: 0198 | D203: NATICK | E203: 198 | F203: 1 | G203: 599005.64 | H203: 0 | I203: 0 | J203: 2944839.28 | K203: 662273.31 | L203: 893.63 | M203: 26140520.69 | N203: 1106848.5 | O203: 517139.25 | P203: 1836505.58 | Q203: 0 | R203: 612954.15 | S203: 2678343.64 | T203: 520643.1 | U203: 0 | V203: 198432.02 | W203: 0 | X203: 0 | Y203: 0 | Z203: 0 | AA203: 0 | AB203: 393366.78 | AC203: 0 | AD203: 433786.04 | AE203: 894673.21 | AF203: 118656.41 | AG203: 288851.83 | AH203: 133932.2 | AI203: 1451.73 | AJ203: 0 | AK203: 13014.68 | AL203: 1793645.77 | AM203: 50881.27 | AN203: 828494.04 | AO203: 42769152.75
B204: 199 | C204: 0199 | D204: NEEDHAM | E204: 199 | F204: 1 | G204: 1192505.1 | H204: 0 | I204: 0 | J204: 3479542 | K204: 1381954 | L204: 389748.3 | M204: 27762869 | N204: 7646066.2 | O204: 233354 | P204: 988853.4 | Q204: 0 | R204: 332997 | S204: 3087343.6 | T204: 976465 | U204: 0 | V204: 405081 | W204: 0 | X204: 110776 | Y204: 0 | Z204: 29253 | AA204: 0 | AB204: 453700.4 | AC204: 0 | AD204: 26134 | AE204: 147787 | AF204: 185791.9 | AG204: 670460 | AH204: 365439 | AI204: 1089456 | AJ204: 51238 | AK204: 82891 | AL204: 2340287 | AM204: 210385 | AN204: 443228 | AO204: 54083604.9
... 240 more rows

Sheet FY18 (hidden)
E4: 1 | F4: =E4+1 -> 2 | G4: =F4+1 -> 3 | H4: 4 | I4: 5 | J4: 6 | K4: 7 | L4: 8 | M4: 9 | N4: 10 | O4: 11 | P4: 12 | Q4: 13 | R4: 14 | S4: 15 | T4: 16 | U4: 17 | V4: 18 | W4: 19 | X4: 20 | Y4: 21 | Z4: 22 | AA4: 23 | AB4: 24 | AC4: 25 | AD4: 26 | AE4: 27 | AF4: 28 | AG4: 29 | AH4: 30 | AI4: 31 | AJ4: 32 | AK4: 33 | AL4: 34 | AM4: 35 | AN4: 36 | AO4: 37
B5: Order | C5: Lea | D5: District | E5: Lea | F5: Op. | G5: Curriculum Directors (Supervisory) (2110) (line 3409, col 6) | H5: Department Heads (Non-Supervisory) (2120) (line 3419, col 6) | I5: Instructional Technology Leadership and Training (2130) (line 3427, col 6) * | J5: School Leadership-Building (2210) (line 3434, col 6) | K5: Curriculum Leaders/Department Heads-Building Level (2220) | L5: Administrative Technology and Support – Schools (2250) (line 3449, col 6) | M5: Teachers, Classroom (2305) (line 3450, col 6) | N5: Teachers, Specialists (2310) | O5: Instructional Coordinators and Team Leaders (2315) | P5: Medical/ Therapeutic Services (2320) (line 3459, col 6) | Q5: Substitutes, Long Term (2324) (line 3465, col 6) | R5: Substitutes, Short Term (2325) (line 3469, col 6) | S5: Non-Clerical Paraprofs./Instructional Assistants (2330) (line 3475, col 6) | T5: Librarians and Media Center Directors (2340) (line 3479, col 6) | U5: Distance Learning and Online Coursework (2345) (line 3486, col 6) * | V5: Professional Development Leadership (2351) (line 3493, col 6) | W5: Instructional Coaches (2352) (line 3498, col 6) | X5: Teacher/Instructional Staff-Professional Days (2353) | Y5: Stipends for Teachers Providing Instructional Coaching (2354) (line 3499, col 6) | Z5: Substitutes for Instructional Staff at Prof. Development (2355) | AA5: Costs for Instructional Staff to Attend Prof. Dev. (2356) (line 3505, col 6) | AB5: Prof. Development Stipends, Providers and Expenses (2357) | AC5: Outside Professional Development for Instructional Staff (2358) (line 3509, col 6) | AD5: Textbooks (2410) (line 3511, col 6) | AE5: Other Instructional Materials (2415) (line 3519, col 6) | AF5: Instructional Equipment (2420) (line 3529, col 6) | AG5: General Supplies (2430) (line 3535, col 6) | AH5: Other Instructional Services (2440) (line 3544, col 6) | AI5: Instructional Hardware –Student and Staff Devices (computers) (2451) (line 3548, col 6) | AJ5: Instructional Hardware—All Other (2453) (line 3552, col 6) | AK5: Instructional Software and Other Instructional Materials (2455) (line 3556, col 6) | AL5: Guidance Counselors and Adjustment Counselors (2710) (line 3569, col 6) | AM5: Testing and Assessment (2720) (line 3579, col 6) | AN5: Psychological Services (2800) (line 3589, col 6) | AO5: Total Instruction (2000) (line 3599, col 6)
B6: 1 | C6: 0001 | D6: ABINGTON | E6: 001 | F6: 1 | G6: 326478.52 | H6: 45318.88 | I6: 0 | J6: 1116731.53 | K6: 0 | L6: 5289.46 | M6: 9722775.67 | N6: 0 | O6: 0 | P6: 368494 | Q6: 155382.04 | R6: 92978.86 | S6: 1558018.37 | T6: 87421.98 | U6: 0 | V6: 17935 | W6: 0 | X6: 0 | Y6: 21975 | Z6: 0 | AA6: 82917.65 | AB6: 0 | AC6: 0 | AD6: 176428.48 | AE6: 67861.23 | AF6: 32391.89 | AG6: 237938.21 | AH6: 473132 | AI6: 205644.67 | AJ6: 21990 | AK6: 139209 | AL6: 383840.96 | AM6: 0 | AN6: 401795.03 | AO6: 15741948.43
B7: =B6+1 -> 2 | C7: 0002 | D7: ACTON | E7: 002 | F7: 0 | G7: 0 | H7: 0 | I7: 0 | J7: 0 | K7: 0 | L7: 0 | M7: 0 | N7: 0 | O7: 0 | P7: 0 | Q7: 0 | R7: 0 | S7: 0 | T7: 0 | U7: 0 | V7: 0 | W7: 0 | X7: 0 | Y7: 0 | Z7: 0 | AA7: 0 | AB7: 0 | AC7: 0 | AD7: 0 | AE7: 0 | AF7: 0 | AG7: 0 | AH7: 0 | AI7: 0 | AJ7: 0 | AK7: 0 | AL7: 0 | AM7: 0 | AN7: 0 | AO7: 0
B8: 3 | C8: 0003 | D8: ACUSHNET | E8: 003 | F8: 1 | G8: 157585.43 | H8: 16117.71 | I8: 0 | J8: 454500.17 | K8: 0 | L8: 141092.38 | M8: 4989090.01 | N8: 0 | O8: 0 | P8: 367818 | Q8: 46692.3 | R8: 103656.75 | S8: 491659.11 | T8: 30446.58 | U8: 0 | V8: 0 | W8: 67110.5 | X8: 0 | Y8: 0 | Z8: 0 | AA8: 8728.87 | AB8: 0 | AC8: 28187.9 | AD8: 71147.06 | AE8: 0 | AF8: 4111.87 | AG8: 34189.29 | AH8: 25411.51 | AI8: 253915.09 | AJ8: 0 | AK8: 0 | AL8: 315655.88 | AM8: 0 | AN8: 135112.61 | AO8: 7742229.02
B9: 4 | C9: 0004 | D9: ADAMS | E9: 004 | F9: 0 | G9: 0 | H9: 0 | I9: 0 | J9: 0 | K9: 0 | L9: 0 | M9: 0 | N9: 0 | O9: 0 | P9: 0 | Q9: 0 | R9: 0 | S9: 0 | T9: 0 | U9: 0 | V9: 0 | W9: 0 | X9: 0 | Y9: 0 | Z9: 0 | AA9: 0 | AB9: 0 | AC9: 0 | AD9: 0 | AE9: 0 | AF9: 0 | AG9: 0 | AH9: 0 | AI9: 0 | AJ9: 0 | AK9: 0 | AL9: 0 | AM9: 0 | AN9: 0 | AO9: 0
B10: 5 | C10: 0005 | D10: AGAWAM | E10: 005 | F10: 1 | G10: 400672 | H10: 0 | I10: 0 | J10: 2032307 | K10: 0 | L10: 8798 | M10: 23213648 | N10: 0 | O10: 0 | P10: 1598724 | Q10: 509085 | R10: 31945 | S10: 3210703 | T10: 458305 | U10: 0 | V10: 0 | W10: 276870 | X10: 0 | Y10: 144686 | Z10: 0 | AA10: 101854 | AB10: 0 | AC10: 0 | AD10: 230652 | AE10: 60710 | AF10: 21983 | AG10: 279935 | AH10: 3148 | AI10: 285482 | AJ10: 54930 | AK10: 0 | AL10: 1648948 | AM10: 17392 | AN10: 435432 | AO10: 35026209
B11: 6 | C11: 0006 | D11: ALFORD | E11: 006 | F11: 0 | G11: 0 | H11: 0 | I11: 0 | J11: 0 | K11: 0 | L11: 0 | M11: 0 | N11: 0 | O11: 0 | P11: 0 | Q11: 0 | R11: 0 | S11: 0 | T11: 0 | U11: 0 | V11: 0 | W11: 0 | X11: 0 | Y11: 0 | Z11: 0 | AA11: 0 | AB11: 0 | AC11: 0 | AD11: 0 | AE11: 0 | AF11: 0 | AG11: 0 | AH11: 0 | AI11: 0 | AJ11: 0 | AK11: 0 | AL11: 0 | AM11: 0 | AN11: 0 | AO11: 0
B12: 7 | C12: 0007 | D12: AMESBURY | E12: 007 | F12: 1 | G12: 416329.955 | H12: 65755.5 | I12: 0 | J12: 1447417.43 | K12: 0 | L12: 2433.51 | M12: 11921715.13 | N12: 0 | O12: 0 | P12: 1000452.95 | Q12: 154951.33 | R12: 189155.756 | S12: 1729770.59 | T12: 316539.42 | U12: 0 | V12: 76549.645 | W12: 0 | X12: 0 | Y12: 8975 | Z12: 0 | AA12: 55654.42 | AB12: 0 | AC12: 10616.06 | AD12: 27588.58 | AE12: 20272.71 | AF12: 106032.18 | AG12: 182122.03 | AH12: 35425.63 | AI12: 32486.4 | AJ12: 3289.97 | AK12: 32996.77 | AL12: 873401.99 | AM12: 0 | AN12: 169377.6 | AO12: 18879310.56
B13: 8 | C13: 0008 | D13: AMHERST | E13: 008 | F13: 1 | G13: 324266 | H13: 15953 | I13: 0 | J13: 977603 | K13: 0 | L13: 8091 | M13: 8556989 | N13: 0 | O13: 0 | P13: 561726 | Q13: 79247 | R13: 163625 | S13: 2297479 | T13: 247606 | U13: 0 | V13: 268 | W13: 383098 | X13: 0 | Y13: 0 | Z13: 0 | AA13: 14588 | AB13: 0 | AC13: 14075 | AD13: 0 | AE13: 70654 | AF13: 8102 | AG13: 41919 | AH13: 23648 | AI13: 173794 | AJ13: 129 | AK13: 3455 | AL13: 249189 | AM13: 0 | AN13: 484499 | AO13: 14700003
B14: 9 | C14: 0009 | D14: ANDOVER | E14: 009 | F14: 1 | G14: 2120042 | H14: 101211 | I14: 0 | J14: 3589074 | K14: 0 | L14: 408942 | M14: 39765313 | N14: 0 | O14: 0 | P14: 2376078 | Q14: 136770 | R14: 405814 | S14: 6026458 | T14: 1301955 | U14: 0 | V14: 0 | W14: 0 | X14: 0 | Y14: 50283 | Z14: 0 | AA14: 367463 | AB14: 0 | AC14: 45199 | AD14: 749228 | AE14: 68045 | AF14: 167183 | AG14: 465379 | AH14: 81383 | AI14: 69208 | AJ14: 0 | AK14: 14629 | AL14: 2122923 | AM14: 0 | AN14: 1433466 | AO14: 61866046
B15: 10 | C15: 0010 | D15: ARLINGTON | E15: 010 | F15: 1 | G15: 1744171 | H15: 14124 | I15: 0 | J15: 2952765.92 | K15: 0 | L15: 0 | M15: 29559573 | N15: 0 | O15: 0 | P15: 1183757 | Q15: 991812 | R15: 0 | S15: 2693186 | T15: 286368 | U15: 0 | V15: 14175 | W15: 5351 | X15: 0 | Y15: 0 | Z15: 0 | AA15: 2818 | AB15: 0 | AC15: 217223 | AD15: 105537 | AE15: 373694 | AF15: 31181 | AG15: 172990 | AH15: 38609 | AI15: 348 | AJ15: 0 | AK15: 31985 | AL15: 2366278 | AM15: 45995.3 | AN15: 760825 | AO15: 43592766.22
B16: 11 | C16: 0011 | D16: ASHBURNHAM | E16: 011 | F16: 0 | G16: 0 | H16: 0 | I16: 0 | J16: 0 | K16: 0 | L16: 0 | M16: 0 | N16: 0 | O16: 0 | P16: 0 | Q16: 0 | R16: 0 | S16: 0 | T16: 0 | U16: 0 | V16: 0 | W16: 0 | X16: 0 | Y16: 0 | Z16: 0 | AA16: 0 | AB16: 0 | AC16: 0 | AD16: 0 | AE16: 0 | AF16: 0 | AG16: 0 | AH16: 0 | AI16: 0 | AJ16: 0 | AK16: 0 | AL16: 0 | AM16: 0 | AN16: 0 | AO16: 0
B17: 12 | C17: 0012 | D17: ASHBY | E17: 012 | F17: 0 | G17: 0 | H17: 0 | I17: 0 | J17: 0 | K17: 0 | L17: 0 | M17: 0 | N17: 0 | O17: 0 | P17: 0 | Q17: 0 | R17: 0 | S17: 0 | T17: 0 | U17: 0 | V17: 0 | W17: 0 | X17: 0 | Y17: 0 | Z17: 0 | AA17: 0 | AB17: 0 | AC17: 0 | AD17: 0 | AE17: 0 | AF17: 0 | AG17: 0 | AH17: 0 | AI17: 0 | AJ17: 0 | AK17: 0 | AL17: 0 | AM17: 0 | AN17: 0 | AO17: 0
B18: 13 | C18: 0013 | D18: ASHFIELD | E18: 013 | F18: 0 | G18: 0 | H18: 0 | I18: 0 | J18: 0 | K18: 0 | L18: 0 | M18: 0 | N18: 0 | O18: 0 | P18: 0 | Q18: 0 | R18: 0 | S18: 0 | T18: 0 | U18: 0 | V18: 0 | W18: 0 | X18: 0 | Y18: 0 | Z18: 0 | AA18: 0 | AB18: 0 | AC18: 0 | AD18: 0 | AE18: 0 | AF18: 0 | AG18: 0 | AH18: 0 | AI18: 0 | AJ18: 0 | AK18: 0 | AL18: 0 | AM18: 0 | AN18: 0 | AO18: 0
B19: 14 | C19: 0014 | D19: ASHLAND | E19: 014 | F19: 1 | G19: 137019.47 | H19: 25866.36 | I19: 0 | J19: 1331556.26 | K19: 0 | L19: 6800.93 | M19: 15258032.83 | N19: 0 | O19: 0 | P19: 660630.51 | Q19: 158049.96 | R19: 183706.32 | S19: 1580998.61 | T19: 94084.98 | U19: 0 | V19: 36876.38 | W19: 0 | X19: 0 | Y19: 52449.08 | Z19: 0 | AA19: 0 | AB19: 0 | AC19: 64150.38 | AD19: 22908.99 | AE19: 2943.81 | AF19: 22542.81 | AG19: 3249.27 | AH19: 91725.94 | AI19: 7274.6 | AJ19: 0 | AK19: 2500 | AL19: 1251354.87 | AM19: 0 | AN19: 538380.74 | AO19: 21533103.1
B20: 15 | C20: 0015 | D20: ATHOL | E20: 015 | F20: 0 | G20: 0 | H20: 0 | I20: 0 | J20: 0 | K20: 0 | L20: 0 | M20: 0 | N20: 0 | O20: 0 | P20: 0 | Q20: 0 | R20: 0 | S20: 0 | T20: 0 | U20: 0 | V20: 0 | W20: 0 | X20: 0 | Y20: 0 | Z20: 0 | AA20: 0 | AB20: 0 | AC20: 0 | AD20: 0 | AE20: 0 | AF20: 0 | AG20: 0 | AH20: 0 | AI20: 0 | AJ20: 0 | AK20: 0 | AL20: 0 | AM20: 0 | AN20: 0 | AO20: 0
B21: 16 | C21: 0016 | D21: ATTLEBORO | E21: 016 | F21: 1 | G21: 484707.55 | H21: 230013 | I21: 0 | J21: 2956274.58 | K21: 0 | L21: 61263.29 | M21: 29727059.03 | N21: 0 | O21: 0 | P21: 1882998.04 | Q21: 0 | R21: 923705.82 | S21: 3080843.32 | T21: 177967.24 | U21: 0 | V21: 438945.87 | W21: 0 | X21: 0 | Y21: 8956.78 | Z21: 0 | AA21: 100241.9 | AB21: 0 | AC21: 8600 | AD21: 44774.07 | AE21: 8692.92 | AF21: 155522.68 | AG21: 132150.27 | AH21: 571.57 | AI21: 15121.07 | AJ21: 58535.65 | AK21: 10185.72 | AL21: 1662680.9 | AM21: 20000 | AN21: 482495.44 | AO21: 42672306.71
B22: 17 | C22: 0017 | D22: AUBURN | E22: 017 | F22: 1 | G22: 317995.74 | H22: 250742.39 | I22: 0 | J22: 1392686.35 | K22: 0 | L22: 164058.86 | M22: 12870639.38 | N22: 0 | O22: 0 | P22: 505272.61 | Q22: 137290.33 | R22: 120877.59 | S22: 2130239.29 | T22: 171660.94 | U22: 0 | V22: 79.58 | W22: 0 | X22: 0 | Y22: 50796.06 | Z22: 0 | AA22: 36631.51 | AB22: 0 | AC22: 33656.78 | AD22: 189939.02 | AE22: 20857.29 | AF22: 13123.57 | AG22: 137885.61 | AH22: 57549.26 | AI22: 40105.07 | AJ22: 29011.55 | AK22: 176480.6 | AL22: 952437.05 | AM22: 0 | AN22: 159711.24 | AO22: 19959727.67
B23: 18 | C23: 0018 | D23: AVON | E23: 018 | F23: 1 | G23: 117799 | H23: 0 | I23: 0 | J23: 561826 | K23: 0 | L23: 97309 | M23: 4024078 | N23: 0 | O23: 0 | P23: 0 | Q23: 0 | R23: 45888 | S23: 185923 | T23: 70432 | U23: 0 | V23: 8850 | W23: 0 | X23: 0 | Y23: 0 | Z23: 0 | AA23: 39500 | AB23: 0 | AC23: 0 | AD23: 124009 | AE23: 5913 | AF23: 47385 | AG23: 81144 | AH23: 9839 | AI23: 49925 | AJ23: 20335 | AK23: 41000 | AL23: 162446 | AM23: 851 | AN23: 139945 | AO23: 5834397
B24: 19 | C24: 0019 | D24: AYER | E24: 019 | F24: 0 | G24: 0 | H24: 0 | I24: 0 | J24: 0 | K24: 0 | L24: 0 | M24: 0 | N24: 0 | O24: 0 | P24: 0 | Q24: 0 | R24: 0 | S24: 0 | T24: 0 | U24: 0 | V24: 0 | W24: 0 | X24: 0 | Y24: 0 | Z24: 0 | AA24: 0 | AB24: 0 | AC24: 0 | AD24: 0 | AE24: 0 | AF24: 0 | AG24: 0 | AH24: 0 | AI24: 0 | AJ24: 0 | AK24: 0 | AL24: 0 | AM24: 0 | AN24: 0 | AO24: 0
B25: 20 | C25: 0020 | D25: BARNSTABLE | E25: 020 | F25: 1 | G25: 1426590.83 | H25: 2083663.51 | I25: 0 | J25: 2854269.93 | K25: 0 | L25: 179429.83 | M25: 28448982.46 | N25: 0 | O25: 0 | P25: 2673085.36 | Q25: 0 | R25: 750735.11 | S25: 3204508.37 | T25: 348084.63 | U25: 0 | V25: 0 | W25: 0 | X25: 0 | Y25: 0 | Z25: 0 | AA25: 257429.33 | AB25: 0 | AC25: 0 | AD25: 462258.35 | AE25: 37775.85 | AF25: 377243.35 | AG25: 491828.64 | AH25: 13343.48 | AI25: 41886.2 | AJ25: 0 | AK25: 9296.24 | AL25: 1798234.46 | AM25: 93223.87 | AN25: 763912.92 | AO25: 46315782.72
B26: 21 | C26: 0021 | D26: BARRE | E26: 021 | F26: 0 | G26: 0 | H26: 0 | I26: 0 | J26: 0 | K26: 0 | L26: 0 | M26: 0 | N26: 0 | O26: 0 | P26: 0 | Q26: 0 | R26: 0 | S26: 0 | T26: 0 | U26: 0 | V26: 0 | W26: 0 | X26: 0 | Y26: 0 | Z26: 0 | AA26: 0 | AB26: 0 | AC26: 0 | AD26: 0 | AE26: 0 | AF26: 0 | AG26: 0 | AH26: 0 | AI26: 0 | AJ26: 0 | AK26: 0 | AL26: 0 | AM26: 0 | AN26: 0 | AO26: 0
B27: 22 | C27: 0022 | D27: BECKET | E27: 022 | F27: 0 | G27: 0 | H27: 0 | I27: 0 | J27: 0 | K27: 0 | L27: 0 | M27: 0 | N27: 0 | O27: 0 | P27: 0 | Q27: 0 | R27: 0 | S27: 0 | T27: 0 | U27: 0 | V27: 0 | W27: 0 | X27: 0 | Y27: 0 | Z27: 0 | AA27: 0 | AB27: 0 | AC27: 0 | AD27: 0 | AE27: 0 | AF27: 0 | AG27: 0 | AH27: 0 | AI27: 0 | AJ27: 0 | AK27: 0 | AL27: 0 | AM27: 0 | AN27: 0 | AO27: 0
B28: 23 | C28: 0023 | D28: BEDFORD | E28: 023 | F28: 1 | G28: 439017.33 | H28: 92848.29 | I28: 0 | J28: 2202258.6 | K28: 0 | L28: 929999.83 | M28: 20503871.94 | N28: 0 | O28: 0 | P28: 0 | Q28: 48984.95 | R28: 215763.16 | S28: 1440931.52 | T28: 462676.49 | U28: 0 | V28: 55300.54 | W28: 564852.37 | X28: 0 | Y28: 0 | Z28: 0 | AA28: 0 | AB28: 0 | AC28: 0 | AD28: 308039.03 | AE28: 47161.6 | AF28: 121810.2 | AG28: 295554.26 | AH28: 261663.3 | AI28: 95931.6 | AJ28: 0 | AK28: 0 | AL28: 1184717.19 | AM28: 16222.65 | AN28: 129007 | AO28: 29416611.85
B29: 24 | C29: 0024 | D29: BELCHERTOWN | E29: 024 | F29: 1 | G29: 549554 | H29: 0 | I29: 0 | J29: 1268960.19 | K29: 0 | L29: 0 | M29: 10904884 | N29: 0 | O29: 0 | P29: 567587 | Q29: 291924 | R29: 75536.22 | S29: 1620216 | T29: 287475 | U29: 0 | V29: 290 | W29: 0 | X29: 0 | Y29: 14348 | Z29: 0 | AA29: 57249 | AB29: 0 | AC29: 68012.25 | AD29: 35343 | AE29: 36513 | AF29: 68388 | AG29: 175263 | AH29: 207718 | AI29: 83103.89 | AJ29: 6976 | AK29: 3369 | AL29: 977345.1 | AM29: 17806 | AN29: 211738 | AO29: 17529598.65
B30: 25 | C30: 0025 | D30: BELLINGHAM | E30: 025 | F30: 1 | G30: 0 | H30: 329477.69 | I30: 0 | J30: 1083139.56 | K30: 0 | L30: 38865.69 | M30: 12237084.27 | N30: 0 | O30: 0 | P30: 1004029.54 | Q30: 78441 | R30: 206164.77 | S30: 1312275.26 | T30: 122312.04 | U30: 0 | V30: 45296.68 | W30: 31872 | X30: 0 | Y30: 3789.9 | Z30: 0 | AA30: 79849.3 | AB30: 0 | AC30: 8743 | AD30: 64076.83 | AE30: 11104.05 | AF30: 38232.69 | AG30: 180358.47 | AH30: 7764.88 | AI30: 25103.75 | AJ30: 6181.15 | AK30: 49258.42 | AL30: 608259.77 | AM30: 24405.94 | AN30: 250406.28 | AO30: 17846492.93
B31: 26 | C31: 0026 | D31: BELMONT | E31: 026 | F31: 1 | G31: 1104942 | H31: 0 | I31: 0 | J31: 2180632 | K31: 0 | L31: 656978 | M31: 23658773.5 | N31: 0 | O31: 0 | P31: 1041377 | Q31: 201803 | R31: 386590 | S31: 1911900 | T31: 280657 | U31: 0 | V31: 49343 | W31: 0 | X31: 0 | Y31: 40275 | Z31: 0 | AA31: 106797 | AB31: 0 | AC31: 28473 | AD31: 55047 | AE31: 216353 | AF31: 78216 | AG31: 176430 | AH31: 496907 | AI31: 656458 | AJ31: 143934 | AK31: 108997 | AL31: 1024555 | AM31: 18224 | AN31: 626091 | AO31: 35249752.5
B32: 27 | C32: 0027 | D32: BERKLEY | E32: 027 | F32: 1 | G32: 146396 | H32: 0 | I32: 0 | J32: 499113 | K32: 0 | L32: 97684 | M32: 3975937 | N32: 0 | O32: 0 | P32: 134109 | Q32: 88375 | R32: 92427 | S32: 388754 | T32: 21503 | U32: 0 | V32: 0 | W32: 0 | X32: 0 | Y32: 0 | Z32: 0 | AA32: 22076 | AB32: 0 | AC32: 25500 | AD32: 31777 | AE32: 0 | AF32: 26856 | AG32: 59250 | AH32: 0 | AI32: 78138 | AJ32: 53211 | AK32: 2108 | AL32: 2000 | AM32: 2373 | AN32: 42787 | AO32: 5790374
B33: 28 | C33: 0028 | D33: BERLIN | E33: 028 | F33: 1 | G33: 78488 | H33: 22250 | I33: 0 | J33: 144296 | K33: 0 | L33: 30867 | M33: 1337993 | N33: 0 | O33: 0 | P33: 82827 | Q33: 11932 | R33: 20887 | S33: 185353 | T33: 63357 | U33: 0 | V33: 483 | W33: 0 | X33: 0 | Y33: 5712 | Z33: 0 | AA33: 9771 | AB33: 0 | AC33: 0 | AD33: 1984 | AE33: 1123 | AF33: 25364 | AG33: 6853 | AH33: 0 | AI33: 10968 | AJ33: 0 | AK33: 2806 | AL33: 0 | AM33: 130 | AN33: 123869 | AO33: 2167313
B34: 29 | C34: 0029 | D34: BERNARDSTON | E34: 029 | F34: 0 | G34: 0 | H34: 0 | I34: 0 | J34: 0 | K34: 0 | L34: 0 | M34: 0 | N34: 0 | O34: 0 | P34: 0 | Q34: 0 | R34: 0 | S34: 0 | T34: 0 | U34: 0 | V34: 0 | W34: 0 | X34: 0 | Y34: 0 | Z34: 0 | AA34: 0 | AB34: 0 | AC34: 0 | AD34: 0 | AE34: 0 | AF34: 0 | AG34: 0 | AH34: 0 | AI34: 0 | AJ34: 0 | AK34: 0 | AL34: 0 | AM34: 0 | AN34: 0 | AO34: 0
B35: 30 | C35: 0030 | D35: BEVERLY | E35: 030 | F35: 1 | G35: 359786.94 | H35: 31690 | I35: 0 | J35: 2013529.67 | K35: 0 | L35: 0 | M35: 22754963.08 | N35: 0 | O35: 0 | P35: 1959631.56 | Q35: 132252.39 | R35: 559684.23 | S35: 2003263.2 | T35: 152011.07 | U35: 0 | V35: 54763.44 | W35: 0 | X35: 0 | Y35: 2433.3 | Z35: 0 | AA35: 129270.63 | AB35: 0 | AC35: 0 | AD35: 24419.27 | AE35: 22744.81 | AF35: 76017.5 | AG35: 154019.01 | AH35: 400918.45 | AI35: 11773.948 | AJ35: 2112 | AK35: 0 | AL35: 1453051.87 | AM35: 83400.23 | AN35: 395539.79 | AO35: 32777276.39
B36: 31 | C36: 0031 | D36: BILLERICA | E36: 031 | F36: 1 | G36: 1160559 | H36: 0 | I36: 0 | J36: 2940941 | K36: 0 | L36: 0 | M36: 30514177 | N36: 0 | O36: 0 | P36: 2732058 | Q36: 56198 | R36: 306192 | S36: 3269881 | T36: 434078 | U36: 0 | V36: 0 | W36: 358871 | X36: 0 | Y36: 101975 | Z36: 0 | AA36: 67587 | AB36: 0 | AC36: 85763 | AD36: 237051 | AE36: 49491 | AF36: 200858 | AG36: 512476 | AH36: 67073 | AI36: 424396 | AJ36: 0 | AK36: 150000 | AL36: 928317 | AM36: 18816 | AN36: 2029387 | AO36: 46646145
B37: 32 | C37: 0032 | D37: BLACKSTONE | E37: 032 | F37: 0 | G37: 0 | H37: 0 | I37: 0 | J37: 0 | K37: 0 | L37: 0 | M37: 0 | N37: 0 | O37: 0 | P37: 0 | Q37: 0 | R37: 0 | S37: 0 | T37: 0 | U37: 0 | V37: 0 | W37: 0 | X37: 0 | Y37: 0 | Z37: 0 | AA37: 0 | AB37: 0 | AC37: 0 | AD37: 0 | AE37: 0 | AF37: 0 | AG37: 0 | AH37: 0 | AI37: 0 | AJ37: 0 | AK37: 0 | AL37: 0 | AM37: 0 | AN37: 0 | AO37: 0
B38: 33 | C38: 0033 | D38: BLANDFORD | E38: 033 | F38: 0 | G38: 0 | H38: 0 | I38: 0 | J38: 0 | K38: 0 | L38: 0 | M38: 0 | N38: 0 | O38: 0 | P38: 0 | Q38: 0 | R38: 0 | S38: 0 | T38: 0 | U38: 0 | V38: 0 | W38: 0 | X38: 0 | Y38: 0 | Z38: 0 | AA38: 0 | AB38: 0 | AC38: 0 | AD38: 0 | AE38: 0 | AF38: 0 | AG38: 0 | AH38: 0 | AI38: 0 | AJ38: 0 | AK38: 0 | AL38: 0 | AM38: 0 | AN38: 0 | AO38: 0
B39: 34 | C39: 0034 | D39: BOLTON | E39: 034 | F39: 0 | G39: 0 | H39: 0 | I39: 0 | J39: 0 | K39: 0 | L39: 0 | M39: 0 | N39: 0 | O39: 0 | P39: 0 | Q39: 0 | R39: 0 | S39: 0 | T39: 0 | U39: 0 | V39: 0 | W39: 0 | X39: 0 | Y39: 0 | Z39: 0 | AA39: 0 | AB39: 0 | AC39: 0 | AD39: 0 | AE39: 0 | AF39: 0 | AG39: 0 | AH39: 0 | AI39: 0 | AJ39: 0 | AK39: 0 | AL39: 0 | AM39: 0 | AN39: 0 | AO39: 0
B40: 35 | C40: 0035 | D40: BOSTON | E40: 035 | F40: 1 | G40: 21731048.6 | H40: 25900787.06 | I40: 0 | J40: 37972636.63 | K40: 0 | L40: 0 | M40: 412169544.5 | N40: 0 | O40: 0 | P40: 19012611.03 | Q40: 1083494.57 | R40: 17114156.92 | S40: 66839929.15 | T40: 2695196.69 | U40: 0 | V40: 403381.39 | W40: 4869038.42 | X40: 0 | Y40: 0 | Z40: 0 | AA40: 404094.62 | AB40: 0 | AC40: 1654091.01 | AD40: 6598757.9 | AE40: 48970.52 | AF40: 91898.9 | AG40: 0 | AH40: 11515768.3 | AI40: 5613188.98 | AJ40: 0 | AK40: 0 | AL40: 10028490.27 | AM40: 1163978.94 | AN40: 6646055.41 | AO40: 653557119.8
B41: 36 | C41: 0036 | D41: BOURNE | E41: 036 | F41: 1 | G41: 507295.182 | H41: 0 | I41: 0 | J41: 1170539.61 | K41: 0 | L41: 0 | M41: 11314004.94 | N41: 0 | O41: 0 | P41: 884898.1 | Q41: 98432.96 | R41: 183048.04 | S41: 798382.23 | T41: 115812.91 | U41: 0 | V41: 0 | W41: 0 | X41: 0 | Y41: 12396.91 | Z41: 0 | AA41: 11417.74 | AB41: 0 | AC41: 0 | AD41: 33560.85 | AE41: 13497.23 | AF41: 3592.59 | AG41: 67594.96 | AH41: 169998 | AI41: 3290 | AJ41: 0 | AK41: 20699.09 | AL41: 559014.07 | AM41: 32932.79 | AN41: 323710.26 | AO41: 16324118.46
B42: 37 | C42: 0037 | D42: BOXBOROUGH | E42: 037 | F42: 0 | G42: 0 | H42: 0 | I42: 0 | J42: 0 | K42: 0 | L42: 0 | M42: 0 | N42: 0 | O42: 0 | P42: 0 | Q42: 0 | R42: 0 | S42: 0 | T42: 0 | U42: 0 | V42: 0 | W42: 0 | X42: 0 | Y42: 0 | Z42: 0 | AA42: 0 | AB42: 0 | AC42: 0 | AD42: 0 | AE42: 0 | AF42: 0 | AG42: 0 | AH42: 0 | AI42: 0 | AJ42: 0 | AK42: 0 | AL42: 0 | AM42: 0 | AN42: 0 | AO42: 0
B43: 38 | C43: 0038 | D43: BOXFORD | E43: 038 | F43: 1 | G43: 267127 | H43: 178829 | I43: 0 | J43: 392875 | K43: 0 | L43: 0 | M43: 4597172 | N43: 0 | O43: 0 | P43: 506639 | Q43: 1652 | R43: 212739 | S43: 693132 | T43: 109801 | U43: 0 | V43: 0 | W43: 0 | X43: 0 | Y43: 0 | Z43: 0 | AA43: 78828 | AB43: 0 | AC43: 5339 | AD43: 4360 | AE43: 208230 | AF43: 527 | AG43: 54038 | AH43: 7893 | AI43: 172842 | AJ43: 0 | AK43: 0 | AL43: 112252 | AM43: 0 | AN43: 187411 | AO43: 7791686
B44: 39 | C44: 0039 | D44: BOYLSTON | E44: 039 | F44: 1 | G44: 75865 | H44: 22000 | I44: 0 | J44: 137780 | K44: 0 | L44: 26584 | M44: 1342581 | N44: 0 | O44: 0 | P44: 56617 | Q44: 44719 | R44: 32450 | S44: 158584 | T44: 37269 | U44: 0 | V44: 333 | W44: 0 | X44: 0 | Y44: 7177 | Z44: 0 | AA44: 8393 | AB44: 0 | AC44: 0 | AD44: 7005 | AE44: 1424 | AF44: 25285 | AG44: 5992 | AH44: 0 | AI44: 30777 | AJ44: 0 | AK44: 2626 | AL44: 0 | AM44: 40 | AN44: 103309 | AO44: 2126810
B45: 40 | C45: 0040 | D45: BRAINTREE | E45: 040 | F45: 1 | G45: 1366915.83 | H45: 0 | I45: 0 | J45: 2681446.26 | K45: 0 | L45: 0 | M45: 33574962.11 | N45: 0 | O45: 0 | P45: 2225870.8 | Q45: 195896.57 | R45: 736944.24 | S45: 2653147.91 | T45: 465727 | U45: 0 | V45: 221132.86 | W45: 0 | X45: 0 | Y45: 0 | Z45: 0 | AA45: 0 | AB45: 0 | AC45: 0 | AD45: 89214.84 | AE45: 0 | AF45: 339048.78 | AG45: 254594.59 | AH45: 950.58 | AI45: 328688.2 | AJ45: 0 | AK45: 111295.82 | AL45: 1108196.97 | AM45: 6441.29 | AN45: 1937077.03 | AO45: 48297551.68
B46: 41 | C46: 0041 | D46: BREWSTER | E46: 041 | F46: 1 | G46: 42424 | H46: 68337 | I46: 0 | J46: 448429 | K46: 0 | L46: 42191 | M46: 3291601 | N46: 0 | O46: 0 | P46: 318950 | Q46: 121397 | R46: 57094 | S46: 1034493 | T46: 26102 | U46: 0 | V46: 6336 | W46: 0 | X46: 0 | Y46: 3345 | Z46: 0 | AA46: 2334 | AB46: 0 | AC46: 3661 | AD46: 14273 | AE46: 19982 | AF46: 16095 | AG46: 18862 | AH46: 840 | AI46: 20419 | AJ46: 82 | AK46: 813 | AL46: 145268 | AM46: 1849 | AN46: 33701 | AO46: 5738878
B47: 42 | C47: 0042 | D47: BRIDGEWATER | E47: 042 | F47: 0 | G47: 0 | H47: 0 | I47: 0 | J47: 0 | K47: 0 | L47: 0 | M47: 0 | N47: 0 | O47: 0 | P47: 0 | Q47: 0 | R47: 0 | S47: 0 | T47: 0 | U47: 0 | V47: 0 | W47: 0 | X47: 0 | Y47: 0 | Z47: 0 | AA47: 0 | AB47: 0 | AC47: 0 | AD47: 0 | AE47: 0 | AF47: 0 | AG47: 0 | AH47: 0 | AI47: 0 | AJ47: 0 | AK47: 0 | AL47: 0 | AM47: 0 | AN47: 0 | AO47: 0
B48: 43 | C48: 0043 | D48: BRIMFIELD | E48: 043 | F48: 1 | G48: 0 | H48: 0 | I48: 0 | J48: 149766 | K48: 0 | L48: 36166 | M48: 1832131 | N48: 0 | O48: 0 | P48: 144359 | Q48: 0 | R48: 46225 | S48: 138674 | T48: 36466 | U48: 0 | V48: 0 | W48: 2788 | X48: 0 | Y48: 2860 | Z48: 0 | AA48: 4923 | AB48: 0 | AC48: 4600 | AD48: 28037 | AE48: 45 | AF48: 0 | AG48: 37070 | AH48: 0 | AI48: 0 | AJ48: 5725 | AK48: 1384 | AL48: 53699 | AM48: 0 | AN48: 84349 | AO48: 2609267
B49: 44 | C49: 0044 | D49: BROCKTON | E49: 044 | F49: 1 | G49: 3910533.92 | H49: 1736764.39 | I49: 0 | J49: 6740078.57 | K49: 0 | L49: 1687007.72 | M49: 88403075.71 | N49: 0 | O49: 0 | P49: 3570384.82 | Q49: 0 | R49: 996726.93 | S49: 8151199.19 | T49: 531415.08 | U49: 0 | V49: 118729.95 | W49: 0 | X49: 0 | Y49: 0 | Z49: 0 | AA49: 0 | AB49: 0 | AC49: 179223.65 | AD49: 72992.86 | AE49: 3486482.02 | AF49: 6611.9 | AG49: 0 | AH49: 20708 | AI49: 0 | AJ49: 1879215.56 | AK49: 0 | AL49: 5878038.45 | AM49: 153876.9 | AN49: 1989371.23 | AO49: 129512436.9
B50: 45 | C50: 0045 | D50: BROOKFIELD | E50: 045 | F50: 1 | G50: 0 | H50: 0 | I50: 0 | J50: 178971 | K50: 0 | L50: 42773 | M50: 1405718 | N50: 0 | O50: 0 | P50: 127586 | Q50: 0 | R50: 23356 | S50: 230618 | T50: 42773 | U50: 0 | V50: 0 | W50: 0 | X50: 0 | Y50: 0 | Z50: 0 | AA50: 4616 | AB50: 0 | AC50: 10782 | AD50: 33352 | AE50: 2424 | AF50: 0 | AG50: 31670 | AH50: 181 | AI50: 0 | AJ50: 3736 | AK50: 11970 | AL50: 27782 | AM50: 1994 | AN50: 60511 | AO50: 2240813
B51: 46 | C51: 0046 | D51: BROOKLINE | E51: 046 | F51: 1 | G51: 5166883 | H51: 0 | I51: 0 | J51: 3624451 | K51: 0 | L51: 0 | M51: 56587624 | N51: 0 | O51: 0 | P51: 292456 | Q51: 6000 | R51: 1954971 | S51: 12648651 | T51: 1171414 | U51: 0 | V51: 2386 | W51: 165099 | X51: 0 | Y51: 40495 | Z51: 0 | AA51: 690325 | AB51: 0 | AC51: 240 | AD51: 541729 | AE51: 1039154 | AF51: 112026 | AG51: 38298 | AH51: 1434743 | AI51: 113432 | AJ51: 1423413 | AK51: 46637 | AL51: 3211082 | AM51: 0 | AN51: 1348627 | AO51: 91660136
B52: 47 | C52: 0047 | D52: BUCKLAND | E52: 047 | F52: 0 | G52: 0 | H52: 0 | I52: 0 | J52: 0 | K52: 0 | L52: 0 | M52: 0 | N52: 0 | O52: 0 | P52: 0 | Q52: 0 | R52: 0 | S52: 0 | T52: 0 | U52: 0 | V52: 0 | W52: 0 | X52: 0 | Y52: 0 | Z52: 0 | AA52: 0 | AB52: 0 | AC52: 0 | AD52: 0 | AE52: 0 | AF52: 0 | AG52: 0 | AH52: 0 | AI52: 0 | AJ52: 0 | AK52: 0 | AL52: 0 | AM52: 0 | AN52: 0 | AO52: 0
B53: 48 | C53: 0048 | D53: BURLINGTON | E53: 048 | F53: 1 | G53: 1448203.92 | H53: 0 | I53: 0 | J53: 2685228.95 | K53: 0 | L53: 189989.15 | M53: 29813257.69 | N53: 0 | O53: 0 | P53: 0 | Q53: 0 | R53: 820652.69 | S53: 2234161.2 | T53: 647788.16 | U53: 0 | V53: 0 | W53: 132 | X53: 0 | Y53: 57666.74 | Z53: 0 | AA53: 0 | AB53: 0 | AC53: 37738 | AD53: 213303.25 | AE53: 822460.7 | AF53: 87519.11 | AG53: 139351.63 | AH53: 1037378.41 | AI53: 3245 | AJ53: 0 | AK53: 0 | AL53: 1470137.92 | AM53: 0 | AN53: 341825.01 | AO53: 42050039.53
B54: 49 | C54: 0049 | D54: CAMBRIDGE | E54: 049 | F54: 1 | G54: 3415972.94 | H54: 1347736.2 | I54: 0 | J54: 7229430.74 | K54: 0 | L54: 1027944.63 | M54: 58680153.07 | N54: 0 | O54: 0 | P54: 5318039.88 | Q54: 885308.28 | R54: 1537804.34 | S54: 8202825.7 | T54: 1748169.38 | U54: 0 | V54: 87321.4 | W54: 3649608.76 | X54: 0 | Y54: 187315.99 | Z54: 0 | AA54: 524880.45 | AB54: 0 | AC54: 294549.35 | AD54: 392787.99 | AE54: 1505332.45 | AF54: 32899.18 | AG54: 25302.97 | AH54: 2707634.15 | AI54: 1088980.43 | AJ54: 3570.76 | AK54: 149293.6 | AL54: 1911227.79 | AM54: 22604.2 | AN54: 4397286.4 | AO54: 106373981
B55: 50 | C55: 0050 | D55: CANTON | E55: 050 | F55: 1 | G55: 692585 | H55: 0 | I55: 0 | J55: 1521150 | K55: 0 | L55: 512300 | M55: 20776825 | N55: 0 | O55: 0 | P55: 1480909 | Q55: 4865 | R55: 483852 | S55: 724132 | T55: 302058 | U55: 0 | V55: 0 | W55: 1067 | X55: 0 | Y55: 47124 | Z55: 0 | AA55: 215631.26 | AB55: 0 | AC55: 39588 | AD55: 14476 | AE55: 4551.8 | AF55: 311503 | AG55: 300916 | AH55: 5431 | AI55: 314522 | AJ55: 182771 | AK55: 0 | AL55: 1264040 | AM55: 0 | AN55: 1094126 | AO55: 30294423.06
B56: 51 | C56: 0051 | D56: CARLISLE | E56: 051 | F56: 1 | G56: 176664.6 | H56: 0 | I56: 0 | J56: 386880.18 | K56: 0 | L56: 47477.4 | M56: 5559471.21 | N56: 0 | O56: 0 | P56: 615125.62 | Q56: 0 | R56: 91599.83 | S56: 501224.45 | T56: 144743.95 | U56: 0 | V56: 0 | W56: 0 | X56: 0 | Y56: 9475 | Z56: 0 | AA56: 70942.2 | AB56: 0 | AC56: 0 | AD56: 0 | AE56: 102713.64 | AF56: 51237.13 | AG56: 54347.45 | AH56: 0 | AI56: 25663.19 | AJ56: 0 | AK56: 34713.72 | AL56: 0 | AM56: 10702.03 | AN56: 327234.99 | AO56: 8210216.59
B57: 52 | C57: 0052 | D57: CARVER | E57: 052 | F57: 1 | G57: 402455 | H57: 0 | I57: 0 | J57: 905243 | K57: 0 | L57: 29170 | M57: 8557160 | N57: 0 | O57: 0 | P57: 488958 | Q57: 79717 | R57: 115220 | S57: 136142 | T57: 203009 | U57: 0 | V57: 0 | W57: 11366 | X57: 0 | Y57: 0 | Z57: 0 | AA57: 215795 | AB57: 0 | AC57: 41687 | AD57: 56525 | AE57: 21997 | AF57: 72862 | AG57: 139289 | AH57: 22610 | AI57: 0 | AJ57: 652 | AK57: 156861 | AL57: 668783 | AM57: 27514 | AN57: 169039 | AO57: 12522054
B58: 53 | C58: 0053 | D58: CHARLEMONT | E58: 053 | F58: 0 | G58: 0 | H58: 0 | I58: 0 | J58: 0 | K58: 0 | L58: 0 | M58: 0 | N58: 0 | O58: 0 | P58: 0 | Q58: 0 | R58: 0 | S58: 0 | T58: 0 | U58: 0 | V58: 0 | W58: 0 | X58: 0 | Y58: 0 | Z58: 0 | AA58: 0 | AB58: 0 | AC58: 0 | AD58: 0 | AE58: 0 | AF58: 0 | AG58: 0 | AH58: 0 | AI58: 0 | AJ58: 0 | AK58: 0 | AL58: 0 | AM58: 0 | AN58: 0 | AO58: 0
B59: 54 | C59: 0054 | D59: CHARLTON | E59: 054 | F59: 0 | G59: 0 | H59: 0 | I59: 0 | J59: 0 | K59: 0 | L59: 0 | M59: 0 | N59: 0 | O59: 0 | P59: 0 | Q59: 0 | R59: 0 | S59: 0 | T59: 0 | U59: 0 | V59: 0 | W59: 0 | X59: 0 | Y59: 0 | Z59: 0 | AA59: 0 | AB59: 0 | AC59: 0 | AD59: 0 | AE59: 0 | AF59: 0 | AG59: 0 | AH59: 0 | AI59: 0 | AJ59: 0 | AK59: 0 | AL59: 0 | AM59: 0 | AN59: 0 | AO59: 0
B60: 55 | C60: 0055 | D60: CHATHAM | E60: 055 | F60: 0 | G60: 0 | H60: 0 | I60: 0 | J60: 0 | K60: 0 | L60: 0 | M60: 0 | N60: 0 | O60: 0 | P60: 0 | Q60: 0 | R60: 0 | S60: 0 | T60: 0 | U60: 0 | V60: 0 | W60: 0 | X60: 0 | Y60: 0 | Z60: 0 | AA60: 0 | AB60: 0 | AC60: 0 | AD60: 0 | AE60: 0 | AF60: 0 | AG60: 0 | AH60: 0 | AI60: 0 | AJ60: 0 | AK60: 0 | AL60: 0 | AM60: 0 | AN60: 0 | AO60: 0
B61: 56 | C61: 0056 | D61: CHELMSFORD | E61: 056 | F61: 1 | G61: 1501792.76 | H61: 0 | I61: 0 | J61: 2148062.19 | K61: 0 | L61: 0 | M61: 29197227.48 | N61: 0 | O61: 0 | P61: 357646.29 | Q61: 216892 | R61: 337597.54 | S61: 3630453.87 | T61: 631208.83 | U61: 0 | V61: 0 | W61: 0 | X61: 0 | Y61: 35075 | Z61: 0 | AA61: 84605.88 | AB61: 0 | AC61: 9494.26 | AD61: 400978.89 | AE61: 109531.79 | AF61: 92714.87 | AG61: 423848.42 | AH61: 167462.34 | AI61: 223368.46 | AJ61: 0 | AK61: 137000 | AL61: 1238070.31 | AM61: 0 | AN61: 714743.45 | AO61: 41657774.63
B62: 57 | C62: 0057 | D62: CHELSEA | E62: 057 | F62: 1 | G62: 1336397.91 | H62: 6107.2 | I62: 0 | J62: 4394927.65 | K62: 0 | L62: 23224.95 | M62: 26060059.35 | N62: 0 | O62: 0 | P62: 926608.13 | Q62: 223440 | R62: 501325.35 | S62: 3608630.75 | T62: 291480.38 | U62: 0 | V62: 94420.405 | W62: 1658539.16 | X62: 0 | Y62: 359655.8092 | Z62: 0 | AA62: 39764.25 | AB62: 0 | AC62: 247999.55 | AD62: 255637.81 | AE62: 12103.65 | AF62: 81156.38 | AG62: 355570.58 | AH62: 484442.5 | AI62: 523186.44 | AJ62: 0 | AK62: 290047.6 | AL62: 2078150.47 | AM62: 252310.38 | AN62: 292802.96 | AO62: 44397989.62
B63: 58 | C63: 0058 | D63: CHESHIRE | E63: 058 | F63: 0 | G63: 0 | H63: 0 | I63: 0 | J63: 0 | K63: 0 | L63: 0 | M63: 0 | N63: 0 | O63: 0 | P63: 0 | Q63: 0 | R63: 0 | S63: 0 | T63: 0 | U63: 0 | V63: 0 | W63: 0 | X63: 0 | Y63: 0 | Z63: 0 | AA63: 0 | AB63: 0 | AC63: 0 | AD63: 0 | AE63: 0 | AF63: 0 | AG63: 0 | AH63: 0 | AI63: 0 | AJ63: 0 | AK63: 0 | AL63: 0 | AM63: 0 | AN63: 0 | AO63: 0
B64: 59 | C64: 0059 | D64: CHESTER | E64: 059 | F64: 0 | G64: 0 | H64: 0 | I64: 0 | J64: 0 | K64: 0 | L64: 0 | M64: 0 | N64: 0 | O64: 0 | P64: 0 | Q64: 0 | R64: 0 | S64: 0 | T64: 0 | U64: 0 | V64: 0 | W64: 0 | X64: 0 | Y64: 0 | Z64: 0 | AA64: 0 | AB64: 0 | AC64: 0 | AD64: 0 | AE64: 0 | AF64: 0 | AG64: 0 | AH64: 0 | AI64: 0 | AJ64: 0 | AK64: 0 | AL64: 0 | AM64: 0 | AN64: 0 | AO64: 0
B65: 60 | C65: 0060 | D65: CHESTERFIELD | E65: 060 | F65: 0 | G65: 0 | H65: 0 | I65: 0 | J65: 0 | K65: 0 | L65: 0 | M65: 0 | N65: 0 | O65: 0 | P65: 0 | Q65: 0 | R65: 0 | S65: 0 | T65: 0 | U65: 0 | V65: 0 | W65: 0 | X65: 0 | Y65: 0 | Z65: 0 | AA65: 0 | AB65: 0 | AC65: 0 | AD65: 0 | AE65: 0 | AF65: 0 | AG65: 0 | AH65: 0 | AI65: 0 | AJ65: 0 | AK65: 0 | AL65: 0 | AM65: 0 | AN65: 0 | AO65: 0
B66: 61 | C66: 0061 | D66: CHICOPEE | E66: 061 | F66: 1 | G66: 261336.77 | H66: 1022552.24 | I66: 0 | J66: 5775148.08 | K66: 0 | L66: 572073.85 | M66: 40678319.86 | N66: 0 | O66: 0 | P66: 1518254.61 | Q66: 0 | R66: 0 | S66: 6117859.75 | T66: 322983.4 | U66: 0 | V66: 117485.32 | W66: 0 | X66: 0 | Y66: 4370.31 | Z66: 0 | AA66: 907933.79 | AB66: 0 | AC66: 919575.07 | AD66: 33877.14 | AE66: 57339.08 | AF66: 159484.46 | AG66: 142586.97 | AH66: 11859 | AI66: 33052.9 | AJ66: 0 | AK66: 0 | AL66: 1073402.91 | AM66: 50872.5 | AN66: 719367.9 | AO66: 60499735.91
B67: 62 | C67: 0062 | D67: CHILMARK | E67: 062 | F67: 0 | G67: 0 | H67: 0 | I67: 0 | J67: 0 | K67: 0 | L67: 0 | M67: 0 | N67: 0 | O67: 0 | P67: 0 | Q67: 0 | R67: 0 | S67: 0 | T67: 0 | U67: 0 | V67: 0 | W67: 0 | X67: 0 | Y67: 0 | Z67: 0 | AA67: 0 | AB67: 0 | AC67: 0 | AD67: 0 | AE67: 0 | AF67: 0 | AG67: 0 | AH67: 0 | AI67: 0 | AJ67: 0 | AK67: 0 | AL67: 0 | AM67: 0 | AN67: 0 | AO67: 0
B68: 63 | C68: 0063 | D68: CLARKSBURG | E68: 063 | F68: 1 | G68: 50602 | H68: 0 | I68: 0 | J68: 128686 | K68: 0 | L68: 4865 | M68: 817916 | N68: 0 | O68: 0 | P68: 59514 | Q68: 11776 | R68: 0 | S68: 102154 | T68: 0 | U68: 0 | V68: 0 | W68: 0 | X68: 0 | Y68: 0 | Z68: 0 | AA68: 3830 | AB68: 0 | AC68: 879 | AD68: 0 | AE68: 0 | AF68: 0 | AG68: 10380 | AH68: 3746 | AI68: 9283 | AJ68: 0 | AK68: 38 | AL68: 8662 | AM68: 0 | AN68: 14173 | AO68: 1226504
B69: 64 | C69: 0064 | D69: CLINTON | E69: 064 | F69: 1 | G69: 186447.95 | H69: 252859.13 | I69: 0 | J69: 887679.55 | K69: 0 | L69: 96072 | M69: 9434497.24 | N69: 0 | O69: 0 | P69: 800729.36 | Q69: 0 | R69: 123461.67 | S69: 604535.07 | T69: 158034.98 | U69: 0 | V69: 0 | W69: 1000 | X69: 0 | Y69: 0 | Z69: 0 | AA69: 59356 | AB69: 0 | AC69: 1450 | AD69: 116751 | AE69: 96837.84 | AF69: 61308.48 | AG69: 17749.93 | AH69: 17803.74 | AI69: 21122.59 | AJ69: 11291 | AK69: 26647.76 | AL69: 611963.88 | AM69: 16980.24 | AN69: 209507.02 | AO69: 13814086.43
B70: 65 | C70: 0065 | D70: COHASSET | E70: 065 | F70: 1 | G70: 382407.65 | H70: 271695.09 | I70: 0 | J70: 823195.94 | K70: 0 | L70: 0 | M70: 9823892.94 | N70: 0 | O70: 0 | P70: 428461.04 | Q70: 326973 | R70: 97183 | S70: 601641.78 | T70: 167177.92 | U70: 0 | V70: 0 | W70: 0 | X70: 0 | Y70: 6500 | Z70: 0 | AA70: 92445 | AB70: 0 | AC70: 16173 | AD70: 44974.92 | AE70: 22962.58 | AF70: 45572.7 | AG70: 139881.71 | AH70: 413 | AI70: 16962.87 | AJ70: 1481.66 | AK70: 23978.1 | AL70: 643995.36 | AM70: 18395.06 | AN70: 173092.68 | AO70: 14169457
B71: =B70+1 -> 66 | C71: 0066 | D71: COLRAIN | E71: 066 | F71: 0 | G71: 0 | H71: 0 | I71: 0 | J71: 0 | K71: 0 | L71: 0 | M71: 0 | N71: 0 | O71: 0 | P71: 0 | Q71: 0 | R71: 0 | S71: 0 | T71: 0 | U71: 0 | V71: 0 | W71: 0 | X71: 0 | Y71: 0 | Z71: 0 | AA71: 0 | AB71: 0 | AC71: 0 | AD71: 0 | AE71: 0 | AF71: 0 | AG71: 0 | AH71: 0 | AI71: 0 | AJ71: 0 | AK71: 0 | AL71: 0 | AM71: 0 | AN71: 0 | AO71: 0
B72: 67 | C72: 0067 | D72: CONCORD | E72: 067 | F72: 1 | G72: 368072.42 | H72: 346103.63 | I72: 0 | J72: 1355335.64 | K72: 0 | L72: 212988.28 | M72: 16709335.29 | N72: 0 | O72: 0 | P72: 1421617.08 | Q72: 161528.6 | R72: 142189.57 | S72: 3668088.41 | T72: 550252.5 | U72: 0 | V72: 72326.38 | W72: 51391.5 | X72: 0 | Y72: 24964.95 | Z72: 0 | AA72: 269831.94 | AB72: 0 | AC72: 98329.68 | AD72: 97523.59 | AE72: 49955.46 | AF72: 53237.72 | AG72: 392853.74 | AH72: 162691.96 | AI72: 278131.81 | AJ72: 5797.36 | AK72: 70755.3 | AL72: 725114.27 | AM72: 14121.14 | AN72: 358991 | AO72: 27661529.22
B73: 68 | C73: 0068 | D73: CONWAY | E73: 068 | F73: 1 | G73: 44357 | H73: 0 | I73: 0 | J73: 142147 | K73: 0 | L73: 0 | M73: 743411 | N73: 0 | O73: 0 | P73: 111890 | Q73: 0 | R73: 18632 | S73: 101274 | T73: 58054 | U73: 0 | V73: 0 | W73: 9266 | X73: 0 | Y73: 750 | Z73: 0 | AA73: 0 | AB73: 0 | AC73: 0 | AD73: 3755 | AE73: 1777 | AF73: 3014 | AG73: 18073 | AH73: 16158 | AI73: 6907 | AJ73: 19833 | AK73: 5129 | AL73: 0 | AM73: 5443 | AN73: 73871 | AO73: 1383741
B74: 69 | C74: 0069 | D74: CUMMINGTON | E74: 069 | F74: 0 | G74: 0 | H74: 0 | I74: 0 | J74: 0 | K74: 0 | L74: 0 | M74: 0 | N74: 0 | O74: 0 | P74: 0 | Q74: 0 | R74: 0 | S74: 0 | T74: 0 | U74: 0 | V74: 0 | W74: 0 | X74: 0 | Y74: 0 | Z74: 0 | AA74: 0 | AB74: 0 | AC74: 0 | AD74: 0 | AE74: 0 | AF74: 0 | AG74: 0 | AH74: 0 | AI74: 0 | AJ74: 0 | AK74: 0 | AL74: 0 | AM74: 0 | AN74: 0 | AO74: 0
B75: 70 | C75: 0070 | D75: DALTON | E75: 070 | F75: 0 | G75: 0 | H75: 0 | I75: 0 | J75: 0 | K75: 0 | L75: 0 | M75: 0 | N75: 0 | O75: 0 | P75: 0 | Q75: 0 | R75: 0 | S75: 0 | T75: 0 | U75: 0 | V75: 0 | W75: 0 | X75: 0 | Y75: 0 | Z75: 0 | AA75: 0 | AB75: 0 | AC75: 0 | AD75: 0 | AE75: 0 | AF75: 0 | AG75: 0 | AH75: 0 | AI75: 0 | AJ75: 0 | AK75: 0 | AL75: 0 | AM75: 0 | AN75: 0 | AO75: 0
B76: 71 | C76: 0071 | D76: DANVERS | E76: 071 | F76: 1 | G76: 1082947.89 | H76: 0 | I76: 0 | J76: 1733611.97 | K76: 0 | L76: 0 | M76: 20614260.65 | N76: 0 | O76: 0 | P76: 1311446.43 | Q76: 152116.24 | R76: 204813.65 | S76: 2159361.85 | T76: 287792.78 | U76: 0 | V76: 419.97 | W76: 0 | X76: 0 | Y76: 0 | Z76: 0 | AA76: 1091269.11 | AB76: 0 | AC76: 90635.68 | AD76: 467212.96 | AE76: 56363.01 | AF76: 465088.35 | AG76: 202311.87 | AH76: 0 | AI76: 0 | AJ76: 0 | AK76: 251819.29 | AL76: 676265.34 | AM76: 18560.37 | AN76: 1234999.11 | AO76: 32101296.52
B77: 72 | C77: 0072 | D77: DARTMOUTH | E77: 072 | F77: 1 | G77: 561637.56 | H77: 32769 | I77: 0 | J77: 2268107 | K77: 0 | L77: 1292 | M77: 20604340.84 | N77: 0 | O77: 0 | P77: 865256.38 | Q77: 36091 | R77: 278024.52 | S77: 1715150.91 | T77: 275273 | U77: 0 | V77: 0 | W77: 914432 | X77: 0 | Y77: 3765 | Z77: 0 | AA77: 231280.95 | AB77: 0 | AC77: 7790 | AD77: 136891 | AE77: 40098 | AF77: 0 | AG77: 310673.3 | AH77: 86246.3 | AI77: 207871.84 | AJ77: 0 | AK77: 0 | AL77: 1517778.58 | AM77: 33157 | AN77: 375596.4 | AO77: 30503522.58
B78: 73 | C78: 0073 | D78: DEDHAM | E78: 073 | F78: 1 | G78: 1281415.12 | H78: 86218.5 | I78: 0 | J78: 1639848.22 | K78: 0 | L78: 0 | M78: 18981333.86 | N78: 0 | O78: 0 | P78: 1476770.24 | Q78: 397000.89 | R78: 185100.59 | S78: 1985243.94 | T78: 503029.43 | U78: 0 | V78: 3848.31 | W78: 784730.76 | X78: 0 | Y78: 23803 | Z78: 0 | AA78: 168278.51 | AB78: 0 | AC78: 107078.9 | AD78: 346074.72 | AE78: 35022.33 | AF78: 41702.11 | AG78: 338684.33 | AH78: 18012.21 | AI78: 43150 | AJ78: 0 | AK78: 159512.77 | AL78: 1403747.95 | AM78: 54076.56 | AN78: 567223.2 | AO78: 30630906.45
B79: 74 | C79: 0074 | D79: DEERFIELD | E79: 074 | F79: 1 | G79: 125215 | H79: 0 | I79: 0 | J79: 275176 | K79: 0 | L79: 0 | M79: 1935521 | N79: 0 | O79: 0 | P79: 287211 | Q79: 57132 | R79: 53396 | S79: 317593 | T79: 52005 | U79: 0 | V79: 0 | W79: 19832 | X79: 0 | Y79: 4500 | Z79: 0 | AA79: 1470 | AB79: 0 | AC79: 21623 | AD79: 4373 | AE79: 8617 | AF79: 7531 | AG79: 34318 | AH79: 62206 | AI79: 28947 | AJ79: 22582 | AK79: 22443 | AL79: 0 | AM79: 51854 | AN79: 73790 | AO79: 3467335
B80: 75 | C80: 0075 | D80: DENNIS | E80: 075 | F80: 0 | G80: 0 | H80: 0 | I80: 0 | J80: 0 | K80: 0 | L80: 0 | M80: 0 | N80: 0 | O80: 0 | P80: 0 | Q80: 0 | R80: 0 | S80: 0 | T80: 0 | U80: 0 | V80: 0 | W80: 0 | X80: 0 | Y80: 0 | Z80: 0 | AA80: 0 | AB80: 0 | AC80: 0 | AD80: 0 | AE80: 0 | AF80: 0 | AG80: 0 | AH80: 0 | AI80: 0 | AJ80: 0 | AK80: 0 | AL80: 0 | AM80: 0 | AN80: 0 | AO80: 0
B81: 76 | C81: 0076 | D81: DIGHTON | E81: 076 | F81: 0 | G81: 0 | H81: 0 | I81: 0 | J81: 0 | K81: 0 | L81: 0 | M81: 0 | N81: 0 | O81: 0 | P81: 0 | Q81: 0 | R81: 0 | S81: 0 | T81: 0 | U81: 0 | V81: 0 | W81: 0 | X81: 0 | Y81: 0 | Z81: 0 | AA81: 0 | AB81: 0 | AC81: 0 | AD81: 0 | AE81: 0 | AF81: 0 | AG81: 0 | AH81: 0 | AI81: 0 | AJ81: 0 | AK81: 0 | AL81: 0 | AM81: 0 | AN81: 0 | AO81: 0
B82: 77 | C82: 0077 | D82: DOUGLAS | E82: 077 | F82: 1 | G82: 229149.12 | H82: 0 | I82: 0 | J82: 723275.99 | K82: 0 | L82: 0 | M82: 6161670.58 | N82: 0 | O82: 0 | P82: 497889.46 | Q82: 24350 | R82: 64807.5 | S82: 1220051.69 | T82: 37223.75 | U82: 0 | V82: 0 | W82: 0 | X82: 0 | Y82: 0 | Z82: 0 | AA82: 33523.1 | AB82: 0 | AC82: 2500 | AD82: 450 | AE82: 87714.6 | AF82: 39098.24 | AG82: 0 | AH82: 0 | AI82: 57932.13 | AJ82: 191.44 | AK82: 17703.55 | AL82: 369458.99 | AM82: 12776.09 | AN82: 126519.75 | AO82: 9706285.98
B83: 78 | C83: 0078 | D83: DOVER | E83: 078 | F83: 1 | G83: 204383.65 | H83: 21002.21 | I83: 0 | J83: 363348.92 | K83: 0 | L83: 0 | M83: 3664972.07 | N83: 0 | O83: 0 | P83: 252503.86 | Q83: 20536 | R83: 31831.64 | S83: 615620.89 | T83: 102697.5 | U83: 0 | V83: 0 | W83: 0 | X83: 0 | Y83: 4025.39 | Z83: 0 | AA83: 31942.5 | AB83: 0 | AC83: 14019.98 | AD83: 70315.36 | AE83: 21449.51 | AF83: 0 | AG83: 65861.88 | AH83: 25176.1 | AI83: 6474.93 | AJ83: 0 | AK83: 0 | AL83: 97548 | AM83: 0 | AN83: 69437.5 | AO83: 5683147.89
B84: 79 | C84: 0079 | D84: DRACUT | E84: 079 | F84: 1 | G84: 384671 | H84: 37986 | I84: 0 | J84: 1425095 | K84: 0 | L84: 0 | M84: 15530523 | N84: 0 | O84: 0 | P84: 301042 | Q84: 222657 | R84: 232910 | S84: 1724179 | T84: 47542 | U84: 0 | V84: 2946 | W84: 0 | X84: 0 | Y84: 19115 | Z84: 0 | AA84: 26806 | AB84: 0 | AC84: 13194 | AD84: 95133 | AE84: 15077 | AF84: 49053 | AG84: 307783 | AH84: 6639 | AI84: 0 | AJ84: 50114 | AK84: 49877 | AL84: 382830 | AM84: 10330 | AN84: 579033 | AO84: 21514535
B85: 80 | C85: 0080 | D85: DUDLEY | E85: 080 | F85: 0 | G85: 0 | H85: 0 | I85: 0 | J85: 0 | K85: 0 | L85: 0 | M85: 0 | N85: 0 | O85: 0 | P85: 0 | Q85: 0 | R85: 0 | S85: 0 | T85: 0 | U85: 0 | V85: 0 | W85: 0 | X85: 0 | Y85: 0 | Z85: 0 | AA85: 0 | AB85: 0 | AC85: 0 | AD85: 0 | AE85: 0 | AF85: 0 | AG85: 0 | AH85: 0 | AI85: 0 | AJ85: 0 | AK85: 0 | AL85: 0 | AM85: 0 | AN85: 0 | AO85: 0
B86: 81 | C86: 0081 | D86: DUNSTABLE | E86: 081 | F86: 0 | G86: 0 | H86: 0 | I86: 0 | J86: 0 | K86: 0 | L86: 0 | M86: 0 | N86: 0 | O86: 0 | P86: 0 | Q86: 0 | R86: 0 | S86: 0 | T86: 0 | U86: 0 | V86: 0 | W86: 0 | X86: 0 | Y86: 0 | Z86: 0 | AA86: 0 | AB86: 0 | AC86: 0 | AD86: 0 | AE86: 0 | AF86: 0 | AG86: 0 | AH86: 0 | AI86: 0 | AJ86: 0 | AK86: 0 | AL86: 0 | AM86: 0 | AN86: 0 | AO86: 0
B87: 82 | C87: 0082 | D87: DUXBURY | E87: 082 | F87: 1 | G87: 220579 | H87: 603200 | I87: 0 | J87: 1588727.98 | K87: 0 | L87: 0 | M87: 18309561 | N87: 0 | O87: 0 | P87: 540126.66 | Q87: 60960 | R87: 294681 | S87: 1071359 | T87: 255223 | U87: 0 | V87: 0 | W87: 0 | X87: 0 | Y87: 1500 | Z87: 0 | AA87: 21359 | AB87: 0 | AC87: 135682.1 | AD87: 132351.09 | AE87: 472810.69 | AF87: 29082 | AG87: 3770 | AH87: 3489 | AI87: 299389 | AJ87: 65508 | AK87: 286122 | AL87: 1147712 | AM87: 0 | AN87: 421020 | AO87: 25964212.52
B88: 83 | C88: 0083 | D88: EAST BRIDGEWATER | E88: 083 | F88: 1 | G88: 206485 | H88: 138590 | I88: 0 | J88: 947797 | K88: 0 | L88: 93196 | M88: 10754753 | N88: 0 | O88: 0 | P88: 622878 | Q88: 90378 | R88: 146315 | S88: 492397 | T88: 146001 | U88: 0 | V88: 0 | W88: 0 | X88: 0 | Y88: 0 | Z88: 0 | AA88: 23252 | AB88: 0 | AC88: 0 | AD88: 254122 | AE88: 47492 | AF88: 16350 | AG88: 52601 | AH88: 118945 | AI88: 259941 | AJ88: 0 | AK88: 21785 | AL88: 899241 | AM88: 17654 | AN88: 426802 | AO88: 15776975
B89: 84 | C89: 0084 | D89: EAST BROOKFIELD | E89: 084 | F89: 0 | G89: 0 | H89: 0 | I89: 0 | J89: 0 | K89: 0 | L89: 0 | M89: 0 | N89: 0 | O89: 0 | P89: 0 | Q89: 0 | R89: 0 | S89: 0 | T89: 0 | U89: 0 | V89: 0 | W89: 0 | X89: 0 | Y89: 0 | Z89: 0 | AA89: 0 | AB89: 0 | AC89: 0 | AD89: 0 | AE89: 0 | AF89: 0 | AG89: 0 | AH89: 0 | AI89: 0 | AJ89: 0 | AK89: 0 | AL89: 0 | AM89: 0 | AN89: 0 | AO89: 0
B90: 85 | C90: 0085 | D90: EASTHAM | E90: 085 | F90: 1 | G90: 15588 | H90: 25117 | I90: 0 | J90: 219302 | K90: 0 | L90: 18771 | M90: 1813734 | N90: 0 | O90: 0 | P90: 143284 | Q90: 0 | R90: 50770 | S90: 314123 | T90: 40201 | U90: 0 | V90: 2328 | W90: 0 | X90: 0 | Y90: 3696 | Z90: 0 | AA90: 350 | AB90: 0 | AC90: 6114 | AD90: 1104 | AE90: 11652 | AF90: 5579 | AG90: 10703 | AH90: 8916 | AI90: 25331 | AJ90: 21407 | AK90: 0 | AL90: 81374 | AM90: 1604 | AN90: 4420 | AO90: 2825468
B91: 86 | C91: 0086 | D91: EASTHAMPTON | E91: 086 | F91: 1 | G91: 192273 | H91: 0 | I91: 0 | J91: 900243 | K91: 0 | L91: 0 | M91: 7017525.88 | N91: 0 | O91: 0 | P91: 176850.19 | Q91: 0 | R91: 169289.31 | S91: 1198585.12 | T91: 70501.05 | U91: 0 | V91: 0 | W91: 18464.64 | X91: 0 | Y91: 0 | Z91: 0 | AA91: 3226 | AB91: 0 | AC91: 12527.07 | AD91: 58006.33 | AE91: 35731.92 | AF91: 3980.79 | AG91: 83459.884 | AH91: 89804.49 | AI91: 86381.38 | AJ91: 1243.79 | AK91: 0 | AL91: 384302.92 | AM91: 1668 | AN91: 193921.88 | AO91: 10697986.64
B92: 87 | C92: 0087 | D92: EAST LONGMEADOW | E92: 087 | F92: 1 | G92: 334587 | H92: 80478 | I92: 0 | J92: 1383924 | K92: 0 | L92: 1151 | M92: 14753344 | N92: 0 | O92: 0 | P92: 1290627 | Q92: 94449 | R92: 244992 | S92: 1578781 | T92: 253332 | U92: 0 | V92: 0 | W92: 465754 | X92: 0 | Y92: 0 | Z92: 0 | AA92: 319160 | AB92: 0 | AC92: 0 | AD92: 148843 | AE92: 8496 | AF92: 91923 | AG92: 303836 | AH92: 1666 | AI92: 96434 | AJ92: 1686 | AK92: 73356 | AL92: 1071251 | AM92: 0 | AN92: 329529 | AO92: 22927599
B93: 88 | C93: 0088 | D93: EASTON | E93: 088 | F93: 1 | G93: 529572 | H93: 122663.99 | I93: 0 | J93: 1823906.8 | K93: 0 | L93: 297022.19 | M93: 20289635.67 | N93: 0 | O93: 0 | P93: 1529145.8 | Q93: 72367.36 | R93: 319901.27 | S93: 1332454.58 | T93: 320873.97 | U93: 0 | V93: 6009.97 | W93: 172195.97 | X93: 0 | Y93: 37700 | Z93: 0 | AA93: 154669.95 | AB93: 0 | AC93: 68614.46 | AD93: 226268.42 | AE93: 27416.34 | AF93: 114323.73 | AG93: 266301.69 | AH93: 189767.83 | AI93: 337051.43 | AJ93: 0 | AK93: 0 | AL93: 1309318.96 | AM93: 3798.94 | AN93: 536422.58 | AO93: 30087403.9
B94: 89 | C94: 0089 | D94: EDGARTOWN | E94: 089 | F94: 1 | G94: 107966 | H94: 104950 | I94: 0 | J94: 462317 | K94: 0 | L94: 73598 | M94: 3602496 | N94: 0 | O94: 0 | P94: 39136 | Q94: 0 | R94: 61945 | S94: 1040782 | T94: 120578 | U94: 0 | V94: 0 | W94: 0 | X94: 0 | Y94: 192 | Z94: 0 | AA94: 25201 | AB94: 0 | AC94: 10690 | AD94: 102432 | AE94: 10581 | AF94: 8797 | AG94: 63064 | AH94: 77355 | AI94: 44149 | AJ94: 7919 | AK94: 9082 | AL94: 213402.64 | AM94: 0 | AN94: 54097 | AO94: 6240729.64
B95: 90 | C95: 0090 | D95: EGREMONT | E95: 090 | F95: 0 | G95: 0 | H95: 0 | I95: 0 | J95: 0 | K95: 0 | L95: 0 | M95: 0 | N95: 0 | O95: 0 | P95: 0 | Q95: 0 | R95: 0 | S95: 0 | T95: 0 | U95: 0 | V95: 0 | W95: 0 | X95: 0 | Y95: 0 | Z95: 0 | AA95: 0 | AB95: 0 | AC95: 0 | AD95: 0 | AE95: 0 | AF95: 0 | AG95: 0 | AH95: 0 | AI95: 0 | AJ95: 0 | AK95: 0 | AL95: 0 | AM95: 0 | AN95: 0 | AO95: 0
B96: 91 | C96: 0091 | D96: ERVING | E96: 091 | F96: 1 | G96: 26500 | H96: 11361 | I96: 0 | J96: 187194 | K96: 0 | L96: 0 | M96: 1254217 | N96: 0 | O96: 0 | P96: 196770 | Q96: 0 | R96: 27124 | S96: 393768 | T96: 69724 | U96: 0 | V96: 0 | W96: 0 | X96: 0 | Y96: 0 | Z96: 0 | AA96: 1560 | AB96: 0 | AC96: 18187 | AD96: 10944 | AE96: 5006 | AF96: 4770 | AG96: 10576 | AH96: 8236 | AI96: 0 | AJ96: 0 | AK96: 2653 | AL96: 0 | AM96: 72 | AN96: 75533 | AO96: 2304195
B97: 92 | C97: 0092 | D97: ESSEX | E97: 092 | F97: 0 | G97: 0 | H97: 0 | I97: 0 | J97: 0 | K97: 0 | L97: 0 | M97: 0 | N97: 0 | O97: 0 | P97: 0 | Q97: 0 | R97: 0 | S97: 0 | T97: 0 | U97: 0 | V97: 0 | W97: 0 | X97: 0 | Y97: 0 | Z97: 0 | AA97: 0 | AB97: 0 | AC97: 0 | AD97: 0 | AE97: 0 | AF97: 0 | AG97: 0 | AH97: 0 | AI97: 0 | AJ97: 0 | AK97: 0 | AL97: 0 | AM97: 0 | AN97: 0 | AO97: 0
B98: 93 | C98: 0093 | D98: EVERETT | E98: 093 | F98: 1 | G98: 1182037 | H98: 0 | I98: 0 | J98: 4825575 | K98: 0 | L98: 365710 | M98: 42145108 | N98: 0 | O98: 0 | P98: 2706917 | Q98: 1189785 | R98: 0 | S98: 2350119 | T98: 617534 | U98: 0 | V98: 0 | W98: 0 | X98: 0 | Y98: 0 | Z98: 0 | AA98: 1228173 | AB98: 0 | AC98: 242055 | AD98: 229018 | AE98: 9182 | AF98: 234998 | AG98: 1474976 | AH98: 0 | AI98: 0 | AJ98: 29198 | AK98: 0 | AL98: 1771076 | AM98: 0 | AN98: 192207 | AO98: 60793668
B99: 94 | C99: 0094 | D99: FAIRHAVEN | E99: 094 | F99: 1 | G99: 245928.55 | H99: 7029 | I99: 0 | J99: 1263359.06 | K99: 0 | L99: 50637.04 | M99: 9951071.86 | N99: 0 | O99: 0 | P99: 0 | Q99: 0 | R99: 166896.42 | S99: 842273.07 | T99: 51483 | U99: 0 | V99: 910 | W99: 0 | X99: 0 | Y99: 0 | Z99: 0 | AA99: 53630.66 | AB99: 0 | AC99: 10150 | AD99: 84753.26 | AE99: 2377.31 | AF99: 15881.62 | AG99: 166965.83 | AH99: 140244.9 | AI99: 6917.36 | AJ99: 242638.56 | AK99: 61673.32 | AL99: 660714.29 | AM99: 2541.46 | AN99: 140428 | AO99: 14168504.57
B100: 95 | C100: 0095 | D100: FALL RIVER | E100: 095 | F100: 1 | G100: 1933356 | H100: 0 | I100: 0 | J100: 5350063 | K100: 0 | L100: 43032 | M100: 45589251 | N100: 0 | O100: 0 | P100: 2469003 | Q100: 0 | R100: 760591 | S100: 5242137 | T100: 52495 | U100: 0 | V100: 0 | W100: 0 | X100: 0 | Y100: 129368 | Z100: 0 | AA100: 0 | AB100: 0 | AC100: 0 | AD100: 447565 | AE100: 4100 | AF100: 0 | AG100: 317437 | AH100: 900420 | AI100: 0 | AJ100: 0 | AK100: 0 | AL100: 3278440 | AM100: 0 | AN100: 785983 | AO100: 67303241
B101: 96 | C101: 0096 | D101: FALMOUTH | E101: 096 | F101: 1 | G101: 1821033 | H101: 0 | I101: 0 | J101: 2194318 | K101: 0 | L101: 0 | M101: 22314262.24 | N101: 0 | O101: 0 | P101: 348158 | Q101: 0 | R101: 431928 | S101: 2333847 | T101: 497696 | U101: 0 | V101: 0 | W101: 0 | X101: 0 | Y101: 0 | Z101: 0 | AA101: 0 | AB101: 0 | AC101: 15508 | AD101: 137380.17 | AE101: 70682 | AF101: 39548 | AG101: 277823 | AH101: 472102.42 | AI101: 141571.83 | AJ101: 6217 | AK101: 27459 | AL101: 1564409 | AM101: 1566 | AN101: 447065 | AO101: 33142573.66
B102: 97 | C102: 0097 | D102: FITCHBURG | E102: 097 | F102: 1 | G102: 653645.6 | H102: 581795 | I102: 0 | J102: 2735177.98 | K102: 0 | L102: 0 | M102: 24077506.35 | N102: 0 | O102: 0 | P102: 1081880.28 | Q102: 362147 | R102: 265424 | S102: 2541816.3 | T102: 65771 | U102: 0 | V102: 0 | W102: 0 | X102: 0 | Y102: 5000 | Z102: 0 | AA102: 51277 | AB102: 0 | AC102: 23283.54 | AD102: 71678.48 | AE102: 0 | AF102: 100768 | AG102: 36731.26 | AH102: 13729.45 | AI102: 45528.96 | AJ102: 44739.87 | AK102: 0 | AL102: 1283172.83 | AM102: 41455.04 | AN102: 712293.8 | AO102: 34794821.74
B103: 98 | C103: 0098 | D103: FLORIDA | E103: 098 | F103: 1 | G103: 24728 | H103: 0 | I103: 0 | J103: 113326 | K103: 0 | L103: 4767 | M103: 572711 | N103: 0 | O103: 0 | P103: 36348 | Q103: 0 | R103: 712 | S103: 100723 | T103: 0 | U103: 0 | V103: 0 | W103: 0 | X103: 0 | Y103: 0 | Z103: 0 | AA103: 2501 | AB103: 0 | AC103: 3167 | AD103: 3148 | AE103: 0 | AF103: 220 | AG103: 11732 | AH103: 2549 | AI103: 18089 | AJ103: 0 | AK103: 0 | AL103: 2076 | AM103: 0 | AN103: 4500 | AO103: 901297
B104: 99 | C104: 0099 | D104: FOXBOROUGH | E104: 099 | F104: 1 | G104: 650098.26 | H104: 0 | I104: 0 | J104: 2058586.12 | K104: 0 | L104: 6144.73 | M104: 17538529.42 | N104: 0 | O104: 0 | P104: 379425.95 | Q104: 56967.31 | R104: 221382.39 | S104: 1381992.91 | T104: 225815.09 | U104: 0 | V104: 0 | W104: 0 | X104: 0 | Y104: 90060.68 | Z104: 0 | AA104: 128042.61 | AB104: 0 | AC104: 0 | AD104: 189506 | AE104: 40633.17 | AF104: 51283.3 | AG104: 305764.34 | AH104: 14235.71 | AI104: 70346.5 | AJ104: 0 | AK104: 4582.85 | AL104: 1251314.64 | AM104: 29331.46 | AN104: 305378.72 | AO104: 24999422.16
B105: 100 | C105: 0100 | D105: FRAMINGHAM | E105: 100 | F105: 1 | G105: 3061607 | H105: 1151673 | I105: 0 | J105: 5832415 | K105: 0 | L105: 59022 | M105: 56557845 | N105: 0 | O105: 0 | P105: 3837784 | Q105: 0 | R105: 1204325 | S105: 7228297 | T105: 465962 | U105: 0 | V105: 57930 | W105: 0 | X105: 0 | Y105: 0 | Z105: 0 | AA105: 0 | AB105: 0 | AC105: 384957 | AD105: 66157 | AE105: 43582 | AF105: 583446 | AG105: 653830 | AH105: 20799 | AI105: 86850 | AJ105: 264 | AK105: 105263 | AL105: 3901888 | AM105: 38053 | AN105: 1057479 | AO105: 86399428
B106: 101 | C106: 0101 | D106: FRANKLIN | E106: 101 | F106: 1 | G106: 639292.01 | H106: 1012589 | I106: 0 | J106: 3403659 | K106: 0 | L106: 439 | M106: 29054563 | N106: 0 | O106: 0 | P106: 2776192 | Q106: 227784 | R106: 350732 | S106: 1275665 | T106: 201096 | U106: 0 | V106: 0 | W106: 1072984 | X106: 0 | Y106: 232975 | Z106: 0 | AA106: 207653 | AB106: 0 | AC106: 81600 | AD106: 396141 | AE106: 31200 | AF106: 105351 | AG106: 413031 | AH106: 10913 | AI106: 338536 | AJ106: 0 | AK106: 82408 | AL106: 1265724 | AM106: 18989 | AN106: 832219 | AO106: 44031735.01
B107: 102 | C107: 0102 | D107: FREETOWN | E107: 102 | F107: 0 | G107: 0 | H107: 0 | I107: 0 | J107: 0 | K107: 0 | L107: 0 | M107: 0 | N107: 0 | O107: 0 | P107: 0 | Q107: 0 | R107: 0 | S107: 0 | T107: 0 | U107: 0 | V107: 0 | W107: 0 | X107: 0 | Y107: 0 | Z107: 0 | AA107: 0 | AB107: 0 | AC107: 0 | AD107: 0 | AE107: 0 | AF107: 0 | AG107: 0 | AH107: 0 | AI107: 0 | AJ107: 0 | AK107: 0 | AL107: 0 | AM107: 0 | AN107: 0 | AO107: 0
B108: 103 | C108: 0103 | D108: GARDNER | E108: 103 | F108: 1 | G108: 190597.62 | H108: 0 | I108: 0 | J108: 1315823.01 | K108: 0 | L108: 17844.83 | M108: 10622084.23 | N108: 0 | O108: 0 | P108: 620751.48 | Q108: 144452.75 | R108: 100314.49 | S108: 1264316.93 | T108: 0 | U108: 0 | V108: 0 | W108: 188701.95 | X108: 0 | Y108: 0 | Z108: 0 | AA108: 49582.91 | AB108: 0 | AC108: 0 | AD108: 65692.47 | AE108: 15734.58 | AF108: 51386.31 | AG108: 42471.76 | AH108: 26280.41 | AI108: 22016.65 | AJ108: 0 | AK108: 257909 | AL108: 1004337.97 | AM108: 31583 | AN108: 177392.54 | AO108: 16209274.89
B109: 104 | C109: 0104 | D109: GAY HEAD | E109: 104 | F109: 0 | G109: 0 | H109: 0 | I109: 0 | J109: 0 | K109: 0 | L109: 0 | M109: 0 | N109: 0 | O109: 0 | P109: 0 | Q109: 0 | R109: 0 | S109: 0 | T109: 0 | U109: 0 | V109: 0 | W109: 0 | X109: 0 | Y109: 0 | Z109: 0 | AA109: 0 | AB109: 0 | AC109: 0 | AD109: 0 | AE109: 0 | AF109: 0 | AG109: 0 | AH109: 0 | AI109: 0 | AJ109: 0 | AK109: 0 | AL109: 0 | AM109: 0 | AN109: 0 | AO109: 0
B110: 105 | C110: 0105 | D110: GEORGETOWN | E110: 105 | F110: 1 | G110: 335657.32 | H110: 0 | I110: 0 | J110: 682744.66 | K110: 0 | L110: 183097.04 | M110: 7304545.29 | N110: 0 | O110: 0 | P110: 467968.96 | Q110: 108229.3 | R110: 156937.49 | S110: 664243.48 | T110: 114119.42 | U110: 0 | V110: 116904.1 | W110: 0 | X110: 0 | Y110: 17260 | Z110: 0 | AA110: 22521.58 | AB110: 0 | AC110: 3302.86 | AD110: 57004.43 | AE110: 63796.08 | AF110: 6563.07 | AG110: 49278.89 | AH110: 131509.32 | AI110: 59883.18 | AJ110: 0 | AK110: 3400.75 | AL110: 471413.56 | AM110: 18658.91 | AN110: 0 | AO110: 11039039.69
B111: 106 | C111: 0106 | D111: GILL | E111: 106 | F111: 0 | G111: 0 | H111: 0 | I111: 0 | J111: 0 | K111: 0 | L111: 0 | M111: 0 | N111: 0 | O111: 0 | P111: 0 | Q111: 0 | R111: 0 | S111: 0 | T111: 0 | U111: 0 | V111: 0 | W111: 0 | X111: 0 | Y111: 0 | Z111: 0 | AA111: 0 | AB111: 0 | AC111: 0 | AD111: 0 | AE111: 0 | AF111: 0 | AG111: 0 | AH111: 0 | AI111: 0 | AJ111: 0 | AK111: 0 | AL111: 0 | AM111: 0 | AN111: 0 | AO111: 0
B112: 107 | C112: 0107 | D112: GLOUCESTER | E112: 107 | F112: 1 | G112: 259867.32 | H112: 0 | I112: 0 | J112: 1973594.23 | K112: 0 | L112: 307489.72 | M112: 19249704.08 | N112: 0 | O112: 0 | P112: 981540.66 | Q112: 0 | R112: 468373.98 | S112: 2434759 | T112: 58637.8 | U112: 0 | V112: 643 | W112: 74674.86 | X112: 0 | Y112: 147007.55 | Z112: 0 | AA112: 0 | AB112: 0 | AC112: 278923.07 | AD112: 211329.41 | AE112: 0 | AF112: 50697.08 | AG112: 190448.26 | AH112: 0 | AI112: 38705.43 | AJ112: 0 | AK112: 3496 | AL112: 517842.78 | AM112: 19616.27 | AN112: 490095.56 | AO112: 27757446.06
B113: 108 | C113: 0108 | D113: GOSHEN | E113: 108 | F113: 0 | G113: 0 | H113: 0 | I113: 0 | J113: 0 | K113: 0 | L113: 0 | M113: 0 | N113: 0 | O113: 0 | P113: 0 | Q113: 0 | R113: 0 | S113: 0 | T113: 0 | U113: 0 | V113: 0 | W113: 0 | X113: 0 | Y113: 0 | Z113: 0 | AA113: 0 | AB113: 0 | AC113: 0 | AD113: 0 | AE113: 0 | AF113: 0 | AG113: 0 | AH113: 0 | AI113: 0 | AJ113: 0 | AK113: 0 | AL113: 0 | AM113: 0 | AN113: 0 | AO113: 0
B114: 109 | C114: 0109 | D114: GOSNOLD | E114: 109 | F114: 1 | G114: 0 | H114: 0 | I114: 0 | J114: 0 | K114: 0 | L114: 0 | M114: 43497 | N114: 0 | O114: 0 | P114: 0 | Q114: 0 | R114: 0 | S114: 0 | T114: 0 | U114: 0 | V114: 0 | W114: 0 | X114: 0 | Y114: 0 | Z114: 0 | AA114: 335 | AB114: 0 | AC114: 0 | AD114: 567 | AE114: 761 | AF114: 0 | AG114: 801 | AH114: 360 | AI114: 0 | AJ114: 0 | AK114: 0 | AL114: 0 | AM114: 0 | AN114: 0 | AO114: 46321
B115: 110 | C115: 0110 | D115: GRAFTON | E115: 110 | F115: 1 | G115: 293654.47 | H115: 338291.53 | I115: 0 | J115: 1618207.9 | K115: 0 | L115: 640041.71 | M115: 16697247.18 | N115: 0 | O115: 0 | P115: 1259466.49 | Q115: 0 | R115: 422365 | S115: 2883376.67 | T115: 175980.07 | U115: 0 | V115: 3499.79 | W115: 0 | X115: 0 | Y115: 14962.92 | Z115: 0 | AA115: 39624.15 | AB115: 0 | AC115: 13329.41 | AD115: 40391.97 | AE115: 13600.44 | AF115: 60860.83 | AG115: 141783.79 | AH115: 35205.31 | AI115: 0 | AJ115: 0 | AK115: 0 | AL115: 423692.06 | AM115: 0 | AN115: 409972.22 | AO115: 25525553.91
B116: 111 | C116: 0111 | D116: GRANBY | E116: 111 | F116: 1 | G116: 330421 | H116: 232757 | I116: 0 | J116: 0 | K116: 0 | L116: 0 | M116: 3119448 | N116: 0 | O116: 0 | P116: 385816 | Q116: 0 | R116: 83917 | S116: 321833 | T116: 67381 | U116: 0 | V116: 0 | W116: 0 | X116: 0 | Y116: 0 | Z116: 0 | AA116: 7642 | AB116: 0 | AC116: 0 | AD116: 1081 | AE116: 184 | AF116: 32485 | AG116: 41342 | AH116: 158150 | AI116: 2574 | AJ116: 0 | AK116: 1598 | AL116: 325725 | AM116: 0 | AN116: 225210 | AO116: 5337564
B117: 112 | C117: 0112 | D117: GRANVILLE | E117: 112 | F117: 0 | G117: 0 | H117: 0 | I117: 0 | J117: 0 | K117: 0 | L117: 0 | M117: 0 | N117: 0 | O117: 0 | P117: 0 | Q117: 0 | R117: 0 | S117: 0 | T117: 0 | U117: 0 | V117: 0 | W117: 0 | X117: 0 | Y117: 0 | Z117: 0 | AA117: 0 | AB117: 0 | AC117: 0 | AD117: 0 | AE117: 0 | AF117: 0 | AG117: 0 | AH117: 0 | AI117: 0 | AJ117: 0 | AK117: 0 | AL117: 0 | AM117: 0 | AN117: 0 | AO117: 0
B118: 113 | C118: 0113 | D118: GREAT BARRINGTON | E118: 113 | F118: 0 | G118: 0 | H118: 0 | I118: 0 | J118: 0 | K118: 0 | L118: 0 | M118: 0 | N118: 0 | O118: 0 | P118: 0 | Q118: 0 | R118: 0 | S118: 0 | T118: 0 | U118: 0 | V118: 0 | W118: 0 | X118: 0 | Y118: 0 | Z118: 0 | AA118: 0 | AB118: 0 | AC118: 0 | AD118: 0 | AE118: 0 | AF118: 0 | AG118: 0 | AH118: 0 | AI118: 0 | AJ118: 0 | AK118: 0 | AL118: 0 | AM118: 0 | AN118: 0 | AO118: 0
B119: 114 | C119: 0114 | D119: GREENFIELD | E119: 114 | F119: 1 | G119: 159874 | H119: 0 | I119: 0 | J119: 1205443.48 | K119: 0 | L119: 0 | M119: 7578029 | N119: 0 | O119: 0 | P119: 53743 | Q119: 0 | R119: 382866 | S119: 1744409 | T119: 0 | U119: 0 | V119: 39712 | W119: 0 | X119: 0 | Y119: 37737 | Z119: 0 | AA119: 3505 | AB119: 0 | AC119: 50620 | AD119: 80429.93 | AE119: 27079 | AF119: 0 | AG119: 80282 | AH119: 71645 | AI119: 32082 | AJ119: 0 | AK119: 22177 | AL119: 530092 | AM119: 22949 | AN119: 0 | AO119: 12122674.41
B120: 115 | C120: 0115 | D120: GROTON | E120: 115 | F120: 0 | G120: 0 | H120: 0 | I120: 0 | J120: 0 | K120: 0 | L120: 0 | M120: 0 | N120: 0 | O120: 0 | P120: 0 | Q120: 0 | R120: 0 | S120: 0 | T120: 0 | U120: 0 | V120: 0 | W120: 0 | X120: 0 | Y120: 0 | Z120: 0 | AA120: 0 | AB120: 0 | AC120: 0 | AD120: 0 | AE120: 0 | AF120: 0 | AG120: 0 | AH120: 0 | AI120: 0 | AJ120: 0 | AK120: 0 | AL120: 0 | AM120: 0 | AN120: 0 | AO120: 0
B121: 116 | C121: 0116 | D121: GROVELAND | E121: 116 | F121: 0 | G121: 0 | H121: 0 | I121: 0 | J121: 0 | K121: 0 | L121: 0 | M121: 0 | N121: 0 | O121: 0 | P121: 0 | Q121: 0 | R121: 0 | S121: 0 | T121: 0 | U121: 0 | V121: 0 | W121: 0 | X121: 0 | Y121: 0 | Z121: 0 | AA121: 0 | AB121: 0 | AC121: 0 | AD121: 0 | AE121: 0 | AF121: 0 | AG121: 0 | AH121: 0 | AI121: 0 | AJ121: 0 | AK121: 0 | AL121: 0 | AM121: 0 | AN121: 0 | AO121: 0
B122: 117 | C122: 0117 | D122: HADLEY | E122: 117 | F122: 1 | G122: 172286.79 | H122: 0 | I122: 0 | J122: 317667.24 | K122: 0 | L122: 127881.57 | M122: 2677392.74 | N122: 0 | O122: 0 | P122: 0 | Q122: 0 | R122: 69483 | S122: 385507.92 | T122: 99516.27 | U122: 0 | V122: 0 | W122: 0 | X122: 0 | Y122: 0 | Z122: 0 | AA122: 229.75 | AB122: 0 | AC122: 29360.86 | AD122: 13934.25 | AE122: 0 | AF122: 0 | AG122: 61764.44 | AH122: 124514.85 | AI122: 0 | AJ122: 0 | AK122: 0 | AL122: 73557.52 | AM122: 0 | AN122: 93086.81 | AO122: 4246184.01
B123: 118 | C123: 0118 | D123: HALIFAX | E123: 118 | F123: 1 | G123: 56994.31 | H123: 0 | I123: 0 | J123: 272317.42 | K123: 0 | L123: 0 | M123: 3131351.14 | N123: 0 | O123: 0 | P123: 83037 | Q123: 0 | R123: 60546.61 | S123: 195937.81 | T123: 55070.44 | U123: 0 | V123: 0 | W123: 0 | X123: 0 | Y123: 0 | Z123: 0 | AA123: 92369.83 | AB123: 0 | AC123: 0 | AD123: 11418.13 | AE123: 59058.48 | AF123: 0 | AG123: 6713.04 | AH123: 8320 | AI123: 25751.97 | AJ123: 11877.89 | AK123: 0 | AL123: 0 | AM123: 0 | AN123: 220304.82 | AO123: 4291068.89
B124: 119 | C124: 0119 | D124: HAMILTON | E124: 119 | F124: 0 | G124: 0 | H124: 0 | I124: 0 | J124: 0 | K124: 0 | L124: 0 | M124: 0 | N124: 0 | O124: 0 | P124: 0 | Q124: 0 | R124: 0 | S124: 0 | T124: 0 | U124: 0 | V124: 0 | W124: 0 | X124: 0 | Y124: 0 | Z124: 0 | AA124: 0 | AB124: 0 | AC124: 0 | AD124: 0 | AE124: 0 | AF124: 0 | AG124: 0 | AH124: 0 | AI124: 0 | AJ124: 0 | AK124: 0 | AL124: 0 | AM124: 0 | AN124: 0 | AO124: 0
B125: 120 | C125: 0120 | D125: HAMPDEN | E125: 120 | F125: 0 | G125: 0 | H125: 0 | I125: 0 | J125: 0 | K125: 0 | L125: 0 | M125: 0 | N125: 0 | O125: 0 | P125: 0 | Q125: 0 | R125: 0 | S125: 0 | T125: 0 | U125: 0 | V125: 0 | W125: 0 | X125: 0 | Y125: 0 | Z125: 0 | AA125: 0 | AB125: 0 | AC125: 0 | AD125: 0 | AE125: 0 | AF125: 0 | AG125: 0 | AH125: 0 | AI125: 0 | AJ125: 0 | AK125: 0 | AL125: 0 | AM125: 0 | AN125: 0 | AO125: 0
B126: 121 | C126: 0121 | D126: HANCOCK | E126: 121 | F126: 1 | G126: 33057.54 | H126: 0 | I126: 0 | J126: 85008.1 | K126: 0 | L126: 0 | M126: 333357.38 | N126: 0 | O126: 0 | P126: 0 | Q126: 0 | R126: 3337.5 | S126: 77821.97 | T126: 0 | U126: 0 | V126: 0 | W126: 0 | X126: 0 | Y126: 0 | Z126: 0 | AA126: 0 | AB126: 0 | AC126: 6635.45 | AD126: 4221.34 | AE126: 0 | AF126: 0 | AG126: 8174.39 | AH126: 0 | AI126: 4153.76 | AJ126: 0 | AK126: 0 | AL126: 0 | AM126: 0 | AN126: 0 | AO126: 555767.43
B127: 122 | C127: 0122 | D127: HANOVER | E127: 122 | F127: 1 | G127: 708249.34 | H127: 0 | I127: 0 | J127: 1472582.65 | K127: 0 | L127: 0 | M127: 15947643.75 | N127: 0 | O127: 0 | P127: 286348.4 | Q127: 339617.08 | R127: 169795.5 | S127: 1498660.2 | T127: 235386.47 | U127: 0 | V127: 25797.15 | W127: 259360 | X127: 0 | Y127: 7680 | Z127: 0 | AA127: 140877.48 | AB127: 0 | AC127: 10500 | AD127: 64260.41 | AE127: 8933.85 | AF127: 3516.85 | AG127: 216178.53 | AH127: 117286.25 | AI127: 0 | AJ127: 0 | AK127: 69900 | AL127: 874476.72 | AM127: 0 | AN127: 296230 | AO127: 22753280.63
B128: 123 | C128: 0123 | D128: HANSON | E128: 123 | F128: 0 | G128: 0 | H128: 0 | I128: 0 | J128: 0 | K128: 0 | L128: 0 | M128: 0 | N128: 0 | O128: 0 | P128: 0 | Q128: 0 | R128: 0 | S128: 0 | T128: 0 | U128: 0 | V128: 0 | W128: 0 | X128: 0 | Y128: 0 | Z128: 0 | AA128: 0 | AB128: 0 | AC128: 0 | AD128: 0 | AE128: 0 | AF128: 0 | AG128: 0 | AH128: 0 | AI128: 0 | AJ128: 0 | AK128: 0 | AL128: 0 | AM128: 0 | AN128: 0 | AO128: 0
B129: 124 | C129: 0124 | D129: HARDWICK | E129: 124 | F129: 0 | G129: 0 | H129: 0 | I129: 0 | J129: 0 | K129: 0 | L129: 0 | M129: 0 | N129: 0 | O129: 0 | P129: 0 | Q129: 0 | R129: 0 | S129: 0 | T129: 0 | U129: 0 | V129: 0 | W129: 0 | X129: 0 | Y129: 0 | Z129: 0 | AA129: 0 | AB129: 0 | AC129: 0 | AD129: 0 | AE129: 0 | AF129: 0 | AG129: 0 | AH129: 0 | AI129: 0 | AJ129: 0 | AK129: 0 | AL129: 0 | AM129: 0 | AN129: 0 | AO129: 0
B130: 125 | C130: 0125 | D130: HARVARD | E130: 125 | F130: 1 | G130: 251203.72 | H130: 99464.41 | I130: 0 | J130: 695050.02 | K130: 0 | L130: 369856.86 | M130: 6318735.56 | N130: 0 | O130: 0 | P130: 63222.92 | Q130: 0 | R130: 156415.29 | S130: 640483.08 | T130: 125232.14 | U130: 0 | V130: 0 | W130: 0 | X130: 0 | Y130: 0 | Z130: 0 | AA130: 103348.43 | AB130: 0 | AC130: 600 | AD130: 158063.04 | AE130: 102365.35 | AF130: 29900.5 | AG130: 0 | AH130: 17300 | AI130: 0 | AJ130: 0 | AK130: 11160 | AL130: 338195.3 | AM130: 0 | AN130: 0 | AO130: 9480596.62
B131: 126 | C131: 0126 | D131: HARWICH | E131: 126 | F131: 0 | G131: 0 | H131: 0 | I131: 0 | J131: 0 | K131: 0 | L131: 0 | M131: 0 | N131: 0 | O131: 0 | P131: 0 | Q131: 0 | R131: 0 | S131: 0 | T131: 0 | U131: 0 | V131: 0 | W131: 0 | X131: 0 | Y131: 0 | Z131: 0 | AA131: 0 | AB131: 0 | AC131: 0 | AD131: 0 | AE131: 0 | AF131: 0 | AG131: 0 | AH131: 0 | AI131: 0 | AJ131: 0 | AK131: 0 | AL131: 0 | AM131: 0 | AN131: 0 | AO131: 0
B132: 127 | C132: 0127 | D132: HATFIELD | E132: 127 | F132: 1 | G132: 67627 | H132: 0 | I132: 0 | J132: 319772 | K132: 0 | L132: 0 | M132: 2411013 | N132: 0 | O132: 0 | P132: 269991 | Q132: 0 | R132: 37275 | S132: 188030 | T132: 73848 | U132: 0 | V132: 0 | W132: 0 | X132: 0 | Y132: 0 | Z132: 0 | AA132: 13524 | AB132: 0 | AC132: 0 | AD132: 48755 | AE132: 3460 | AF132: 0 | AG132: 12093 | AH132: 901 | AI132: 0 | AJ132: 0 | AK132: 0 | AL132: 64707 | AM132: 0 | AN132: 53526 | AO132: 3564522
B133: 128 | C133: 0128 | D133: HAVERHILL | E133: 128 | F133: 1 | G133: 1074810 | H133: 0 | I133: 0 | J133: 3942310 | K133: 0 | L133: 0 | M133: 34114355 | N133: 0 | O133: 0 | P133: 2097055 | Q133: 45720 | R133: 366499 | S133: 4000109 | T133: 280901 | U133: 0 | V133: 0 | W133: 73521 | X133: 0 | Y133: 8031 | Z133: 0 | AA133: 36415 | AB133: 0 | AC133: 15000 | AD133: 450506 | AE133: 332431 | AF133: 356657 | AG133: 476616 | AH133: 135994 | AI133: 108499 | AJ133: 428370 | AK133: 6000 | AL133: 1986223 | AM133: 1008697 | AN133: 904579 | AO133: 52249298
B134: 129 | C134: 0129 | D134: HAWLEY | E134: 129 | F134: 0 | G134: 0 | H134: 0 | I134: 0 | J134: 0 | K134: 0 | L134: 0 | M134: 0 | N134: 0 | O134: 0 | P134: 0 | Q134: 0 | R134: 0 | S134: 0 | T134: 0 | U134: 0 | V134: 0 | W134: 0 | X134: 0 | Y134: 0 | Z134: 0 | AA134: 0 | AB134: 0 | AC134: 0 | AD134: 0 | AE134: 0 | AF134: 0 | AG134: 0 | AH134: 0 | AI134: 0 | AJ134: 0 | AK134: 0 | AL134: 0 | AM134: 0 | AN134: 0 | AO134: 0
B135: =B134+1 -> 130 | C135: 0130 | D135: HEATH | E135: 130 | F135: 0 | G135: 0 | H135: 0 | I135: 0 | J135: 0 | K135: 0 | L135: 0 | M135: 0 | N135: 0 | O135: 0 | P135: 0 | Q135: 0 | R135: 0 | S135: 0 | T135: 0 | U135: 0 | V135: 0 | W135: 0 | X135: 0 | Y135: 0 | Z135: 0 | AA135: 0 | AB135: 0 | AC135: 0 | AD135: 0 | AE135: 0 | AF135: 0 | AG135: 0 | AH135: 0 | AI135: 0 | AJ135: 0 | AK135: 0 | AL135: 0 | AM135: 0 | AN135: 0 | AO135: 0
B136: 131 | C136: 0131 | D136: HINGHAM | E136: 131 | F136: 1 | G136: 797281 | H136: 41632 | I136: 0 | J136: 2326563 | K136: 0 | L136: 924930 | M136: 24934725 | N136: 0 | O136: 0 | P136: 1416701 | Q136: 215774 | R136: 364534 | S136: 2605840 | T136: 676899 | U136: 0 | V136: 0 | W136: 0 | X136: 0 | Y136: 27665 | Z136: 0 | AA136: 157541 | AB136: 0 | AC136: 77919 | AD136: 315539 | AE136: 38844 | AF136: 34636 | AG136: 306429 | AH136: 10512 | AI136: 0 | AJ136: 0 | AK136: 0 | AL136: 2073236 | AM136: 0 | AN136: 507713 | AO136: 37854913
B137: 132 | C137: 0132 | D137: HINSDALE | E137: 132 | F137: 0 | G137: 0 | H137: 0 | I137: 0 | J137: 0 | K137: 0 | L137: 0 | M137: 0 | N137: 0 | O137: 0 | P137: 0 | Q137: 0 | R137: 0 | S137: 0 | T137: 0 | U137: 0 | V137: 0 | W137: 0 | X137: 0 | Y137: 0 | Z137: 0 | AA137: 0 | AB137: 0 | AC137: 0 | AD137: 0 | AE137: 0 | AF137: 0 | AG137: 0 | AH137: 0 | AI137: 0 | AJ137: 0 | AK137: 0 | AL137: 0 | AM137: 0 | AN137: 0 | AO137: 0
B138: 133 | C138: 0133 | D138: HOLBROOK | E138: 133 | F138: 1 | G138: 154868.38 | H138: 112821.94 | I138: 0 | J138: 608842.23 | K138: 0 | L138: 0 | M138: 5678403.16 | N138: 0 | O138: 0 | P138: 376538.36 | Q138: 0 | R138: 164636.1 | S138: 169617.5 | T138: 99373 | U138: 0 | V138: 0 | W138: 0 | X138: 0 | Y138: 0 | Z138: 0 | AA138: 30220 | AB138: 0 | AC138: 0 | AD138: 81982 | AE138: 2483.08 | AF138: 0 | AG138: 44347.82 | AH138: 192299.32 | AI138: 0 | AJ138: 0 | AK138: 0 | AL138: 473073.97 | AM138: 847.5 | AN138: 137536 | AO138: 8327890.36
B139: 134 | C139: 0134 | D139: HOLDEN | E139: 134 | F139: 0 | G139: 0 | H139: 0 | I139: 0 | J139: 0 | K139: 0 | L139: 0 | M139: 0 | N139: 0 | O139: 0 | P139: 0 | Q139: 0 | R139: 0 | S139: 0 | T139: 0 | U139: 0 | V139: 0 | W139: 0 | X139: 0 | Y139: 0 | Z139: 0 | AA139: 0 | AB139: 0 | AC139: 0 | AD139: 0 | AE139: 0 | AF139: 0 | AG139: 0 | AH139: 0 | AI139: 0 | AJ139: 0 | AK139: 0 | AL139: 0 | AM139: 0 | AN139: 0 | AO139: 0
B140: 135 | C140: 0135 | D140: HOLLAND | E140: 135 | F140: 1 | G140: 0 | H140: 0 | I140: 0 | J140: 150952 | K140: 0 | L140: 9896 | M140: 1021086 | N140: 0 | O140: 0 | P140: 120472 | Q140: 18354 | R140: 20000 | S140: 182728 | T140: 9491 | U140: 0 | V140: 0 | W140: 0 | X140: 0 | Y140: 7030 | Z140: 0 | AA140: 4233 | AB140: 0 | AC140: 0 | AD140: 7383 | AE140: 569 | AF140: 0 | AG140: 12916 | AH140: 0 | AI140: 0 | AJ140: 1666 | AK140: 1973 | AL140: 59640 | AM140: 0 | AN140: 27028 | AO140: 1655417
B141: 136 | C141: 0136 | D141: HOLLISTON | E141: 136 | F141: 1 | G141: 958945.77 | H141: 655897.35 | I141: 0 | J141: 1507662.15 | K141: 0 | L141: 17224.56 | M141: 16531560.49 | N141: 0 | O141: 0 | P141: 385349.7 | Q141: 50716.81 | R141: 257592.03 | S141: 2267031.82 | T141: 137715.79 | U141: 0 | V141: 30264 | W141: 162.5 | X141: 0 | Y141: 8700 | Z141: 0 | AA141: 102319.98 | AB141: 0 | AC141: 0 | AD141: 26565.24 | AE141: 35715.96 | AF141: 7165.49 | AG141: 252942.77 | AH141: 24398.15 | AI141: 173031.71 | AJ141: 122039.92 | AK141: 3551 | AL141: 1240810.83 | AM141: 69330.95 | AN141: 260780.78 | AO141: 25127475.75
B142: 137 | C142: 0137 | D142: HOLYOKE | E142: 137 | F142: 1 | G142: 786375 | H142: 1152054 | I142: 0 | J142: 3491372 | K142: 0 | L142: 21400 | M142: 24537214 | N142: 0 | O142: 0 | P142: 2592018 | Q142: 212078 | R142: 491789 | S142: 5096857 | T142: 69278 | U142: 0 | V142: 0 | W142: 75363 | X142: 0 | Y142: 107553 | Z142: 0 | AA142: 7590 | AB142: 0 | AC142: 11894 | AD142: 0 | AE142: 360458 | AF142: 35193 | AG142: 11823 | AH142: 1083872 | AI142: 24577 | AJ142: 44430 | AK142: 11220 | AL142: 1371778 | AM142: 99286 | AN142: 411435 | AO142: 42106907
B143: 138 | C143: 0138 | D143: HOPEDALE | E143: 138 | F143: 1 | G143: 161896 | H143: 168996 | I143: 0 | J143: 556731 | K143: 0 | L143: 833 | M143: 6208814 | N143: 0 | O143: 0 | P143: 534426 | Q143: 4785 | R143: 50014 | S143: 945328 | T143: 139083 | U143: 0 | V143: 0 | W143: 0 | X143: 0 | Y143: 0 | Z143: 0 | AA143: 32658 | AB143: 0 | AC143: 0 | AD143: 27331 | AE143: 3474 | AF143: 29574 | AG143: 126869 | AH143: 21295 | AI143: 43724 | AJ143: 94 | AK143: 9973 | AL143: 349563 | AM143: 0 | AN143: 186870 | AO143: 9602331
B144: 139 | C144: 0139 | D144: HOPKINTON | E144: 139 | F144: 1 | G144: 182216.74 | H144: 0 | I144: 0 | J144: 1770090.08 | K144: 0 | L144: 7340.33 | M144: 23465240.09 | N144: 0 | O144: 0 | P144: 1210670 | Q144: 0 | R144: 237107.39 | S144: 1453388.12 | T144: 324565.5 | U144: 0 | V144: 0 | W144: 0 | X144: 0 | Y144: 36449.62 | Z144: 0 | AA144: 167101.62 | AB144: 0 | AC144: 895 | AD144: 145368.25 | AE144: 138179.23 | AF144: 17217.9 | AG144: 202025.97 | AH144: 24813.24 | AI144: 469058.09 | AJ144: 19283.61 | AK144: 115469 | AL144: 1579548.79 | AM144: 3454.08 | AN144: 322023.27 | AO144: 31891505.92
B145: 140 | C145: 0140 | D145: HUBBARDSTON | E145: 140 | F145: 0 | G145: 0 | H145: 0 | I145: 0 | J145: 0 | K145: 0 | L145: 0 | M145: 0 | N145: 0 | O145: 0 | P145: 0 | Q145: 0 | R145: 0 | S145: 0 | T145: 0 | U145: 0 | V145: 0 | W145: 0 | X145: 0 | Y145: 0 | Z145: 0 | AA145: 0 | AB145: 0 | AC145: 0 | AD145: 0 | AE145: 0 | AF145: 0 | AG145: 0 | AH145: 0 | AI145: 0 | AJ145: 0 | AK145: 0 | AL145: 0 | AM145: 0 | AN145: 0 | AO145: 0
B146: 141 | C146: 0141 | D146: HUDSON | E146: 141 | F146: 1 | G146: 462465.82 | H146: 505926.13 | I146: 0 | J146: 1440881.07 | K146: 0 | L146: 7493.28 | M146: 17844684.44 | N146: 0 | O146: 0 | P146: 1917278.65 | Q146: 144205.18 | R146: 272128.36 | S146: 1709851.95 | T146: 302481 | U146: 0 | V146: 335988.5 | W146: 223561.31 | X146: 0 | Y146: 25177.05 | Z146: 0 | AA146: 82487.425 | AB146: 0 | AC146: 8643.1 | AD146: 19274.67 | AE146: 149602.6 | AF146: 27597.84 | AG146: 40223.64 | AH146: 1606.99 | AI146: 365679.87 | AJ146: 0 | AK146: 66713.87 | AL146: 813825.81 | AM146: 20568.06 | AN146: 731617.85 | AO146: 27519964.47
B147: 142 | C147: 0142 | D147: HULL | E147: 142 | F147: 1 | G147: 141925 | H147: 0 | I147: 0 | J147: 964767 | K147: 0 | L147: 284892 | M147: 6403089 | N147: 0 | O147: 0 | P147: 392530 | Q147: 118766 | R147: 101590 | S147: 378013 | T147: 85155 | U147: 0 | V147: 62100 | W147: 0 | X147: 0 | Y147: 0 | Z147: 0 | AA147: 0 | AB147: 0 | AC147: 0 | AD147: 52600 | AE147: 17605 | AF147: 0 | AG147: 45235 | AH147: 13735 | AI147: 55524 | AJ147: 0 | AK147: 12627 | AL147: 406735 | AM147: 10427 | AN147: 224226 | AO147: 9771541
B148: 143 | C148: 0143 | D148: HUNTINGTON | E148: 143 | F148: 0 | G148: 0 | H148: 0 | I148: 0 | J148: 0 | K148: 0 | L148: 0 | M148: 0 | N148: 0 | O148: 0 | P148: 0 | Q148: 0 | R148: 0 | S148: 0 | T148: 0 | U148: 0 | V148: 0 | W148: 0 | X148: 0 | Y148: 0 | Z148: 0 | AA148: 0 | AB148: 0 | AC148: 0 | AD148: 0 | AE148: 0 | AF148: 0 | AG148: 0 | AH148: 0 | AI148: 0 | AJ148: 0 | AK148: 0 | AL148: 0 | AM148: 0 | AN148: 0 | AO148: 0
B149: 144 | C149: 0144 | D149: IPSWICH | E149: 144 | F149: 1 | G149: 539580 | H149: 40799 | I149: 0 | J149: 1254576.51 | K149: 0 | L149: 204 | M149: 11282592.88 | N149: 0 | O149: 0 | P149: 1339186.55 | Q149: 110361 | R149: 159496 | S149: 926145.97 | T149: 238690.12 | U149: 0 | V149: 3000 | W149: 0 | X149: 0 | Y149: 70200 | Z149: 0 | AA149: 51667.72 | AB149: 0 | AC149: 25214.96 | AD149: 43285.52 | AE149: 114754.99 | AF149: 61535.23 | AG149: 117227.43 | AH149: 149857.85 | AI149: 104790.94 | AJ149: 7625 | AK149: 74043.22 | AL149: 634166.22 | AM149: 17407 | AN149: 283248.54 | AO149: 17649656.65
B150: 145 | C150: 0145 | D150: KINGSTON | E150: 145 | F150: 1 | G150: 98205.6 | H150: 0 | I150: 0 | J150: 530344.22 | K150: 0 | L150: 0 | M150: 4974379.75 | N150: 0 | O150: 0 | P150: 131566 | Q150: 0 | R150: 131602.8 | S150: 311136.21 | T150: 202885.28 | U150: 0 | V150: 0 | W150: 0 | X150: 0 | Y150: 0 | Z150: 0 | AA150: 23003.95 | AB150: 0 | AC150: 0 | AD150: 41965.59 | AE150: 81293.41 | AF150: 0 | AG150: 0 | AH150: 415.5 | AI150: 35235.83 | AJ150: 27069.58 | AK150: 0 | AL150: 0 | AM150: 0 | AN150: 662786.63 | AO150: 7251890.35
B151: 146 | C151: 0146 | D151: LAKEVILLE | E151: 146 | F151: 0 | G151: 0 | H151: 0 | I151: 0 | J151: 0 | K151: 0 | L151: 0 | M151: 0 | N151: 0 | O151: 0 | P151: 0 | Q151: 0 | R151: 0 | S151: 0 | T151: 0 | U151: 0 | V151: 0 | W151: 0 | X151: 0 | Y151: 0 | Z151: 0 | AA151: 0 | AB151: 0 | AC151: 0 | AD151: 0 | AE151: 0 | AF151: 0 | AG151: 0 | AH151: 0 | AI151: 0 | AJ151: 0 | AK151: 0 | AL151: 0 | AM151: 0 | AN151: 0 | AO151: 0
B152: 147 | C152: 0147 | D152: LANCASTER | E152: 147 | F152: 0 | G152: 0 | H152: 0 | I152: 0 | J152: 0 | K152: 0 | L152: 0 | M152: 0 | N152: 0 | O152: 0 | P152: 0 | Q152: 0 | R152: 0 | S152: 0 | T152: 0 | U152: 0 | V152: 0 | W152: 0 | X152: 0 | Y152: 0 | Z152: 0 | AA152: 0 | AB152: 0 | AC152: 0 | AD152: 0 | AE152: 0 | AF152: 0 | AG152: 0 | AH152: 0 | AI152: 0 | AJ152: 0 | AK152: 0 | AL152: 0 | AM152: 0 | AN152: 0 | AO152: 0
B153: 148 | C153: 0148 | D153: LANESBOROUGH | E153: 148 | F153: 1 | G153: 26150.23 | H153: 0 | I153: 0 | J153: 154391.25 | K153: 0 | L153: 68928.37 | M153: 1186610.11 | N153: 0 | O153: 0 | P153: 151357.33 | Q153: 0 | R153: 25529.5 | S153: 180171 | T153: 44953.96 | U153: 0 | V153: 1203.52 | W153: 0 | X153: 0 | Y153: 5850 | Z153: 0 | AA153: 0 | AB153: 0 | AC153: 0 | AD153: 0 | AE153: 14821.52 | AF153: 0 | AG153: 0 | AH153: 6560 | AI153: 0 | AJ153: 0 | AK153: 0 | AL153: 35829.94 | AM153: 0 | AN153: 35829.94 | AO153: 1938186.67
B154: 149 | C154: 0149 | D154: LAWRENCE | E154: 149 | F154: 1 | G154: 2778071 | H154: 0 | I154: 0 | J154: 15181075.84 | K154: 0 | L154: 0 | M154: 68536749 | N154: 0 | O154: 0 | P154: 1413932 | Q154: 1814531 | R154: 17210 | S154: 10296411.46 | T154: 196024 | U154: 0 | V154: 94689 | W154: 0 | X154: 0 | Y154: 0 | Z154: 0 | AA154: 26253 | AB154: 0 | AC154: 728884 | AD154: 132799 | AE154: 9634 | AF154: 0 | AG154: 3449273.48 | AH154: 126375 | AI154: 331818 | AJ154: 0 | AK154: 0 | AL154: 3670456 | AM154: 0 | AN154: 874574 | AO154: 109678759.8
B155: 150 | C155: 0150 | D155: LEE | E155: 150 | F155: 1 | G155: 126563.5 | H155: 0 | I155: 0 | J155: 484170.59 | K155: 0 | L155: 20324.99 | M155: 3946851.18 | N155: 0 | O155: 0 | P155: 272154.66 | Q155: 21662.97 | R155: 128042.22 | S155: 581965.7 | T155: 92728.06 | U155: 0 | V155: 28339.23 | W155: 0 | X155: 0 | Y155: 4000 | Z155: 0 | AA155: 0 | AB155: 0 | AC155: 0 | AD155: 25028.86 | AE155: 58857.77 | AF155: 37613.02 | AG155: 19711.81 | AH155: 6661.55 | AI155: 849.89 | AJ155: 54641.88 | AK155: 51149.19 | AL155: 273871.95 | AM155: 849 | AN155: 136376.26 | AO155: 6372414.28
B156: 151 | C156: 0151 | D156: LEICESTER | E156: 151 | F156: 1 | G156: 158861.8 | H156: 220905.34 | I156: 0 | J156: 980425.4 | K156: 0 | L156: 0 | M156: 7736661.21 | N156: 0 | O156: 0 | P156: 56929.07 | Q156: 0 | R156: 129295.87 | S156: 941502.87 | T156: 160727.19 | U156: 0 | V156: 13270.61 | W156: 0 | X156: 0 | Y156: 0 | Z156: 0 | AA156: 307486.59 | AB156: 0 | AC156: 60114.6 | AD156: 0 | AE156: 44157.88 | AF156: 64092.3 | AG156: 34434.64 | AH156: 7725 | AI156: 40835.31 | AJ156: 0 | AK156: 0 | AL156: 350049.32 | AM156: 8297.55 | AN156: 458162.2 | AO156: 11773934.75
B157: 152 | C157: 0152 | D157: LENOX | E157: 152 | F157: 1 | G157: 144510.7 | H157: 0 | I157: 0 | J157: 469309.92 | K157: 0 | L157: 0 | M157: 4563860.51 | N157: 0 | O157: 0 | P157: 20835 | Q157: 12662.16 | R157: 108028.06 | S157: 617759.72 | T157: 100610.74 | U157: 0 | V157: 0 | W157: 116747.12 | X157: 0 | Y157: 9991.58 | Z157: 0 | AA157: 27635.86 | AB157: 0 | AC157: 23598 | AD157: 56238.34 | AE157: 16753.61 | AF157: 55095.89 | AG157: 143551.09 | AH157: 60888.58 | AI157: 133777.8 | AJ157: 5247.94 | AK157: 47599.36 | AL157: 240095.85 | AM157: 8025.5 | AN157: 11036.94 | AO157: 6993860.27
B158: 153 | C158: 0153 | D158: LEOMINSTER | E158: 153 | F158: 1 | G158: 364793 | H158: 414862 | I158: 0 | J158: 3385396 | K158: 0 | L158: 0 | M158: 28878143 | N158: 0 | O158: 0 | P158: 903623 | Q158: 166968 | R158: 352629 | S158: 4851283 | T158: 333997 | U158: 0 | V158: 40539 | W158: 0 | X158: 0 | Y158: 32375 | Z158: 0 | AA158: 1542 | AB158: 0 | AC158: 20091 | AD158: 331152 | AE158: 54966 | AF158: 29940 | AG158: 124205 | AH158: 44629 | AI158: 121257 | AJ158: 30672 | AK158: 7497 | AL158: 1280520 | AM158: 218129 | AN158: 767721 | AO158: 42756929
B159: 154 | C159: 0154 | D159: LEVERETT | E159: 154 | F159: 1 | G159: 25601 | H159: 11260 | I159: 0 | J159: 143546 | K159: 0 | L159: 0 | M159: 774936 | N159: 0 | O159: 0 | P159: 22866 | Q159: 17312 | R159: 0 | S159: 191571 | T159: 47309 | U159: 0 | V159: 0 | W159: 0 | X159: 0 | Y159: 0 | Z159: 0 | AA159: 620 | AB159: 0 | AC159: 2189 | AD159: 6826 | AE159: 2918 | AF159: 0 | AG159: 12228 | AH159: 3791 | AI159: 0 | AJ159: 0 | AK159: 12824 | AL159: 0 | AM159: 894 | AN159: 44704 | AO159: 1321395
B160: 155 | C160: 0155 | D160: LEXINGTON | E160: 155 | F160: 1 | G160: 3620232 | H160: 631845 | I160: 0 | J160: 5834379 | K160: 0 | L160: 0 | M160: 50149141 | N160: 0 | O160: 0 | P160: 4776811 | Q160: 620407 | R160: 800529 | S160: 6489931 | T160: 1039160 | U160: 0 | V160: 88460 | W160: 0 | X160: 0 | Y160: 274909 | Z160: 0 | AA160: 723348 | AB160: 0 | AC160: 192604 | AD160: 531413 | AE160: 184151 | AF160: 694857 | AG160: 739731 | AH160: 94067 | AI160: 312599 | AJ160: 3258 | AK160: 136840 | AL160: 4354605 | AM160: 4370 | AN160: 709718 | AO160: 83007365
B161: 156 | C161: 0156 | D161: LEYDEN | E161: 156 | F161: 0 | G161: 0 | H161: 0 | I161: 0 | J161: 0 | K161: 0 | L161: 0 | M161: 0 | N161: 0 | O161: 0 | P161: 0 | Q161: 0 | R161: 0 | S161: 0 | T161: 0 | U161: 0 | V161: 0 | W161: 0 | X161: 0 | Y161: 0 | Z161: 0 | AA161: 0 | AB161: 0 | AC161: 0 | AD161: 0 | AE161: 0 | AF161: 0 | AG161: 0 | AH161: 0 | AI161: 0 | AJ161: 0 | AK161: 0 | AL161: 0 | AM161: 0 | AN161: 0 | AO161: 0
B162: 157 | C162: 0157 | D162: LINCOLN | E162: 157 | F162: 1 | G162: 262333 | H162: 153947 | I162: 0 | J162: 448838 | K162: 0 | L162: 116311 | M162: 5189021 | N162: 0 | O162: 0 | P162: 346910 | Q162: 189505 | R162: 73809 | S162: 336718 | T162: 133496 | U162: 0 | V162: 0 | W162: 167053 | X162: 0 | Y162: 12321 | Z162: 0 | AA162: 40920 | AB162: 0 | AC162: 16156 | AD162: 9151 | AE162: 53646 | AF162: 60355 | AG162: 40963 | AH162: 101448 | AI162: 110535 | AJ162: 10107 | AK162: 2151 | AL162: 0 | AM162: 18799 | AN162: 187510 | AO162: 8082003
B163: 158 | C163: 0158 | D163: LITTLETON | E163: 158 | F163: 1 | G163: 346236 | H163: 500 | I163: 0 | J163: 959823 | K163: 0 | L163: 56235 | M163: 8221427 | N163: 0 | O163: 0 | P163: 533695 | Q163: 0 | R163: 149000 | S163: 1050953 | T163: 111916 | U163: 0 | V163: 24160 | W163: 0 | X163: 0 | Y163: 43837 | Z163: 0 | AA163: 77674 | AB163: 0 | AC163: 11965 | AD163: 125508 | AE163: 187675 | AF163: 0 | AG163: 11852 | AH163: 52116 | AI163: 67020 | AJ163: 5099 | AK163: 1000 | AL163: 450523 | AM163: 19234 | AN163: 473727 | AO163: 12981175
B164: 159 | C164: 0159 | D164: LONGMEADOW | E164: 159 | F164: 1 | G164: 334796.4 | H164: 0 | I164: 0 | J164: 1639801.79 | K164: 0 | L164: 82765.69 | M164: 17231005.49 | N164: 0 | O164: 0 | P164: 1139616.25 | Q164: 179280.59 | R164: 216333.05 | S164: 2143911.88 | T164: 284877.14 | U164: 0 | V164: 67513.32 | W164: 228580.67 | X164: 0 | Y164: 0 | Z164: 0 | AA164: 22200.79 | AB164: 0 | AC164: 45574.2 | AD164: 331330.97 | AE164: 92438.52 | AF164: 71986 | AG164: 157261.74 | AH164: 18679.35 | AI164: 11550.09 | AJ164: 143991.52 | AK164: 233937.25 | AL164: 1007513.77 | AM164: 150095 | AN164: 161594 | AO164: 25996635.47
B165: 160 | C165: 0160 | D165: LOWELL | E165: 160 | F165: 1 | G165: 1919565.34 | H165: 1795114.52 | I165: 0 | J165: 8490757.91 | K165: 0 | L165: 256546.69 | M165: 76758506.68 | N165: 0 | O165: 0 | P165: 4224055.11 | Q165: 1326258.65 | R165: 1460732.25 | S165: 10696285.2 | T165: 633746.72 | U165: 0 | V165: 0 | W165: 0 | X165: 0 | Y165: 372716.49 | Z165: 0 | AA165: 825286.58 | AB165: 0 | AC165: 0 | AD165: 138822.03 | AE165: 16783.71 | AF165: 0 | AG165: 956712.05 | AH165: 1663377.96 | AI165: 828257.46 | AJ165: 148984.84 | AK165: 162891.28 | AL165: 3391901.17 | AM165: 14406.26 | AN165: 1232740.98 | AO165: 117314449.9
B166: 161 | C166: 0161 | D166: LUDLOW | E166: 161 | F166: 1 | G166: 721195 | H166: 351622 | I166: 0 | J166: 1466293 | K166: 0 | L166: 0 | M166: 14537464 | N166: 0 | O166: 0 | P166: 1174975 | Q166: 190282 | R166: 253564 | S166: 1891165 | T166: 400519 | U166: 0 | V166: 1227 | W166: 15097 | X166: 0 | Y166: 3936 | Z166: 0 | AA166: 6077 | AB166: 0 | AC166: 10146 | AD166: 64974.45 | AE166: 28720 | AF166: 48533 | AG166: 162269 | AH166: 23152.18 | AI166: 116371 | AJ166: 5255 | AK166: 0 | AL166: 890118 | AM166: 7146 | AN166: 267844 | AO166: 22637944.63
B167: 162 | C167: 0162 | D167: LUNENBURG | E167: 162 | F167: 1 | G167: 295829.53 | H167: 0 | I167: 0 | J167: 911059 | K167: 0 | L167: 0 | M167: 8270111 | N167: 0 | O167: 0 | P167: 600250 | Q167: 27552 | R167: 220759 | S167: 776982.54 | T167: 159530 | U167: 0 | V167: 0 | W167: 24292 | X167: 0 | Y167: 0 | Z167: 0 | AA167: 3863 | AB167: 0 | AC167: 7712.57 | AD167: 3689 | AE167: 230670.4 | AF167: 25692 | AG167: 39594.32 | AH167: 3750 | AI167: 26475 | AJ167: 0 | AK167: 0 | AL167: 542633.69 | AM167: 0 | AN167: 147227 | AO167: 12317672.05
B168: 163 | C168: 0163 | D168: LYNN | E168: 163 | F168: 1 | G168: 3838842 | H168: 0 | I168: 0 | J168: 7300658.39 | K168: 0 | L168: 742190 | M168: 75154424 | N168: 0 | O168: 0 | P168: 2139436 | Q168: 0 | R168: 3262897.25 | S168: 7008044 | T168: 408414 | U168: 0 | V168: 1374825 | W168: 341718 | X168: 0 | Y168: 314693 | Z168: 0 | AA168: 1121716 | AB168: 0 | AC168: 0 | AD168: 2262389 | AE168: 948786 | AF168: 32664 | AG168: 155444 | AH168: 351468 | AI168: 4246 | AJ168: 0 | AK168: 0 | AL168: 2912934 | AM168: 1190585 | AN168: 913652 | AO168: 111780025.6
B169: 164 | C169: 0164 | D169: LYNNFIELD | E169: 164 | F169: 1 | G169: 824312 | H169: 0 | I169: 0 | J169: 1176839 | K169: 0 | L169: 166130 | M169: 14434654 | N169: 0 | O169: 0 | P169: 785197.09 | Q169: 166492 | R169: 129664 | S169: 970480 | T169: 332844 | U169: 0 | V169: 0 | W169: 0 | X169: 0 | Y169: 0 | Z169: 0 | AA169: 119536 | AB169: 0 | AC169: 17970 | AD169: 48927 | AE169: 38747 | AF169: 39386 | AG169: 234160 | AH169: 0 | AI169: 48874 | AJ169: 4994 | AK169: 0 | AL169: 447536 | AM169: 34489 | AN169: 487659 | AO169: 20508890.09
B170: 165 | C170: 0165 | D170: MALDEN | E170: 165 | F170: 1 | G170: 3100062.99 | H170: 52151.98 | I170: 0 | J170: 3455389.53 | K170: 0 | L170: 404896.36 | M170: 32498662.13 | N170: 0 | O170: 0 | P170: 1316468.64 | Q170: 299288.64 | R170: 335903.22 | S170: 3876955.59 | T170: 142124.62 | U170: 0 | V170: 0 | W170: 78251.96 | X170: 0 | Y170: 0 | Z170: 0 | AA170: 0 | AB170: 0 | AC170: 79252.38 | AD170: 40232.06 | AE170: 5697 | AF170: 482198.16 | AG170: 239368.5 | AH170: 14665.63 | AI170: 913163.91 | AJ170: 0 | AK170: 63080.94 | AL170: 2426405.42 | AM170: 0 | AN170: 503685.53 | AO170: 50327905.19
B171: 166 | C171: 0166 | D171: MANCHESTER | E171: 166 | F171: 0 | G171: 0 | H171: 0 | I171: 0 | J171: 0 | K171: 0 | L171: 0 | M171: 0 | N171: 0 | O171: 0 | P171: 0 | Q171: 0 | R171: 0 | S171: 0 | T171: 0 | U171: 0 | V171: 0 | W171: 0 | X171: 0 | Y171: 0 | Z171: 0 | AA171: 0 | AB171: 0 | AC171: 0 | AD171: 0 | AE171: 0 | AF171: 0 | AG171: 0 | AH171: 0 | AI171: 0 | AJ171: 0 | AK171: 0 | AL171: 0 | AM171: 0 | AN171: 0 | AO171: 0
B172: 167 | C172: 0167 | D172: MANSFIELD | E172: 167 | F172: 1 | G172: 881425.65 | H172: 81794.58 | I172: 0 | J172: 2162716.95 | K172: 0 | L172: 143613.8 | M172: 25478222.7 | N172: 0 | O172: 0 | P172: 1420589.46 | Q172: 214732.48 | R172: 491580.8 | S172: 1593684.13 | T172: 224300.56 | U172: 0 | V172: 24352.99 | W172: 5238.52 | X172: 0 | Y172: 195424 | Z172: 0 | AA172: 264398.1 | AB172: 0 | AC172: 37664.26 | AD172: 255527.2 | AE172: 21685.44 | AF172: 60430.69 | AG172: 442381.19 | AH172: 10221.19 | AI172: 209753.56 | AJ172: 0 | AK172: 0 | AL172: 1017714.68 | AM172: 2912.72 | AN172: 859079.17 | AO172: 36099444.82
B173: 168 | C173: 0168 | D173: MARBLEHEAD | E173: 168 | F173: 1 | G173: 706062 | H173: 411181 | I173: 0 | J173: 1702269 | K173: 0 | L173: 382529 | M173: 19791112 | N173: 0 | O173: 0 | P173: 1250992 | Q173: 0 | R173: 368969 | S173: 2597562.61 | T173: 298917 | U173: 0 | V173: 14536 | W173: 0 | X173: 0 | Y173: 0 | Z173: 0 | AA173: 9055 | AB173: 0 | AC173: 129904 | AD173: 50369 | AE173: 59055 | AF173: 30417 | AG173: 219290 | AH173: 14194 | AI173: 247497 | AJ173: 0 | AK173: 0 | AL173: 1244842 | AM173: 10881 | AN173: 574588 | AO173: 30114221.61
B174: 169 | C174: 0169 | D174: MARION | E174: 169 | F174: 1 | G174: 38948.41 | H174: 0 | I174: 0 | J174: 277420.23 | K174: 0 | L174: 49718.47 | M174: 2974333.05 | N174: 0 | O174: 0 | P174: 0 | Q174: 31763.16 | R174: 48437.88 | S174: 444183.58 | T174: 79264 | U174: 0 | V174: 0 | W174: 53898.36 | X174: 0 | Y174: 0 | Z174: 0 | AA174: 5287.78 | AB174: 0 | AC174: 0 | AD174: 19334.77 | AE174: 0 | AF174: 0 | AG174: 42364.74 | AH174: 59306.59 | AI174: 19491.92 | AJ174: 0 | AK174: 0 | AL174: 55788.36 | AM174: 0 | AN174: 176269.28 | AO174: 4375810.58
B175: 170 | C175: 0170 | D175: MARLBOROUGH | E175: 170 | F175: 1 | G175: 3650638.23 | H175: 286648.75 | I175: 0 | J175: 2170028.36 | K175: 0 | L175: 0 | M175: 28644484.2 | N175: 0 | O175: 0 | P175: 2030725.75 | Q175: 0 | R175: 432598.14 | S175: 4669827.73 | T175: 375926.44 | U175: 0 | V175: 0 | W175: 0 | X175: 0 | Y175: 33165.58 | Z175: 0 | AA175: 106981.5 | AB175: 0 | AC175: 108864.09 | AD175: 542149.55 | AE175: 38807.67 | AF175: 22115.67 | AG175: 194533.96 | AH175: 147501.41 | AI175: 0 | AJ175: 0 | AK175: 0 | AL175: 1837804.75 | AM175: 24221.91 | AN175: 361490.28 | AO175: 45678513.97
B176: 171 | C176: 0171 | D176: MARSHFIELD | E176: 171 | F176: 1 | G176: 611296 | H176: 386148.47 | I176: 0 | J176: 2451933.38 | K176: 0 | L176: 248061.89 | M176: 22950622.53 | N176: 0 | O176: 0 | P176: 1422161.92 | Q176: 233766.86 | R176: 360571.9 | S176: 3017571.07 | T176: 166585.23 | U176: 0 | V176: 0 | W176: 0 | X176: 0 | Y176: 12895.5 | Z176: 0 | AA176: 104158.14 | AB176: 0 | AC176: 12237.39 | AD176: 195418.46 | AE176: 16147.82 | AF176: 176413.18 | AG176: 267325.05 | AH176: 88605.36 | AI176: 92278.94 | AJ176: 1187.67 | AK176: 24679.9 | AL176: 1271005.09 | AM176: 20796.85 | AN176: 580540 | AO176: 34712408.6
B177: 172 | C177: 0172 | D177: MASHPEE | E177: 172 | F177: 1 | G177: 260829 | H177: 56811 | I177: 0 | J177: 1115534 | K177: 0 | L177: 9170 | M177: 10204198 | N177: 0 | O177: 0 | P177: 585882 | Q177: 70732 | R177: 181299 | S177: 848116 | T177: 254222 | U177: 0 | V177: 25512 | W177: 0 | X177: 0 | Y177: 0 | Z177: 0 | AA177: 60168 | AB177: 0 | AC177: 135143 | AD177: 36871 | AE177: 41408 | AF177: 122799 | AG177: 116069 | AH177: 203111 | AI177: 62450 | AJ177: 0 | AK177: 43157 | AL177: 948151 | AM177: 8453 | AN177: 284829 | AO177: 15674914
B178: 173 | C178: 0173 | D178: MATTAPOISETT | E178: 173 | F178: 1 | G178: 47189.45 | H178: 0 | I178: 0 | J178: 376090.04 | K178: 0 | L178: 94940.13 | M178: 3082572.07 | N178: 0 | O178: 0 | P178: 0 | Q178: 47944.46 | R178: 19252.79 | S178: 582756.48 | T178: 90667.6 | U178: 0 | V178: 0 | W178: 26875 | X178: 0 | Y178: 0 | Z178: 0 | AA178: 39290.81 | AB178: 0 | AC178: 0 | AD178: 0 | AE178: 4542.86 | AF178: 26588.87 | AG178: 31973.34 | AH178: 57983.08 | AI178: 7405.64 | AJ178: 0 | AK178: 0 | AL178: 97394.56 | AM178: 0 | AN178: 184426.42 | AO178: 4817893.6
B179: 174 | C179: 0174 | D179: MAYNARD | E179: 174 | F179: 1 | G179: 136312.62 | H179: 348968.24 | I179: 0 | J179: 773985.03 | K179: 0 | L179: 0 | M179: 7688962.49 | N179: 0 | O179: 0 | P179: 501377.71 | Q179: 0 | R179: 180264.25 | S179: 889198.32 | T179: 197582.82 | U179: 0 | V179: 3709.94 | W179: 172181.32 | X179: 0 | Y179: 81832.74 | Z179: 0 | AA179: 6611.65 | AB179: 0 | AC179: 56818.81 | AD179: 2295.47 | AE179: 1648.44 | AF179: 66175.7 | AG179: 116919.8 | AH179: 51866.07 | AI179: 82077.49 | AJ179: 0 | AK179: 27069.74 | AL179: 718426.5 | AM179: 33978.69 | AN179: 182304.79 | AO179: 12320568.63
B180: 175 | C180: 0175 | D180: MEDFIELD | E180: 175 | F180: 1 | G180: 566558.2 | H180: 152876 | I180: 0 | J180: 1515980.55 | K180: 0 | L180: 96141.85 | M180: 17003792.47 | N180: 0 | O180: 0 | P180: 863990.59 | Q180: 240389.2 | R180: 154863.86 | S180: 1220377.44 | T180: 509232.49 | U180: 0 | V180: 118239.6 | W180: 0 | X180: 0 | Y180: 2750 | Z180: 0 | AA180: 105729.73 | AB180: 0 | AC180: 710.03 | AD180: 117287.43 | AE180: 45385.27 | AF180: 14370.18 | AG180: 271864.94 | AH180: 13578.23 | AI180: 180644.79 | AJ180: 0 | AK180: 72560.24 | AL180: 1065217.95 | AM180: 2464.18 | AN180: 408056.42 | AO180: 24743061.64
B181: 176 | C181: 0176 | D181: MEDFORD | E181: 176 | F181: 1 | G181: 2492135.17 | H181: 2818263.42 | I181: 0 | J181: 2656787.28 | K181: 0 | L181: 0 | M181: 27425894.59 | N181: 0 | O181: 0 | P181: 1686580.86 | Q181: 0 | R181: 382828.95 | S181: 2221966.76 | T181: 385153.78 | U181: 0 | V181: 29459.01 | W181: 0 | X181: 0 | Y181: 17832.81 | Z181: 0 | AA181: 300 | AB181: 0 | AC181: 3977.08 | AD181: 129721.18 | AE181: 35543.87 | AF181: 226605.07 | AG181: 204245.91 | AH181: 25677.96 | AI181: 100000 | AJ181: 109775 | AK181: 0 | AL181: 1693578.67 | AM181: 0 | AN181: 566839.28 | AO181: 43213166.65
B182: 177 | C182: 0177 | D182: MEDWAY | E182: 177 | F182: 1 | G182: 724810.82 | H182: 163191.98 | I182: 0 | J182: 1237340.08 | K182: 0 | L182: 162287 | M182: 12247341.79 | N182: 0 | O182: 0 | P182: 894402.2 | Q182: 228096.85 | R182: 229545.85 | S182: 1123381.72 | T182: 147646.67 | U182: 0 | V182: 0 | W182: 447990.48 | X182: 0 | Y182: 0 | Z182: 0 | AA182: 95055.29 | AB182: 0 | AC182: 408.98 | AD182: 60623.82 | AE182: 3992.59 | AF182: 26754.3 | AG182: 68192.11 | AH182: 65528.8 | AI182: 0 | AJ182: 0 | AK182: 180558.85 | AL182: 741843.03 | AM182: 0 | AN182: 425811.62 | AO182: 19274804.83
B183: 178 | C183: 0178 | D183: MELROSE | E183: 178 | F183: 1 | G183: 896317.4 | H183: 370351.75 | I183: 0 | J183: 1592226.77 | K183: 0 | L183: 0 | M183: 15008460.9 | N183: 0 | O183: 0 | P183: 1265900.94 | Q183: 146777.74 | R183: 85728.6 | S183: 1498678.95 | T183: 108859.46 | U183: 0 | V183: 0 | W183: 217070.88 | X183: 0 | Y183: 29450 | Z183: 0 | AA183: 283107.66 | AB183: 0 | AC183: 65840.8 | AD183: 173453.64 | AE183: 70654.46 | AF183: 183517.26 | AG183: 100868.48 | AH183: 6375 | AI183: 0 | AJ183: 0 | AK183: 0 | AL183: 568183.6 | AM183: 0 | AN183: 632135.24 | AO183: 23303959.53
B184: 179 | C184: 0179 | D184: MENDON | E184: 179 | F184: 0 | G184: 0 | H184: 0 | I184: 0 | J184: 0 | K184: 0 | L184: 0 | M184: 0 | N184: 0 | O184: 0 | P184: 0 | Q184: 0 | R184: 0 | S184: 0 | T184: 0 | U184: 0 | V184: 0 | W184: 0 | X184: 0 | Y184: 0 | Z184: 0 | AA184: 0 | AB184: 0 | AC184: 0 | AD184: 0 | AE184: 0 | AF184: 0 | AG184: 0 | AH184: 0 | AI184: 0 | AJ184: 0 | AK184: 0 | AL184: 0 | AM184: 0 | AN184: 0 | AO184: 0
B185: 180 | C185: 0180 | D185: MERRIMAC | E185: 180 | F185: 0 | G185: 0 | H185: 0 | I185: 0 | J185: 0 | K185: 0 | L185: 0 | M185: 0 | N185: 0 | O185: 0 | P185: 0 | Q185: 0 | R185: 0 | S185: 0 | T185: 0 | U185: 0 | V185: 0 | W185: 0 | X185: 0 | Y185: 0 | Z185: 0 | AA185: 0 | AB185: 0 | AC185: 0 | AD185: 0 | AE185: 0 | AF185: 0 | AG185: 0 | AH185: 0 | AI185: 0 | AJ185: 0 | AK185: 0 | AL185: 0 | AM185: 0 | AN185: 0 | AO185: 0
B186: 181 | C186: 0181 | D186: METHUEN | E186: 181 | F186: 1 | G186: 2559066 | H186: 0 | I186: 0 | J186: 3368621 | K186: 0 | L186: 460000 | M186: 35577292 | N186: 0 | O186: 0 | P186: 2433445 | Q186: 0 | R186: 832220 | S186: 2696160 | T186: 423916 | U186: 0 | V186: 0 | W186: 0 | X186: 0 | Y186: 0 | Z186: 0 | AA186: 4876 | AB186: 0 | AC186: 0 | AD186: 149711 | AE186: 0 | AF186: 241860 | AG186: 89303 | AH186: 20377 | AI186: 501073 | AJ186: 0 | AK186: 70496 | AL186: 2026041 | AM186: 60997 | AN186: 1058493 | AO186: 52573947
B187: 182 | C187: 0182 | D187: MIDDLEBOROUGH | E187: 182 | F187: 1 | G187: 583864.81 | H187: 361466.58 | I187: 0 | J187: 1602798.01 | K187: 0 | L187: 187171.12 | M187: 15654986.99 | N187: 0 | O187: 0 | P187: 989953.83 | Q187: 32375.28 | R187: 237072.95 | S187: 1724341.2 | T187: 165147.28 | U187: 0 | V187: 0 | W187: 81027 | X187: 0 | Y187: 0 | Z187: 0 | AA187: 132269.01 | AB187: 0 | AC187: 47023 | AD187: 42795 | AE187: 10358 | AF187: 96425.6 | AG187: 78371.84 | AH187: 81867 | AI187: 140281 | AJ187: 0 | AK187: 172343 | AL187: 946459.28 | AM187: 4575 | AN187: 524483.9 | AO187: 23897456.68
B188: 183 | C188: 0183 | D188: MIDDLEFIELD | E188: 183 | F188: 0 | G188: 0 | H188: 0 | I188: 0 | J188: 0 | K188: 0 | L188: 0 | M188: 0 | N188: 0 | O188: 0 | P188: 0 | Q188: 0 | R188: 0 | S188: 0 | T188: 0 | U188: 0 | V188: 0 | W188: 0 | X188: 0 | Y188: 0 | Z188: 0 | AA188: 0 | AB188: 0 | AC188: 0 | AD188: 0 | AE188: 0 | AF188: 0 | AG188: 0 | AH188: 0 | AI188: 0 | AJ188: 0 | AK188: 0 | AL188: 0 | AM188: 0 | AN188: 0 | AO188: 0
B189: 184 | C189: 0184 | D189: MIDDLETON | E189: 184 | F189: 1 | G189: 224978 | H189: 166572 | I189: 0 | J189: 397336 | K189: 0 | L189: 0 | M189: 4418290 | N189: 0 | O189: 0 | P189: 343525 | Q189: 1652 | R189: 194868 | S189: 678797 | T189: 113154 | U189: 0 | V189: 0 | W189: 0 | X189: 0 | Y189: 0 | Z189: 0 | AA189: 90951 | AB189: 0 | AC189: 7178 | AD189: 20031 | AE189: 214222 | AF189: 17421 | AG189: 42908 | AH189: 9724 | AI189: 154484 | AJ189: 0 | AK189: 0 | AL189: 30476 | AM189: 0 | AN189: 182678 | AO189: 7309245
B190: 185 | C190: 0185 | D190: MILFORD | E190: 185 | F190: 1 | G190: 652715 | H190: 74422 | I190: 0 | J190: 2031920.32 | K190: 0 | L190: 161443.47 | M190: 26218613.34 | N190: 0 | O190: 0 | P190: 0 | Q190: 310122 | R190: 552422.5 | S190: 2122639.51 | T190: 215939 | U190: 0 | V190: 61083 | W190: 0 | X190: 0 | Y190: 0 | Z190: 0 | AA190: 14598.17 | AB190: 0 | AC190: 17466 | AD190: 41476.24 | AE190: 24495.87 | AF190: 83741.88 | AG190: 520486.48 | AH190: 26436.21 | AI190: 67804.19 | AJ190: 11274 | AK190: 0 | AL190: 1560556 | AM190: 0 | AN190: 581629.54 | AO190: 35351284.72
B191: 186 | C191: 0186 | D191: MILLBURY | E191: 186 | F191: 1 | G191: 361320 | H191: 54888 | I191: 0 | J191: 1023478 | K191: 0 | L191: 0 | M191: 10105878 | N191: 0 | O191: 0 | P191: 244419 | Q191: 195324 | R191: 144253 | S191: 1157306 | T191: 127179 | U191: 0 | V191: 0 | W191: 333330 | X191: 0 | Y191: 1330 | Z191: 0 | AA191: 7899 | AB191: 0 | AC191: 66722 | AD191: 160142 | AE191: 0 | AF191: 218 | AG191: 136869 | AH191: 90768 | AI191: 390838 | AJ191: 0 | AK191: 13991 | AL191: 574009 | AM191: 43525 | AN191: 225722 | AO191: 15459408
B192: 187 | C192: 0187 | D192: MILLIS | E192: 187 | F192: 1 | G192: 283169 | H192: 44617 | I192: 0 | J192: 708954 | K192: 0 | L192: 146351 | M192: 7262096 | N192: 0 | O192: 0 | P192: 614323 | Q192: 0 | R192: 100758 | S192: 498708 | T192: 231878 | U192: 0 | V192: 100961 | W192: 0 | X192: 0 | Y192: 0 | Z192: 0 | AA192: 17823 | AB192: 0 | AC192: 24864 | AD192: 19349 | AE192: 95220 | AF192: 31202 | AG192: 45033 | AH192: 0 | AI192: 14256 | AJ192: 0 | AK192: 65021 | AL192: 451299 | AM192: 14028 | AN192: 150 | AO192: 10770060
B193: 188 | C193: 0188 | D193: MILLVILLE | E193: 188 | F193: 0 | G193: 0 | H193: 0 | I193: 0 | J193: 0 | K193: 0 | L193: 0 | M193: 0 | N193: 0 | O193: 0 | P193: 0 | Q193: 0 | R193: 0 | S193: 0 | T193: 0 | U193: 0 | V193: 0 | W193: 0 | X193: 0 | Y193: 0 | Z193: 0 | AA193: 0 | AB193: 0 | AC193: 0 | AD193: 0 | AE193: 0 | AF193: 0 | AG193: 0 | AH193: 0 | AI193: 0 | AJ193: 0 | AK193: 0 | AL193: 0 | AM193: 0 | AN193: 0 | AO193: 0
B194: 189 | C194: 0189 | D194: MILTON | E194: 189 | F194: 1 | G194: 2010466.1 | H194: 1027587.47 | I194: 0 | J194: 2015103.28 | K194: 0 | L194: 0 | M194: 23970602.77 | N194: 0 | O194: 0 | P194: 1285448.11 | Q194: 0 | R194: 423620.44 | S194: 1459430.47 | T194: 352752.72 | U194: 0 | V194: 0 | W194: 373931.98 | X194: 0 | Y194: 60868.2 | Z194: 0 | AA194: 26378.49 | AB194: 0 | AC194: 22998.66 | AD194: 305071.21 | AE194: 2952.79 | AF194: 64297.36 | AG194: 201684.71 | AH194: 52810.44 | AI194: 30577.87 | AJ194: 0 | AK194: 29334.82 | AL194: 1504675.4 | AM194: 0 | AN194: 213220.66 | AO194: 35433813.95
B195: 190 | C195: 0190 | D195: MONROE | E195: 190 | F195: 0 | G195: 10323 | H195: 0 | I195: 0 | J195: 0 | K195: 0 | L195: 0 | M195: 0 | N195: 0 | O195: 0 | P195: 0 | Q195: 0 | R195: 0 | S195: 31987 | T195: 0 | U195: 0 | V195: 0 | W195: 0 | X195: 0 | Y195: 0 | Z195: 0 | AA195: 0 | AB195: 0 | AC195: 133 | AD195: 0 | AE195: 0 | AF195: 0 | AG195: 0 | AH195: 0 | AI195: 0 | AJ195: 0 | AK195: 0 | AL195: 0 | AM195: 0 | AN195: 2000 | AO195: 44443
B196: 191 | C196: 0191 | D196: MONSON | E196: 191 | F196: 1 | G196: 229293 | H196: 0 | I196: 0 | J196: 781699 | K196: 0 | L196: 111509 | M196: 4797472 | N196: 0 | O196: 0 | P196: 342025 | Q196: 107733 | R196: 146527 | S196: 840410 | T196: 93700 | U196: 0 | V196: 0 | W196: 0 | X196: 0 | Y196: 41959 | Z196: 0 | AA196: 230969 | AB196: 0 | AC196: 22926 | AD196: 6540 | AE196: 4992 | AF196: 0 | AG196: 76455 | AH196: 9405 | AI196: 909 | AJ196: 0 | AK196: 0 | AL196: 412475 | AM196: 3289 | AN196: 172635 | AO196: 8432922
B197: 192 | C197: 0192 | D197: MONTAGUE | E197: 192 | F197: 0 | G197: 0 | H197: 0 | I197: 0 | J197: 0 | K197: 0 | L197: 0 | M197: 0 | N197: 0 | O197: 0 | P197: 0 | Q197: 0 | R197: 0 | S197: 0 | T197: 0 | U197: 0 | V197: 0 | W197: 0 | X197: 0 | Y197: 0 | Z197: 0 | AA197: 0 | AB197: 0 | AC197: 0 | AD197: 0 | AE197: 0 | AF197: 0 | AG197: 0 | AH197: 0 | AI197: 0 | AJ197: 0 | AK197: 0 | AL197: 0 | AM197: 0 | AN197: 0 | AO197: 0
B198: 193 | C198: 0193 | D198: MONTEREY | E198: 193 | F198: 0 | G198: 0 | H198: 0 | I198: 0 | J198: 0 | K198: 0 | L198: 0 | M198: 0 | N198: 0 | O198: 0 | P198: 0 | Q198: 0 | R198: 0 | S198: 0 | T198: 0 | U198: 0 | V198: 0 | W198: 0 | X198: 0 | Y198: 0 | Z198: 0 | AA198: 0 | AB198: 0 | AC198: 0 | AD198: 0 | AE198: 0 | AF198: 0 | AG198: 0 | AH198: 0 | AI198: 0 | AJ198: 0 | AK198: 0 | AL198: 0 | AM198: 0 | AN198: 0 | AO198: 0
B199: =B198+1 -> 194 | C199: 0194 | D199: MONTGOMERY | E199: 194 | F199: 0 | G199: 0 | H199: 0 | I199: 0 | J199: 0 | K199: 0 | L199: 0 | M199: 0 | N199: 0 | O199: 0 | P199: 0 | Q199: 0 | R199: 0 | S199: 0 | T199: 0 | U199: 0 | V199: 0 | W199: 0 | X199: 0 | Y199: 0 | Z199: 0 | AA199: 0 | AB199: 0 | AC199: 0 | AD199: 0 | AE199: 0 | AF199: 0 | AG199: 0 | AH199: 0 | AI199: 0 | AJ199: 0 | AK199: 0 | AL199: 0 | AM199: 0 | AN199: 0 | AO199: 0
B200: 195 | C200: 0195 | D200: MOUNT WASHINGTON | E200: 195 | F200: 0 | G200: 0 | H200: 0 | I200: 0 | J200: 0 | K200: 0 | L200: 0 | M200: 0 | N200: 0 | O200: 0 | P200: 0 | Q200: 0 | R200: 0 | S200: 0 | T200: 0 | U200: 0 | V200: 0 | W200: 0 | X200: 0 | Y200: 0 | Z200: 0 | AA200: 0 | AB200: 0 | AC200: 0 | AD200: 0 | AE200: 0 | AF200: 0 | AG200: 0 | AH200: 0 | AI200: 0 | AJ200: 0 | AK200: 0 | AL200: 0 | AM200: 0 | AN200: 0 | AO200: 0
B201: 196 | C201: 0196 | D201: NAHANT | E201: 196 | F201: 1 | G201: 0 | H201: 6100 | I201: 0 | J201: 144207.69 | K201: 0 | L201: 5508 | M201: 705041 | N201: 0 | O201: 0 | P201: 0 | Q201: 0 | R201: 12935 | S201: 82337 | T201: 4254 | U201: 0 | V201: 0 | W201: 0 | X201: 0 | Y201: 0 | Z201: 0 | AA201: 0 | AB201: 0 | AC201: 8574 | AD201: 33681 | AE201: 8894.62 | AF201: 7002 | AG201: 22800 | AH201: 9863 | AI201: 0 | AJ201: 2755 | AK201: 9556 | AL201: 25218 | AM201: 0 | AN201: 79541 | AO201: 1168267.31
B202: 197 | C202: 0197 | D202: NANTUCKET | E202: 197 | F202: 1 | G202: 434220 | H202: 0 | I202: 0 | J202: 1441807 | K202: 0 | L202: 332737 | M202: 12349257 | N202: 0 | O202: 0 | P202: 834481 | Q202: 53410 | R202: 114239 | S202: 1333363 | T202: 321415 | U202: 0 | V202: 187500 | W202: 0 | X202: 0 | Y202: 61000 | Z202: 0 | AA202: 96856 | AB202: 0 | AC202: 137001 | AD202: 190072 | AE202: 27146 | AF202: 6101 | AG202: 160074 | AH202: 47490 | AI202: 276195 | AJ202: 11516 | AK202: 110183 | AL202: 929343 | AM202: 24700 | AN202: 0 | AO202: 19480106
B203: 198 | C203: 0198 | D203: NATICK | E203: 198 | F203: 1 | G203: 1865642 | H203: 0 | I203: 0 | J203: 3082157 | K203: 0 | L203: 4741 | M203: 29806074 | N203: 0 | O203: 0 | P203: 1972298 | Q203: 0 | R203: 770608 | S203: 3118743 | T203: 249193 | U203: 0 | V203: 216986 | W203: 0 | X203: 0 | Y203: 0 | Z203: 0 | AA203: 244160 | AB203: 0 | AC203: 0 | AD203: 502896.41 | AE203: 741645 | AF203: 65626 | AG203: 261959 | AH203: 105538 | AI203: 478 | AJ203: 0 | AK203: 1436 | AL203: 1820369 | AM203: 80284 | AN203: 961327 | AO203: 45872160.41
... 241 more rows

Sheet Reports 2.0
C2: Corrected FY18 EOYR Schedule 3 Instructoinal data
C4: Please select your District from the below drop down:
C5: =VLOOKUP(A6,'LEA List'!A2:C440,3,FALSE) -> 001
A6: 1 | C6: Schedule 3 Instruction Expenditures, School Committee | E6: FY17 | F6: FY18 | G6: FY19 | H6: Change FY18-FY19 | J6: Please review and correct any reporting errors | K6: Select OK if the reported data is correct
B7: 149 | C7: Curriculum Directors (Supervisory) (2110) (line 3409, col 6) | E7: =IFERROR(VLOOKUP($C$5,'FY17'!$E$6:$AO$444,3,FALSE),"") -> 286416.76 | F7: =IFERROR(VLOOKUP($C$5,'FY18'!$E$6:$AO$444,3,FALSE),"") -> 326478.52 | G7: 0 | H7: =IF(F7>0,(G7-F7)/F7,IF(G7>0,1,0)) -> -1 | J7: =IF(K7="OK","", IF(AND(ABS(H7)>0.25,ABS(G7-F7)>100000),"Please Review","")) -> Please Review
B8: 150 | C8: Department Heads (Non-Supervisory) (2120) (line 3419, col 6) | E8: =IFERROR(VLOOKUP($C$5,'FY17'!$E$6:$AO$444,4,FALSE),"") -> 0 | F8: =IFERROR(VLOOKUP($C$5,'FY18'!$E$6:$AO$444,4,FALSE),"") -> 45318.88 | G8: 0 | H8: -1 | J8: =IF(K8="OK","", IF(AND(ABS(H8)>0.25,ABS(G8-F8)>100000),"Please Review","")) -> 
B9: 151 | C9: Instructional Technology Leadership and Training (2130) (line 3427, col 6) * | G9: 0
B10: 152 | C10: School Leadership-Building (2210) (line 3434, col 6) | E10: =IFERROR(VLOOKUP($C$5,'FY17'!$E$6:$AO$444,6,FALSE),"") -> 1053683.03 | F10: =IFERROR(VLOOKUP($C$5,'FY18'!$E$6:$AO$444,6,FALSE),"") -> 1116731.53 | G10: 0 | H10: -1 | J10: Please Review
B11: 153 | C11: Curriculum Leaders/Department Heads-Building Level (2220) | E11: =IFERROR(VLOOKUP($C$5,'FY17'!$E$6:$AO$444,7,FALSE),"") -> 0
B12: 154 | C12: Administrative Technology and Support – Schools (2250) (line 3449, col 6) | E12: =IFERROR(VLOOKUP($C$5,'FY17'!$E$6:$AO$444,8,FALSE),"") -> 8246.92 | F12: =IFERROR(VLOOKUP($C$5,'FY18'!$E$6:$AO$444,8,FALSE),"") -> 5289.46 | G12: 0 | H12: -1
B13: 155 | C13: Teachers, Classroom (2305) (line 3450, col 6) | E13: =IFERROR(VLOOKUP($C$5,'FY17'!$E$6:$AO$444,9,FALSE),"") -> 8937658.61 | F13: =IFERROR(VLOOKUP($C$5,'FY18'!$E$6:$AO$444,9,FALSE),"") -> 9722775.67 | G13: 0 | H13: -1 | J13: Please Review
B14: 156 | C14: Teachers, Specialists (2310) | E14: =IFERROR(VLOOKUP($C$5,'FY17'!$E$6:$AO$444,10,FALSE),"") -> 509795
B15: 157 | C15: Instructional Coordinators and Team Leaders (2315) | E15: =IFERROR(VLOOKUP($C$5,'FY17'!$E$6:$AO$444,11,FALSE),"") -> 0
B16: 158 | C16: Medical/ Therapeutic Services (2320) (line 3459, col 6) | E16: =IFERROR(VLOOKUP($C$5,'FY17'!$E$6:$AO$444,12,FALSE),"") -> 320139.61 | F16: =IFERROR(VLOOKUP($C$5,'FY18'!$E$6:$AO$444,12,FALSE),"") -> 368494 | G16: 0 | H16: -1 | J16: Please Review
B17: 159 | C17: Substitutes, Long Term (2324) (line 3465, col 6) | F17: =IFERROR(VLOOKUP($C$5,'FY18'!$E$6:$AO$444,13,FALSE),"") -> 155382.04 | G17: 0 | H17: -1 | J17: Please Review
B18: 160 | C18: Substitutes, Short Term (2325) (line 3469, col 6) | E18: =IFERROR(VLOOKUP($C$5,'FY17'!$E$6:$AO$444,14,FALSE),"") -> 118895.94 | F18: =IFERROR(VLOOKUP($C$5,'FY18'!$E$6:$AO$444,14,FALSE),"") -> 92978.86 | G18: 0 | H18: -1
B19: 161 | C19: Non-Clerical Paraprofs./Instructional Assistants (2330) (line 3475, col 6) | E19: =IFERROR(VLOOKUP($C$5,'FY17'!$E$6:$AO$444,15,FALSE),"") -> 1373048.59 | F19: =IFERROR(VLOOKUP($C$5,'FY18'!$E$6:$AO$444,15,FALSE),"") -> 1558018.37 | G19: 0 | H19: -1 | J19: Please Review
B20: 162 | C20: Librarians and Media Center Directors (2340) (line 3479, col 6) | E20: =IFERROR(VLOOKUP($C$5,'FY17'!$E$6:$AO$444,16,FALSE),"") -> 83635.44 | F20: =IFERROR(VLOOKUP($C$5,'FY18'!$E$6:$AO$444,16,FALSE),"") -> 87421.98 | G20: 0 | H20: -1
B21: 163 | C21: Distance Learning and Online Coursework (2345) (line 3486, col 6) * | G21: 0
B22: 164 | C22: Professional Development Leadership (2351) (line 3493, col 6) | E22: =IFERROR(VLOOKUP($C$5,'FY17'!$E$6:$AO$444,18,FALSE),"") -> 243435.89 | F22: =IFERROR(VLOOKUP($C$5,'FY18'!$E$6:$AO$444,18,FALSE),"") -> 17935 | G22: 0 | H22: -1
B23: 165 | C23: Instructional Coaches (2352) (line 3498, col 6) | F23: =IFERROR(VLOOKUP($C$5,'FY18'!$E$6:$AO$444,19,FALSE),"") -> 0 | G23: 0 | H23: 0
B24: 166 | C24: Teacher/Instructional Staff-Professional Days (2353) | E24: =IFERROR(VLOOKUP($C$5,'FY17'!$E$6:$AO$444,20,FALSE),"") -> 78590.33
B25: 167 | C25: Stipends for Teachers Providing Instructional Coaching (2354) (line 3499, col 6) | F25: =IFERROR(VLOOKUP($C$5,'FY18'!$E$6:$AO$444,21,FALSE),"") -> 21975 | G25: 0 | H25: -1
B26: 168 | C26: Substitutes for Instructional Staff at Prof. Development (2355) | E26: =IFERROR(VLOOKUP($C$5,'FY17'!$E$6:$AO$444,22,FALSE),"") -> 0
B27: 169 | C27: Costs for Instructional Staff to Attend Prof. Dev. (2356) (line 3505, col 6) | F27: =IFERROR(VLOOKUP($C$5,'FY18'!$E$6:$AO$444,23,FALSE),"") -> 82917.65 | G27: 0 | H27: -1
B28: 170 | C28: Prof. Development Stipends, Providers and Expenses (2357) | E28: =IFERROR(VLOOKUP($C$5,'FY17'!$E$6:$AO$444,24,FALSE),"") -> 92618.53
B29: 171 | C29: Outside Professional Development for Instructional Staff (2358) (line 3509, col 6) | F29: =IFERROR(VLOOKUP($C$5,'FY18'!$E$6:$AO$444,25,FALSE),"") -> 0 | G29: 0 | H29: 0
B30: 172 | C30: Textbooks (2410) (line 3511, col 6) | E30: =IFERROR(VLOOKUP($C$5,'FY17'!$E$6:$AO$444,26,FALSE),"") -> 226402.48 | F30: =IFERROR(VLOOKUP($C$5,'FY18'!$E$6:$AO$444,26,FALSE),"") -> 176428.48 | G30: 0 | H30: -1 | J30: Please Review
B31: 173 | C31: Other Instructional Materials (2415) (line 3519, col 6) | E31: =IFERROR(VLOOKUP($C$5,'FY17'!$E$6:$AO$444,27,FALSE),"") -> 47673.45 | F31: =IFERROR(VLOOKUP($C$5,'FY18'!$E$6:$AO$444,27,FALSE),"") -> 67861.23 | G31: 0 | H31: -1
B32: 174 | C32: Instructional Equipment (2420) (line 3529, col 6) | E32: =IFERROR(VLOOKUP($C$5,'FY17'!$E$6:$AO$444,28,FALSE),"") -> 24224.47 | F32: =IFERROR(VLOOKUP($C$5,'FY18'!$E$6:$AO$444,28,FALSE),"") -> 32391.89 | G32: 0 | H32: -1
B33: 175 | C33: General Supplies (2430) (line 3535, col 6) | E33: =IFERROR(VLOOKUP($C$5,'FY17'!$E$6:$AO$444,29,FALSE),"") -> 224430.72 | F33: =IFERROR(VLOOKUP($C$5,'FY18'!$E$6:$AO$444,29,FALSE),"") -> 237938.21 | G33: 0 | H33: -1 | J33: Please Review
B34: 176 | C34: Other Instructional Services (2440) (line 3544, col 6) | E34: =IFERROR(VLOOKUP($C$5,'FY17'!$E$6:$AO$444,30,FALSE),"") -> 877919.48 | F34: =IFERROR(VLOOKUP($C$5,'FY18'!$E$6:$AO$444,30,FALSE),"") -> 473132 | G34: 0 | H34: -1 | J34: Please Review
B35: 177 | C35: Instructional Hardware –Student and Staff Devices (computers) (2451) (line 3548, col 6) | E35: =IFERROR(VLOOKUP($C$5,'FY17'!$E$6:$AO$444,31,FALSE),"") -> 183572.57 | F35: =IFERROR(VLOOKUP($C$5,'FY18'!$E$6:$AO$444,31,FALSE),"") -> 205644.67 | G35: 0 | H35: -1 | J35: Please Review
B36: 178 | C36: Instructional Hardware—All Other (2453) (line 3552, col 6) | E36: =IFERROR(VLOOKUP($C$5,'FY17'!$E$6:$AO$444,32,FALSE),"") -> 22536.4 | F36: =IFERROR(VLOOKUP($C$5,'FY18'!$E$6:$AO$444,32,FALSE),"") -> 21990 | G36: 0 | H36: -1
B37: 179 | C37: Instructional Software and Other Instructional Materials (2455) (line 3556, col 6) | E37: =IFERROR(VLOOKUP($C$5,'FY17'!$E$6:$AO$444,33,FALSE),"") -> 21441.08 | F37: =IFERROR(VLOOKUP($C$5,'FY18'!$E$6:$AO$444,33,FALSE),"") -> 139209 | G37: 0 | H37: -1 | J37: Please Review
B38: 180 | C38: Guidance Counselors and Adjustment Counselors (2710) (line 3569, col 6) | E38: =IFERROR(VLOOKUP($C$5,'FY17'!$E$6:$AO$444,34,FALSE),"") -> 366422.39 | F38: =IFERROR(VLOOKUP($C$5,'FY18'!$E$6:$AO$444,34,FALSE),"") -> 383840.96 | G38: 0 | H38: -1 | J38: Please Review
B39: 181 | C39: Testing and Assessment (2720) (line 3579, col 6) | E39: =IFERROR(VLOOKUP($C$5,'FY17'!$E$6:$AO$444,35,FALSE),"") -> 0 | F39: =IFERROR(VLOOKUP($C$5,'FY18'!$E$6:$AO$444,35,FALSE),"") -> 0 | G39: 0 | H39: 0
B40: 182 | C40: Psychological Services (2800) (line 3589, col 6) | E40: =IFERROR(VLOOKUP($C$5,'FY17'!$E$6:$AO$444,36,FALSE),"") -> 366395.61 | F40: =IFERROR(VLOOKUP($C$5,'FY18'!$E$6:$AO$444,36,FALSE),"") -> 401795.03 | G40: 0 | H40: -1 | J40: Please Review
B41: 183 | C41: Total Instruction (2000) (line 3599, col 6) | E41: =IFERROR(VLOOKUP($C$5,'FY17'!$E$6:$AO$444,37,FALSE),"") -> 15467183.3 | F41: =IFERROR(VLOOKUP($C$5,'FY18'!$E$6:$AO$444,37,FALSE),"") -> 15741948.43 | G41: 0 | H41: -1 | J41: Please Review

Sheet LEA List (hidden)
A2: 1 | B2: 001 - ABINGTON | C2: 001 | D2: =C2&" - "&B2 -> 001 - 001 - ABINGTON
A3: =A2+1 -> 2 | B3: 002 - ACTON | C3: 002 | D3: =C3&" - "&B3 -> 002 - 002 - ACTON
A4: 3 | B4: 003 - ACUSHNET | C4: 003 | D4: 003 - 003 - ACUSHNET
A5: 4 | B5: 004 - ADAMS | C5: 004 | D5: 004 - 004 - ADAMS
A6: 5 | B6: 005 - AGAWAM | C6: 005 | D6: 005 - 005 - AGAWAM
A7: 6 | B7: 006 - ALFORD | C7: 006 | D7: 006 - 006 - ALFORD
A8: 7 | B8: 007 - AMESBURY | C8: 007 | D8: 007 - 007 - AMESBURY
A9: 8 | B9: 008 - AMHERST | C9: 008 | D9: 008 - 008 - AMHERST
A10: 9 | B10: 009 - ANDOVER | C10: 009 | D10: 009 - 009 - ANDOVER
A11: 10 | B11: 010 - ARLINGTON | C11: 010 | D11: 010 - 010 - ARLINGTON
A12: 11 | B12: 011 - ASHBURNHAM | C12: 011 | D12: 011 - 011 - ASHBURNHAM
A13: 12 | B13: 012 - ASHBY | C13: 012 | D13: 012 - 012 - ASHBY
A14: 13 | B14: 013 - ASHFIELD | C14: 013 | D14: 013 - 013 - ASHFIELD
A15: 14 | B15: 014 - ASHLAND | C15: 014 | D15: 014 - 014 - ASHLAND
A16: 15 | B16: 015 - ATHOL | C16: 015 | D16: 015 - 015 - ATHOL
A17: 16 | B17: 016 - ATTLEBORO | C17: 016 | D17: 016 - 016 - ATTLEBORO
A18: 17 | B18: 017 - AUBURN | C18: 017 | D18: 017 - 017 - AUBURN
A19: 18 | B19: 018 - AVON | C19: 018 | D19: 018 - 018 - AVON
A20: 19 | B20: 019 - AYER | C20: 019 | D20: 019 - 019 - AYER
A21: 20 | B21: 020 - BARNSTABLE | C21: 020 | D21: 020 - 020 - BARNSTABLE
A22: 21 | B22: 021 - BARRE | C22: 021 | D22: 021 - 021 - BARRE
A23: 22 | B23: 022 - BECKET | C23: 022 | D23: 022 - 022 - BECKET
A24: 23 | B24: 023 - BEDFORD | C24: 023 | D24: 023 - 023 - BEDFORD
A25: 24 | B25: 024 - BELCHERTOWN | C25: 024 | D25: 024 - 024 - BELCHERTOWN
A26: 25 | B26: 025 - BELLINGHAM | C26: 025 | D26: 025 - 025 - BELLINGHAM
A27: 26 | B27: 026 - BELMONT | C27: 026 | D27: 026 - 026 - BELMONT
A28: 27 | B28: 027 - BERKLEY | C28: 027 | D28: 027 - 027 - BERKLEY
A29: 28 | B29: 028 - BERLIN | C29: 028 | D29: 028 - 028 - BERLIN
A30: 29 | B30: 029 - BERNARDSTON | C30: 029 | D30: 029 - 029 - BERNARDSTON
A31: 30 | B31: 030 - BEVERLY | C31: 030 | D31: 030 - 030 - BEVERLY
A32: 31 | B32: 031 - BILLERICA | C32: 031 | D32: 031 - 031 - BILLERICA
A33: 32 | B33: 032 - BLACKSTONE | C33: 032 | D33: 032 - 032 - BLACKSTONE
A34: 33 | B34: 033 - BLANDFORD | C34: 033 | D34: 033 - 033 - BLANDFORD
A35: 34 | B35: 034 - BOLTON | C35: 034 | D35: 034 - 034 - BOLTON
A36: 35 | B36: 035 - BOSTON | C36: 035 | D36: 035 - 035 - BOSTON
A37: 36 | B37: 036 - BOURNE | C37: 036 | D37: 036 - 036 - BOURNE
A38: 37 | B38: 037 - BOXBOROUGH | C38: 037 | D38: 037 - 037 - BOXBOROUGH
A39: 38 | B39: 038 - BOXFORD | C39: 038 | D39: 038 - 038 - BOXFORD
A40: 39 | B40: 039 - BOYLSTON | C40: 039 | D40: 039 - 039 - BOYLSTON
A41: 40 | B41: 040 - BRAINTREE | C41: 040 | D41: 040 - 040 - BRAINTREE
A42: 41 | B42: 041 - BREWSTER | C42: 041 | D42: 041 - 041 - BREWSTER
A43: 42 | B43: 042 - BRIDGEWATER | C43: 042 | D43: 042 - 042 - BRIDGEWATER
A44: 43 | B44: 043 - BRIMFIELD | C44: 043 | D44: 043 - 043 - BRIMFIELD
A45: 44 | B45: 044 - BROCKTON | C45: 044 | D45: 044 - 044 - BROCKTON
A46: 45 | B46: 045 - BROOKFIELD | C46: 045 | D46: 045 - 045 - BROOKFIELD
A47: 46 | B47: 046 - BROOKLINE | C47: 046 | D47: 046 - 046 - BROOKLINE
A48: 47 | B48: 047 - BUCKLAND | C48: 047 | D48: 047 - 047 - BUCKLAND
A49: 48 | B49: 048 - BURLINGTON | C49: 048 | D49: 048 - 048 - BURLINGTON
A50: 49 | B50: 049 - CAMBRIDGE | C50: 049 | D50: 049 - 049 - CAMBRIDGE
A51: 50 | B51: 050 - CANTON | C51: 050 | D51: 050 - 050 - CANTON
A52: 51 | B52: 051 - CARLISLE | C52: 051 | D52: 051 - 051 - CARLISLE
A53: 52 | B53: 052 - CARVER | C53: 052 | D53: 052 - 052 - CARVER
A54: 53 | B54: 053 - CHARLEMONT | C54: 053 | D54: 053 - 053 - CHARLEMONT
A55: 54 | B55: 054 - CHARLTON | C55: 054 | D55: 054 - 054 - CHARLTON
A56: 55 | B56: 055 - CHATHAM | C56: 055 | D56: 055 - 055 - CHATHAM
A57: 56 | B57: 056 - CHELMSFORD | C57: 056 | D57: 056 - 056 - CHELMSFORD
A58: 57 | B58: 057 - CHELSEA | C58: 057 | D58: 057 - 057 - CHELSEA
A59: 58 | B59: 058 - CHESHIRE | C59: 058 | D59: 058 - 058 - CHESHIRE
A60: 59 | B60: 059 - CHESTER | C60: 059 | D60: 059 - 059 - CHESTER
A61: 60 | B61: 060 - CHESTERFIELD | C61: 060 | D61: 060 - 060 - CHESTERFIELD
A62: 61 | B62: 061 - CHICOPEE | C62: 061 | D62: 061 - 061 - CHICOPEE
A63: 62 | B63: 062 - CHILMARK | C63: 062 | D63: 062 - 062 - CHILMARK
A64: 63 | B64: 063 - CLARKSBURG | C64: 063 | D64: 063 - 063 - CLARKSBURG
A65: 64 | B65: 064 - CLINTON | C65: 064 | D65: 064 - 064 - CLINTON
A66: 65 | B66: 065 - COHASSET | C66: 065 | D66: 065 - 065 - COHASSET
A67: =A66+1 -> 66 | B67: 066 - COLRAIN | C67: 066 | D67: =C67&" - "&B67 -> 066 - 066 - COLRAIN
A68: 67 | B68: 067 - CONCORD | C68: 067 | D68: 067 - 067 - CONCORD
A69: 68 | B69: 068 - CONWAY | C69: 068 | D69: 068 - 068 - CONWAY
A70: 69 | B70: 069 - CUMMINGTON | C70: 069 | D70: 069 - 069 - CUMMINGTON
A71: 70 | B71: 070 - DALTON | C71: 070 | D71: 070 - 070 - DALTON
A72: 71 | B72: 071 - DANVERS | C72: 071 | D72: 071 - 071 - DANVERS
A73: 72 | B73: 072 - DARTMOUTH | C73: 072 | D73: 072 - 072 - DARTMOUTH
A74: 73 | B74: 073 - DEDHAM | C74: 073 | D74: 073 - 073 - DEDHAM
A75: 74 | B75: 074 - DEERFIELD | C75: 074 | D75: 074 - 074 - DEERFIELD
A76: 75 | B76: 075 - DENNIS | C76: 075 | D76: 075 - 075 - DENNIS
A77: 76 | B77: 076 - DIGHTON | C77: 076 | D77: 076 - 076 - DIGHTON
A78: 77 | B78: 077 - DOUGLAS | C78: 077 | D78: 077 - 077 - DOUGLAS
A79: 78 | B79: 078 - DOVER | C79: 078 | D79: 078 - 078 - DOVER
A80: 79 | B80: 079 - DRACUT | C80: 079 | D80: 079 - 079 - DRACUT
A81: 80 | B81: 080 - DUDLEY | C81: 080 | D81: 080 - 080 - DUDLEY
A82: 81 | B82: 081 - DUNSTABLE | C82: 081 | D82: 081 - 081 - DUNSTABLE
A83: 82 | B83: 082 - DUXBURY | C83: 082 | D83: 082 - 082 - DUXBURY
A84: 83 | B84: 083 - EAST BRIDGEWATER | C84: 083 | D84: 083 - 083 - EAST BRIDGEWATER
A85: 84 | B85: 084 - EAST BROOKFIELD | C85: 084 | D85: 084 - 084 - EAST BROOKFIELD
A86: 85 | B86: 085 - EASTHAM | C86: 085 | D86: 085 - 085 - EASTHAM
A87: 86 | B87: 086 - EASTHAMPTON | C87: 086 | D87: 086 - 086 - EASTHAMPTON
A88: 87 | B88: 087 - EAST LONGMEADOW | C88: 087 | D88: 087 - 087 - EAST LONGMEADOW
A89: 88 | B89: 088 - EASTON | C89: 088 | D89: 088 - 088 - EASTON
A90: 89 | B90: 089 - EDGARTOWN | C90: 089 | D90: 089 - 089 - EDGARTOWN
A91: 90 | B91: 090 - EGREMONT | C91: 090 | D91: 090 - 090 - EGREMONT
A92: 91 | B92: 091 - ERVING | C92: 091 | D92: 091 - 091 - ERVING
A93: 92 | B93: 092 - ESSEX | C93: 092 | D93: 092 - 092 - ESSEX
A94: 93 | B94: 093 - EVERETT | C94: 093 | D94: 093 - 093 - EVERETT
A95: 94 | B95: 094 - FAIRHAVEN | C95: 094 | D95: 094 - 094 - FAIRHAVEN
A96: 95 | B96: 095 - FALL RIVER | C96: 095 | D96: 095 - 095 - FALL RIVER
A97: 96 | B97: 096 - FALMOUTH | C97: 096 | D97: 096 - 096 - FALMOUTH
A98: 97 | B98: 097 - FITCHBURG | C98: 097 | D98: 097 - 097 - FITCHBURG
A99: 98 | B99: 098 - FLORIDA | C99: 098 | D99: 098 - 098 - FLORIDA
A100: 99 | B100: 099 - FOXBOROUGH | C100: 099 | D100: 099 - 099 - FOXBOROUGH
A101: 100 | B101: 100 - FRAMINGHAM | C101: 100 | D101: 100 - 100 - FRAMINGHAM
A102: 101 | B102: 101 - FRANKLIN | C102: 101 | D102: 101 - 101 - FRANKLIN
A103: 102 | B103: 102 - FREETOWN | C103: 102 | D103: 102 - 102 - FREETOWN
A104: 103 | B104: 103 - GARDNER | C104: 103 | D104: 103 - 103 - GARDNER
A105: 104 | B105: 104 - GAY HEAD | C105: 104 | D105: 104 - 104 - GAY HEAD
A106: 105 | B106: 105 - GEORGETOWN | C106: 105 | D106: 105 - 105 - GEORGETOWN
A107: 106 | B107: 106 - GILL | C107: 106 | D107: 106 - 106 - GILL
A108: 107 | B108: 107 - GLOUCESTER | C108: 107 | D108: 107 - 107 - GLOUCESTER
A109: 108 | B109: 108 - GOSHEN | C109: 108 | D109: 108 - 108 - GOSHEN
A110: 109 | B110: 109 - GOSNOLD | C110: 109 | D110: 109 - 109 - GOSNOLD
A111: 110 | B111: 110 - GRAFTON | C111: 110 | D111: 110 - 110 - GRAFTON
A112: 111 | B112: 111 - GRANBY | C112: 111 | D112: 111 - 111 - GRANBY
A113: 112 | B113: 112 - GRANVILLE | C113: 112 | D113: 112 - 112 - GRANVILLE
A114: 113 | B114: 113 - GREAT BARRINGTON | C114: 113 | D114: 113 - 113 - GREAT BARRINGTON
A115: 114 | B115: 114 - GREENFIELD | C115: 114 | D115: 114 - 114 - GREENFIELD
A116: 115 | B116: 115 - GROTON | C116: 115 | D116: 115 - 115 - GROTON
A117: 116 | B117: 116 - GROVELAND | C117: 116 | D117: 116 - 116 - GROVELAND
A118: 117 | B118: 117 - HADLEY | C118: 117 | D118: 117 - 117 - HADLEY
A119: 118 | B119: 118 - HALIFAX | C119: 118 | D119: 118 - 118 - HALIFAX
A120: 119 | B120: 119 - HAMILTON | C120: 119 | D120: 119 - 119 - HAMILTON
A121: 120 | B121: 120 - HAMPDEN | C121: 120 | D121: 120 - 120 - HAMPDEN
A122: 121 | B122: 121 - HANCOCK | C122: 121 | D122: 121 - 121 - HANCOCK
A123: 122 | B123: 122 - HANOVER | C123: 122 | D123: 122 - 122 - HANOVER
A124: 123 | B124: 123 - HANSON | C124: 123 | D124: 123 - 123 - HANSON
A125: 124 | B125: 124 - HARDWICK | C125: 124 | D125: 124 - 124 - HARDWICK
A126: 125 | B126: 125 - HARVARD | C126: 125 | D126: 125 - 125 - HARVARD
A127: 126 | B127: 126 - HARWICH | C127: 126 | D127: 126 - 126 - HARWICH
A128: 127 | B128: 127 - HATFIELD | C128: 127 | D128: 127 - 127 - HATFIELD
A129: 128 | B129: 128 - HAVERHILL | C129: 128 | D129: 128 - 128 - HAVERHILL
A130: 129 | B130: 129 - HAWLEY | C130: 129 | D130: 129 - 129 - HAWLEY
A131: =A130+1 -> 130 | B131: 130 - HEATH | C131: 130 | D131: =C131&" - "&B131 -> 130 - 130 - HEATH
A132: 131 | B132: 131 - HINGHAM | C132: 131 | D132: 131 - 131 - HINGHAM
A133: 132 | B133: 132 - HINSDALE | C133: 132 | D133: 132 - 132 - HINSDALE
A134: 133 | B134: 133 - HOLBROOK | C134: 133 | D134: 133 - 133 - HOLBROOK
A135: 134 | B135: 134 - HOLDEN | C135: 134 | D135: 134 - 134 - HOLDEN
A136: 135 | B136: 135 - HOLLAND | C136: 135 | D136: 135 - 135 - HOLLAND
A137: 136 | B137: 136 - HOLLISTON | C137: 136 | D137: 136 - 136 - HOLLISTON
A138: 137 | B138: 137 - HOLYOKE | C138: 137 | D138: 137 - 137 - HOLYOKE
A139: 138 | B139: 138 - HOPEDALE | C139: 138 | D139: 138 - 138 - HOPEDALE
A140: 139 | B140: 139 - HOPKINTON | C140: 139 | D140: 139 - 139 - HOPKINTON
A141: 140 | B141: 140 - HUBBARDSTON | C141: 140 | D141: 140 - 140 - HUBBARDSTON
A142: 141 | B142: 141 - HUDSON | C142: 141 | D142: 141 - 141 - HUDSON
A143: 142 | B143: 142 - HULL | C143: 142 | D143: 142 - 142 - HULL
A144: 143 | B144: 143 - HUNTINGTON | C144: 143 | D144: 143 - 143 - HUNTINGTON
A145: 144 | B145: 144 - IPSWICH | C145: 144 | D145: 144 - 144 - IPSWICH
A146: 145 | B146: 145 - KINGSTON | C146: 145 | D146: 145 - 145 - KINGSTON
A147: 146 | B147: 146 - LAKEVILLE | C147: 146 | D147: 146 - 146 - LAKEVILLE
A148: 147 | B148: 147 - LANCASTER | C148: 147 | D148: 147 - 147 - LANCASTER
A149: 148 | B149: 148 - LANESBOROUGH | C149: 148 | D149: 148 - 148 - LANESBOROUGH
A150: 149 | B150: 149 - LAWRENCE | C150: 149 | D150: 149 - 149 - LAWRENCE
A151: 150 | B151: 150 - LEE | C151: 150 | D151: 150 - 150 - LEE
A152: 151 | B152: 151 - LEICESTER | C152: 151 | D152: 151 - 151 - LEICESTER
A153: 152 | B153: 152 - LENOX | C153: 152 | D153: 152 - 152 - LENOX
A154: 153 | B154: 153 - LEOMINSTER | C154: 153 | D154: 153 - 153 - LEOMINSTER
A155: 154 | B155: 154 - LEVERETT | C155: 154 | D155: 154 - 154 - LEVERETT
A156: 155 | B156: 155 - LEXINGTON | C156: 155 | D156: 155 - 155 - LEXINGTON
A157: 156 | B157: 156 - LEYDEN | C157: 156 | D157: 156 - 156 - LEYDEN
A158: 157 | B158: 157 - LINCOLN | C158: 157 | D158: 157 - 157 - LINCOLN
A159: 158 | B159: 158 - LITTLETON | C159: 158 | D159: 158 - 158 - LITTLETON
A160: 159 | B160: 159 - LONGMEADOW | C160: 159 | D160: 159 - 159 - LONGMEADOW
A161: 160 | B161: 160 - LOWELL | C161: 160 | D161: 160 - 160 - LOWELL
A162: 161 | B162: 161 - LUDLOW | C162: 161 | D162: 161 - 161 - LUDLOW
A163: 162 | B163: 162 - LUNENBURG | C163: 162 | D163: 162 - 162 - LUNENBURG
A164: 163 | B164: 163 - LYNN | C164: 163 | D164: 163 - 163 - LYNN
A165: 164 | B165: 164 - LYNNFIELD | C165: 164 | D165: 164 - 164 - LYNNFIELD
A166: 165 | B166: 165 - MALDEN | C166: 165 | D166: 165 - 165 - MALDEN
A167: 166 | B167: 166 - MANCHESTER | C167: 166 | D167: 166 - 166 - MANCHESTER
A168: 167 | B168: 167 - MANSFIELD | C168: 167 | D168: 167 - 167 - MANSFIELD
A169: 168 | B169: 168 - MARBLEHEAD | C169: 168 | D169: 168 - 168 - MARBLEHEAD
A170: 169 | B170: 169 - MARION | C170: 169 | D170: 169 - 169 - MARION
A171: 170 | B171: 170 - MARLBOROUGH | C171: 170 | D171: 170 - 170 - MARLBOROUGH
A172: 171 | B172: 171 - MARSHFIELD | C172: 171 | D172: 171 - 171 - MARSHFIELD
A173: 172 | B173: 172 - MASHPEE | C173: 172 | D173: 172 - 172 - MASHPEE
A174: 173 | B174: 173 - MATTAPOISETT | C174: 173 | D174: 173 - 173 - MATTAPOISETT
A175: 174 | B175: 174 - MAYNARD | C175: 174 | D175: 174 - 174 - MAYNARD
A176: 175 | B176: 175 - MEDFIELD | C176: 175 | D176: 175 - 175 - MEDFIELD
A177: 176 | B177: 176 - MEDFORD | C177: 176 | D177: 176 - 176 - MEDFORD
A178: 177 | B178: 177 - MEDWAY | C178: 177 | D178: 177 - 177 - MEDWAY
A179: 178 | B179: 178 - MELROSE | C179: 178 | D179: 178 - 178 - MELROSE
A180: 179 | B180: 179 - MENDON | C180: 179 | D180: 179 - 179 - MENDON
A181: 180 | B181: 180 - MERRIMAC | C181: 180 | D181: 180 - 180 - MERRIMAC
A182: 181 | B182: 181 - METHUEN | C182: 181 | D182: 181 - 181 - METHUEN
A183: 182 | B183: 182 - MIDDLEBOROUGH | C183: 182 | D183: 182 - 182 - MIDDLEBOROUGH
A184: 183 | B184: 183 - MIDDLEFIELD | C184: 183 | D184: 183 - 183 - MIDDLEFIELD
A185: 184 | B185: 184 - MIDDLETON | C185: 184 | D185: 184 - 184 - MIDDLETON
A186: 185 | B186: 185 - MILFORD | C186: 185 | D186: 185 - 185 - MILFORD
A187: 186 | B187: 186 - MILLBURY | C187: 186 | D187: 186 - 186 - MILLBURY
A188: 187 | B188: 187 - MILLIS | C188: 187 | D188: 187 - 187 - MILLIS
A189: 188 | B189: 188 - MILLVILLE | C189: 188 | D189: 188 - 188 - MILLVILLE
A190: 189 | B190: 189 - MILTON | C190: 189 | D190: 189 - 189 - MILTON
A191: 190 | B191: 190 - MONROE | C191: 190 | D191: 190 - 190 - MONROE
A192: 191 | B192: 191 - MONSON | C192: 191 | D192: 191 - 191 - MONSON
A193: 192 | B193: 192 - MONTAGUE | C193: 192 | D193: 192 - 192 - MONTAGUE
A194: 193 | B194: 193 - MONTEREY | C194: 193 | D194: 193 - 193 - MONTEREY
A195: =A194+1 -> 194 | B195: 194 - MONTGOMERY | C195: 194 | D195: =C195&" - "&B195 -> 194 - 194 - MONTGOMERY
A196: 195 | B196: 195 - MOUNT WASHINGTON | C196: 195 | D196: 195 - 195 - MOUNT WASHINGTON
A197: 196 | B197: 196 - NAHANT | C197: 196 | D197: 196 - 196 - NAHANT
A198: 197 | B198: 197 - NANTUCKET | C198: 197 | D198: 197 - 197 - NANTUCKET
A199: 198 | B199: 198 - NATICK | C199: 198 | D199: 198 - 198 - NATICK
A200: 199 | B200: 199 - NEEDHAM | C200: 199 | D200: 199 - 199 - NEEDHAM
A201: 200 | B201: 200 - NEW ASHFORD | C201: 200 | D201: 200 - 200 - NEW ASHFORD
... 239 more rows
